Body Name,Transaction Number,Account Code Description,Expenses Type,Service Code,Service Area Categorisation,Supplier Name,Date,Amount
Bath and North East Somerset Council,10909093,3C4,Building Works,P25,Transport Services,PRICEBUY LTD T/A TRAFFIC DATA CENTRE,28/05/2019,1150
Bath and North East Somerset Council,10917526,LL1,Services to/for Clients,P21,Childrens Services,JAMIE'S FARM,08/08/2019,1000
Bath and North East Somerset Council,80883619,3E4,Furniture/Equipment,P23,"Housing, Planning & Economic Development",WE CARE & REPAIR LTD,01/09/2019,60000
Bath and North East Somerset Council,10920427,LM3,Residential Care,P20,Adult Services,JJ AND S CHIPPENHAM LTD,13/09/2019,814.28
Bath and North East Somerset Council,10920556,LM6,Nursing Care,P20,Adult Services,FIR LAWN NURSING HOME LTD,30/09/2019,1387.28
Bath and North East Somerset Council,10920547,LM3,Residential Care,P20,Adult Services,KISMET HOUSE CARE HOME LTD,30/09/2019,8960.14
Bath and North East Somerset Council,10920536,LM3,Residential Care,P20,Adult Services,PRIORY GROUP LTD,30/09/2019,14208.62
Bath and North East Somerset Council,80883620,3E4,Furniture/Equipment,P23,"Housing, Planning & Economic Development",WE CARE & REPAIR LTD,01/10/2019,10000
Bath and North East Somerset Council,10916111,LJ4,Contracts,P25,Transport Services,RIVERSIDE TAXIS,02/10/2019,50
Bath and North East Somerset Council,10915845,LL2,Personal Needs of Clients,P23,"Housing, Planning & Economic Development",ICS LEARN,02/10/2019,112.86
Bath and North East Somerset Council,80873013,PG1,Rent Allowances,P19,Resources and Deputy Leader,ASTER COMMUNITIES,02/10/2019,2711.51
Bath and North East Somerset Council,10915665,HN1,Electricity,P24,Community Services,IMSERV EUROPE LTD,02/10/2019,221.97
Bath and North East Somerset Council,10915665,HN1,Electricity,P24,Community Services,IMSERV EUROPE LTD,02/10/2019,221.97
Bath and North East Somerset Council,10915665,HN1,Electricity,P19,Resources and Deputy Leader,IMSERV EUROPE LTD,02/10/2019,221.97
Bath and North East Somerset Council,10916029,LM1,Volunt Homes Placements Top/Up,P21,Childrens Services,BUDWOOD LTD,02/10/2019,231.6
Bath and North East Somerset Council,10915893,LA5,Materials,P24,Community Services,PELSIS GROUP,02/10/2019,294.36
Bath and North East Somerset Council,10915893,LA5,Materials,P24,Community Services,PELSIS GROUP,02/10/2019,351.15
Bath and North East Somerset Council,10915845,LL2,Personal Needs of Clients,P23,"Housing, Planning & Economic Development",ICS LEARN,02/10/2019,362.02
Bath and North East Somerset Council,80873011,PG1,Rent Allowances,P19,Resources and Deputy Leader,CURO,02/10/2019,660.67
Bath and North East Somerset Council,80873012,PG1,Rent Allowances,P19,Resources and Deputy Leader,CURO,02/10/2019,693.5
Bath and North East Somerset Council,80873008,PG1,Rent Allowances,P19,Resources and Deputy Leader,CURO,02/10/2019,939.59
Bath and North East Somerset Council,80873005,PG1,Rent Allowances,P19,Resources and Deputy Leader,CURO,02/10/2019,1227.52
Bath and North East Somerset Council,80873010,PG1,Rent Allowances,P19,Resources and Deputy Leader,CURO,02/10/2019,1399.92
Bath and North East Somerset Council,10916147,LK2,Licences,P24,Community Services,VERIFONE (UK) LTD,02/10/2019,438
Bath and North East Somerset Council,10915970,LA3,Equipment Maintenance,P22,Climate Emergency & Neighbourhood Services,CWS ENGINEERING LTD,02/10/2019,465
Bath and North East Somerset Council,10916111,LJ4,Contracts,P25,Transport Services,RIVERSIDE TAXIS,02/10/2019,490
Bath and North East Somerset Council,80872899,LM2,Foster Carer Allowances,P21,Childrens Services,REDACTED,02/10/2019,150
Bath and North East Somerset Council,80872899,LM2,Foster Carer Allowances,P21,Childrens Services,REDACTED,02/10/2019,250
Bath and North East Somerset Council,80872899,LM2,Foster Carer Allowances,P21,Childrens Services,REDACTED,02/10/2019,522
Bath and North East Somerset Council,10915821,HA1,Responsive Maintenance,P19,Resources and Deputy Leader,REXON DAY CONSULTING LIMITED,02/10/2019,540
Bath and North East Somerset Council,10916090,LA5,Materials,P22,Climate Emergency & Neighbourhood Services,IMPERIAL POLYTHENE PRODUCTS LTD,02/10/2019,544.5
Bath and North East Somerset Council,10916137,HV4,Cleaning Materials,P24,Community Services,AVANTI HYGIENE LTD,02/10/2019,551.27
Bath and North East Somerset Council,10916061,KB1,Hire of Vehicles,P22,Climate Emergency & Neighbourhood Services,LINDE SEVERNSIDE LTD,02/10/2019,552.51
Bath and North East Somerset Council,10916021,LA3,Equipment Maintenance,P19,Resources and Deputy Leader,GORDON MORRIS LTD,02/10/2019,593.75
Bath and North East Somerset Council,10916054,LA5,Materials,P24,Community Services,BARLEYLANDS GLASSWORKS,02/10/2019,603.14
Bath and North East Somerset Council,10916177,LA5,Materials,P24,Community Services,CALLIGRAPHY UK LTD,02/10/2019,610.37
Bath and North East Somerset Council,10915890,HA1,Responsive Maintenance,P19,Resources and Deputy Leader,MANNINGS FACILITIES MANAGEMENT LTD,02/10/2019,625.64
Bath and North East Somerset Council,10915771,HP6,Water Charges,P21,Childrens Services,WATER2BUSINESS,02/10/2019,643.52
Bath and North East Somerset Council,80872925,LM2,Foster Carer Allowances,P21,Childrens Services,REDACTED,02/10/2019,150
Bath and North East Somerset Council,80872925,LM2,Foster Carer Allowances,P21,Childrens Services,REDACTED,02/10/2019,150
Bath and North East Somerset Council,80872925,KE3,Transport & Travel,P21,Childrens Services,REDACTED,02/10/2019,233.1
Bath and North East Somerset Council,10916027,HA1,Responsive Maintenance,P19,Resources and Deputy Leader,MANNINGS FACILITIES MANAGEMENT LTD,02/10/2019,667.35
Bath and North East Somerset Council,80872925,LM2,Foster Carer Allowances,P21,Childrens Services,REDACTED,02/10/2019,250
Bath and North East Somerset Council,80872925,LM2,Foster Carer Allowances,P21,Childrens Services,REDACTED,02/10/2019,250
Bath and North East Somerset Council,80872925,LM2,Foster Carer Allowances,P21,Childrens Services,REDACTED,02/10/2019,430
Bath and North East Somerset Council,80872925,LM2,Foster Carer Allowances,P21,Childrens Services,REDACTED,02/10/2019,522
Bath and North East Somerset Council,10916009,HA1,Responsive Maintenance,P19,Resources and Deputy Leader,MANNINGS FACILITIES MANAGEMENT LTD,02/10/2019,691.31
Bath and North East Somerset Council,10916092,KA1,Repairs & Maintenance,P22,Climate Emergency & Neighbourhood Services,ULRICH ATTACHMENTS LIMITED,02/10/2019,693.76
Bath and North East Somerset Council,80872937,LL6,Needs & Services,P21,Childrens Services,REDACTED,02/10/2019,8
Bath and North East Somerset Council,80872937,LM2,Foster Carer Allowances,P21,Childrens Services,REDACTED,02/10/2019,150
Bath and North East Somerset Council,80872937,LM2,Foster Carer Allowances,P21,Childrens Services,REDACTED,02/10/2019,250
Bath and North East Somerset Council,80872937,LM2,Foster Carer Allowances,P21,Childrens Services,REDACTED,02/10/2019,391.5
Bath and North East Somerset Council,80872937,LM2,Foster Carer Allowances,P21,Childrens Services,REDACTED,02/10/2019,522
Bath and North East Somerset Council,80872896,LM2,Foster Carer Allowances,P21,Childrens Services,REDACTED,02/10/2019,150
Bath and North East Somerset Council,80872896,LM2,Foster Carer Allowances,P21,Childrens Services,REDACTED,02/10/2019,150
Bath and North East Somerset Council,80872896,LM2,Foster Carer Allowances,P21,Childrens Services,REDACTED,02/10/2019,250
Bath and North East Somerset Council,80872896,LM2,Foster Carer Allowances,P21,Childrens Services,REDACTED,02/10/2019,250
Bath and North East Somerset Council,80872896,LM2,Foster Carer Allowances,P21,Childrens Services,REDACTED,02/10/2019,522
Bath and North East Somerset Council,80872896,LM2,Foster Carer Allowances,P21,Childrens Services,REDACTED,02/10/2019,522
Bath and North East Somerset Council,10915999,HA1,Responsive Maintenance,P19,Resources and Deputy Leader,MANNINGS FACILITIES MANAGEMENT LTD,02/10/2019,741.2
Bath and North East Somerset Council,80872887,LM2,Foster Carer Allowances,P21,Childrens Services,REDACTED,02/10/2019,150
Bath and North East Somerset Council,80872887,LM2,Foster Carer Allowances,P21,Childrens Services,REDACTED,02/10/2019,150
Bath and North East Somerset Council,80872887,LM2,Foster Carer Allowances,P21,Childrens Services,REDACTED,02/10/2019,250
Bath and North East Somerset Council,80872887,LM2,Foster Carer Allowances,P21,Childrens Services,REDACTED,02/10/2019,250
Bath and North East Somerset Council,80872887,LM2,Foster Carer Allowances,P21,Childrens Services,REDACTED,02/10/2019,522
Bath and North East Somerset Council,80872887,LM2,Foster Carer Allowances,P21,Childrens Services,REDACTED,02/10/2019,522
Bath and North East Somerset Council,10916080,KA1,Repairs & Maintenance,P22,Climate Emergency & Neighbourhood Services,TRUCTYRE FLEET MANAGEMENT LTD,02/10/2019,757.05
Bath and North East Somerset Council,80872900,LM2,Foster Carer Allowances,P21,Childrens Services,REDACTED,02/10/2019,139.29
Bath and North East Somerset Council,10915748,HA1,Responsive Maintenance,P19,Resources and Deputy Leader,ADT FIRE & SECURITY PLC,02/10/2019,787
Bath and North East Somerset Council,80872900,LM2,Foster Carer Allowances,P21,Childrens Services,REDACTED,02/10/2019,139.29
Bath and North East Somerset Council,80872900,KE3,Transport & Travel,P21,Childrens Services,REDACTED,02/10/2019,270.3
Bath and North East Somerset Council,80872900,LM2,Foster Carer Allowances,P21,Childrens Services,REDACTED,02/10/2019,282.29
Bath and North East Somerset Council,80872900,LM2,Foster Carer Allowances,P21,Childrens Services,REDACTED,02/10/2019,282.29
Bath and North East Somerset Council,10915749,3C4,Building Works,P19,Resources and Deputy Leader,H MEALING & SONS LTD,02/10/2019,797.71
Bath and North East Somerset Council,80872920,LM2,Foster Carer Allowances,P21,Childrens Services,REDACTED,02/10/2019,150
Bath and North East Somerset Council,80872920,LM2,Foster Carer Allowances,P21,Childrens Services,REDACTED,02/10/2019,150
Bath and North East Somerset Council,80872920,LM2,Foster Carer Allowances,P21,Childrens Services,REDACTED,02/10/2019,342
Bath and North East Somerset Council,10915996,HA1,Responsive Maintenance,P19,Resources and Deputy Leader,MANNINGS FACILITIES MANAGEMENT LTD,02/10/2019,805.92
Bath and North East Somerset Council,80872920,LM2,Foster Carer Allowances,P21,Childrens Services,REDACTED,02/10/2019,430
Bath and North East Somerset Council,10916059,EA1,Training,P19,Resources and Deputy Leader,TALLOWOOD TRAINING SOLUTIONS LTD,02/10/2019,810
Bath and North East Somerset Council,80872981,LL9,Special Guardianship,P21,Childrens Services,REDACTED,02/10/2019,75.14
Bath and North East Somerset Council,80872981,LL9,Special Guardianship,P21,Childrens Services,REDACTED,02/10/2019,106.67
Bath and North East Somerset Council,80872981,LL9,Special Guardianship,P21,Childrens Services,REDACTED,02/10/2019,204.91
Bath and North East Somerset Council,80872981,LL9,Special Guardianship,P21,Childrens Services,REDACTED,02/10/2019,293.74
Bath and North East Somerset Council,10915673,HA2,Servicing,P19,Resources and Deputy Leader,TYCO FIRE & INTEGRATED SOLUTIONS (UK) LTD,02/10/2019,843
Bath and North East Somerset Council,10915885,HA1,Responsive Maintenance,P19,Resources and Deputy Leader,MANNINGS FACILITIES MANAGEMENT LTD,02/10/2019,876.31
Bath and North East Somerset Council,10916103,HP6,Water Charges,P24,Community Services,WATER2BUSINESS,02/10/2019,912.83
Bath and North East Somerset Council,10916104,LH5,Marketing,P24,Community Services,GB GROUP PLC T/A GBG,02/10/2019,931.5
Bath and North East Somerset Council,10916004,LJ4,Contracts,P22,Climate Emergency & Neighbourhood Services,FAUN ZOELLOR UK LTD,02/10/2019,989.48
Bath and North East Somerset Council,10916095,3E5,PCB IT Hardware,P21,Childrens Services,LIQUIDLOGIC LIMITED,02/10/2019,990
Bath and North East Somerset Council,10916148,LH5,Marketing,P24,Community Services,FREESTYLE DESIGNS BATH LTD,02/10/2019,998.64
Bath and North East Somerset Council,10915957,LK6,Photography/Artworks/Graphics,P24,Community Services,BRIDGEMAN ART LIBRARY,02/10/2019,1000
Bath and North East Somerset Council,10916157,LA5,Materials,P22,Climate Emergency & Neighbourhood Services,J R HARDING AND SONS LTD,02/10/2019,1018.15
Bath and North East Somerset Council,80873006,PG1,Rent Allowances,P19,Resources and Deputy Leader,LIVEWEST HOMES LIMITED,02/10/2019,693.56
Bath and North East Somerset Council,80873016,PG1,Rent Allowances,P19,Resources and Deputy Leader,LIVEWEST HOMES LIMITED,02/10/2019,2300
Bath and North East Somerset Council,80872938,LM2,Foster Carer Allowances,P21,Childrens Services,REDACTED,02/10/2019,150
Bath and North East Somerset Council,80872938,LM2,Foster Carer Allowances,P21,Childrens Services,REDACTED,02/10/2019,150
Bath and North East Somerset Council,80872938,LM2,Foster Carer Allowances,P21,Childrens Services,REDACTED,02/10/2019,430
Bath and North East Somerset Council,80872938,LM2,Foster Carer Allowances,P21,Childrens Services,REDACTED,02/10/2019,430
Bath and North East Somerset Council,80872911,LM2,Foster Carer Allowances,P21,Childrens Services,REDACTED,02/10/2019,150
Bath and North East Somerset Council,80872911,LM2,Foster Carer Allowances,P21,Childrens Services,REDACTED,02/10/2019,150
Bath and North East Somerset Council,80872911,LM2,Foster Carer Allowances,P21,Childrens Services,REDACTED,02/10/2019,150
Bath and North East Somerset Council,80872911,LM2,Foster Carer Allowances,P21,Childrens Services,REDACTED,02/10/2019,150
Bath and North East Somerset Council,80872911,LM2,Foster Carer Allowances,P21,Childrens Services,REDACTED,02/10/2019,342
Bath and North East Somerset Council,80872911,LM2,Foster Carer Allowances,P21,Childrens Services,REDACTED,02/10/2019,342
Bath and North East Somerset Council,80872911,LM2,Foster Carer Allowances,P21,Childrens Services,REDACTED,02/10/2019,837
Bath and North East Somerset Council,80872888,LM2,Foster Carer Allowances,P21,Childrens Services,REDACTED,02/10/2019,150
Bath and North East Somerset Council,80872888,LM2,Foster Carer Allowances,P21,Childrens Services,REDACTED,02/10/2019,522
Bath and North East Somerset Council,80872945,LM2,Foster Carer Allowances,P21,Childrens Services,REDACTED,02/10/2019,150
Bath and North East Somerset Council,80872945,LM2,Foster Carer Allowances,P21,Childrens Services,REDACTED,02/10/2019,250
Bath and North East Somerset Council,80872945,LM2,Foster Carer Allowances,P21,Childrens Services,REDACTED,02/10/2019,522
Bath and North East Somerset Council,80872903,LM2,Foster Carer Allowances,P21,Childrens Services,REDACTED,02/10/2019,195.75
Bath and North East Somerset Council,80872903,LL9,Special Guardianship,P21,Childrens Services,REDACTED,02/10/2019,325.7
Bath and North East Somerset Council,80872923,LM2,Foster Carer Allowances,P21,Childrens Services,REDACTED,02/10/2019,150
Bath and North East Somerset Council,80872923,LM2,Foster Carer Allowances,P21,Childrens Services,REDACTED,02/10/2019,250
Bath and North East Somerset Council,80872923,LM2,Foster Carer Allowances,P21,Childrens Services,REDACTED,02/10/2019,430
Bath and North East Somerset Council,80872894,LL5,Adoption Allowances,P21,Childrens Services,REDACTED,02/10/2019,304.02
Bath and North East Somerset Council,80872894,LL5,Adoption Allowances,P21,Childrens Services,REDACTED,02/10/2019,382.02
Bath and North East Somerset Council,80873029,PG1,Rent Allowances,P19,Resources and Deputy Leader,REDACTED,02/10/2019,507.68
Bath and North East Somerset Council,80873031,PG1,Rent Allowances,P19,Resources and Deputy Leader,REDACTED,02/10/2019,509.08
Bath and North East Somerset Council,80872893,LL5,Adoption Allowances,P21,Childrens Services,REDACTED,02/10/2019,462.8
Bath and North East Somerset Council,80872893,LL5,Adoption Allowances,P21,Childrens Services,REDACTED,02/10/2019,462.82
Bath and North East Somerset Council,80873003,PG1,Rent Allowances,P19,Resources and Deputy Leader,REDACTED,02/10/2019,925
Bath and North East Somerset Council,80872909,LM2,Foster Carer Allowances,P21,Childrens Services,REDACTED,02/10/2019,150
Bath and North East Somerset Council,80872909,LM2,Foster Carer Allowances,P21,Childrens Services,REDACTED,02/10/2019,150
Bath and North East Somerset Council,80872909,LM2,Foster Carer Allowances,P21,Childrens Services,REDACTED,02/10/2019,215
Bath and North East Somerset Council,80872909,LM2,Foster Carer Allowances,P21,Childrens Services,REDACTED,02/10/2019,430
Bath and North East Somerset Council,80872909,LM2,Foster Carer Allowances,P21,Childrens Services,REDACTED,02/10/2019,430
Bath and North East Somerset Council,10916159,LH5,Marketing,P24,Community Services,UKINBOUND LTD,02/10/2019,1235
Bath and North East Somerset Council,80872966,LM2,Foster Carer Allowances,P21,Childrens Services,REDACTED,02/10/2019,75
Bath and North East Somerset Council,80872966,LM2,Foster Carer Allowances,P21,Childrens Services,REDACTED,02/10/2019,75
Bath and North East Somerset Council,80872966,LM2,Foster Carer Allowances,P21,Childrens Services,REDACTED,02/10/2019,75
Bath and North East Somerset Council,10916139,LF1,Printing/Design,P24,Community Services,FUTURE KINGS LIMITED,02/10/2019,1250
Bath and North East Somerset Council,80872966,LM2,Foster Carer Allowances,P21,Childrens Services,REDACTED,02/10/2019,125
Bath and North East Somerset Council,80872966,LM2,Foster Carer Allowances,P21,Childrens Services,REDACTED,02/10/2019,125
Bath and North East Somerset Council,80872966,LM2,Foster Carer Allowances,P21,Childrens Services,REDACTED,02/10/2019,125
Bath and North East Somerset Council,80872966,LM2,Foster Carer Allowances,P21,Childrens Services,REDACTED,02/10/2019,215
Bath and North East Somerset Council,80872966,LM2,Foster Carer Allowances,P21,Childrens Services,REDACTED,02/10/2019,215
Bath and North East Somerset Council,80872966,LM2,Foster Carer Allowances,P21,Childrens Services,REDACTED,02/10/2019,215
Bath and North East Somerset Council,80872901,LM2,Foster Carer Allowances,P21,Childrens Services,REDACTED,02/10/2019,150
Bath and North East Somerset Council,80872901,LM2,Foster Carer Allowances,P21,Childrens Services,REDACTED,02/10/2019,250
Bath and North East Somerset Council,80872901,LM2,Foster Carer Allowances,P21,Childrens Services,REDACTED,02/10/2019,522
Bath and North East Somerset Council,80872898,LM2,Foster Carer Allowances,P21,Childrens Services,REDACTED,02/10/2019,391.5
Bath and North East Somerset Council,80872898,LM2,Foster Carer Allowances,P21,Childrens Services,REDACTED,02/10/2019,791
Bath and North East Somerset Council,80872898,LM2,Foster Carer Allowances,P21,Childrens Services,REDACTED,02/10/2019,791
Bath and North East Somerset Council,10916150,KA1,Repairs & Maintenance,P22,Climate Emergency & Neighbourhood Services,TRUCTYRE FLEET MANAGEMENT LTD,02/10/2019,1303.52
Bath and North East Somerset Council,80872904,LM2,Foster Carer Allowances,P21,Childrens Services,REDACTED,02/10/2019,150
Bath and North East Somerset Council,80872904,LM2,Foster Carer Allowances,P21,Childrens Services,REDACTED,02/10/2019,430
Bath and North East Somerset Council,80872949,LM2,Foster Carer Allowances,P21,Childrens Services,REDACTED,02/10/2019,150
Bath and North East Somerset Council,80872949,LM2,Foster Carer Allowances,P21,Childrens Services,REDACTED,02/10/2019,150
Bath and North East Somerset Council,80872949,LM2,Foster Carer Allowances,P21,Childrens Services,REDACTED,02/10/2019,342
Bath and North East Somerset Council,80872949,LM2,Foster Carer Allowances,P21,Childrens Services,REDACTED,02/10/2019,391.5
Bath and North East Somerset Council,80872949,LM2,Foster Carer Allowances,P21,Childrens Services,REDACTED,02/10/2019,430
Bath and North East Somerset Council,80872908,LM2,Foster Carer Allowances,P21,Childrens Services,REDACTED,02/10/2019,150
Bath and North East Somerset Council,80872908,LM2,Foster Carer Allowances,P21,Childrens Services,REDACTED,02/10/2019,250
Bath and North East Somerset Council,80872908,LM2,Foster Carer Allowances,P21,Childrens Services,REDACTED,02/10/2019,261
Bath and North East Somerset Council,80872908,LM2,Foster Carer Allowances,P21,Childrens Services,REDACTED,02/10/2019,522
Bath and North East Somerset Council,80872960,LM2,Foster Carer Allowances,P21,Childrens Services,REDACTED,02/10/2019,150
Bath and North East Somerset Council,80872960,LM2,Foster Carer Allowances,P21,Childrens Services,REDACTED,02/10/2019,250
Bath and North East Somerset Council,80872960,LM2,Foster Carer Allowances,P21,Childrens Services,REDACTED,02/10/2019,430
Bath and North East Somerset Council,80872930,LL9,Special Guardianship,P21,Childrens Services,REDACTED,02/10/2019,266.48
Bath and North East Somerset Council,80872930,LL9,Special Guardianship,P21,Childrens Services,REDACTED,02/10/2019,266.48
Bath and North East Somerset Council,80872977,LM2,Foster Carer Allowances,P21,Childrens Services,REDACTED,02/10/2019,845.46
Bath and North East Somerset Council,80872977,LM2,Foster Carer Allowances,P21,Childrens Services,REDACTED,02/10/2019,845.46
Bath and North East Somerset Council,80872924,LM2,Foster Carer Allowances,P21,Childrens Services,REDACTED,02/10/2019,150
Bath and North East Somerset Council,80872924,LM2,Foster Carer Allowances,P21,Childrens Services,REDACTED,02/10/2019,250
Bath and North East Somerset Council,80872924,LM2,Foster Carer Allowances,P21,Childrens Services,REDACTED,02/10/2019,522
Bath and North East Somerset Council,10916057,HP6,Water Charges,P19,Resources and Deputy Leader,WATER2BUSINESS,02/10/2019,1530.6
Bath and North East Somerset Council,80872907,LM2,Foster Carer Allowances,P21,Childrens Services,REDACTED,02/10/2019,150
Bath and North East Somerset Council,80872907,LM2,Foster Carer Allowances,P21,Childrens Services,REDACTED,02/10/2019,150
Bath and North East Somerset Council,10915492,HP6,Water Charges,P19,Resources and Deputy Leader,WATER2BUSINESS,02/10/2019,1679.71
Bath and North East Somerset Council,80872907,LM2,Foster Carer Allowances,P21,Childrens Services,REDACTED,02/10/2019,430
Bath and North East Somerset Council,80872907,LM2,Foster Carer Allowances,P21,Childrens Services,REDACTED,02/10/2019,430
Bath and North East Somerset Council,10915530,DB1,Agency Staff,P22,Climate Emergency & Neighbourhood Services,M4 RECRUITMENT LTD,02/10/2019,1681.3
Bath and North East Somerset Council,10916018,3F7,PCB External Fees,P24,Community Services,INTEGRAL ENGINEERING DESIGN LTD,02/10/2019,1687.5
Bath and North East Somerset Council,10915888,HA1,Responsive Maintenance,P19,Resources and Deputy Leader,MANNINGS FACILITIES MANAGEMENT LTD,02/10/2019,1730.72
Bath and North East Somerset Council,80872936,LM2,Foster Carer Allowances,P21,Childrens Services,REDACTED,02/10/2019,150
Bath and North East Somerset Council,80872936,LM2,Foster Carer Allowances,P21,Childrens Services,REDACTED,02/10/2019,150
Bath and North East Somerset Council,80872936,LM2,Foster Carer Allowances,P21,Childrens Services,REDACTED,02/10/2019,430
Bath and North East Somerset Council,80872936,LM2,Foster Carer Allowances,P21,Childrens Services,REDACTED,02/10/2019,430
Bath and North East Somerset Council,80872944,KE3,Transport & Travel,P21,Childrens Services,REDACTED,02/10/2019,74.25
Bath and North East Somerset Council,80872944,LM2,Foster Carer Allowances,P21,Childrens Services,REDACTED,02/10/2019,150
Bath and North East Somerset Council,80872944,LM2,Foster Carer Allowances,P21,Childrens Services,REDACTED,02/10/2019,150
Bath and North East Somerset Council,80872944,LM2,Foster Carer Allowances,P21,Childrens Services,REDACTED,02/10/2019,150
Bath and North East Somerset Council,80872944,LM2,Foster Carer Allowances,P21,Childrens Services,REDACTED,02/10/2019,250
Bath and North East Somerset Council,80872944,LM2,Foster Carer Allowances,P21,Childrens Services,REDACTED,02/10/2019,342
Bath and North East Somerset Council,80872944,LM2,Foster Carer Allowances,P21,Childrens Services,REDACTED,02/10/2019,430
Bath and North East Somerset Council,10916058,HP6,Water Charges,P19,Resources and Deputy Leader,WATER2BUSINESS,02/10/2019,1985.16
Bath and North East Somerset Council,10915925,DB1,Agency Staff,P22,Climate Emergency & Neighbourhood Services,M4 RECRUITMENT LTD,02/10/2019,1993.68
Bath and North East Somerset Council,80873009,PG1,Rent Allowances,P19,Resources and Deputy Leader,SANCTUARY HOUSING SERVICES LIMIT,02/10/2019,1044.84
Bath and North East Somerset Council,10916101,HP6,Water Charges,P19,Resources and Deputy Leader,WATER2BUSINESS,02/10/2019,2113.7
Bath and North East Somerset Council,10916019,3F7,PCB External Fees,P24,Community Services,INTEGRAL ENGINEERING DESIGN LTD,02/10/2019,2125
Bath and North East Somerset Council,10915793,LJ4,Contracts,P21,Childrens Services,BARNARDO'S SERVICES LTD,02/10/2019,2475
Bath and North East Somerset Council,10916135,LH5,Marketing,P24,Community Services,CONSIDERED CREATIVE,02/10/2019,2500
Bath and North East Somerset Council,10916145,LH5,Marketing,P24,Community Services,EXPERIAN LTD,02/10/2019,2588.17
Bath and North East Somerset Council,10915906,3N7,PCB Misc. Costs,P25,Transport Services,NORTH SOMERSET COUNCIL,02/10/2019,2800
Bath and North East Somerset Council,10915858,HN1,Electricity,P19,Resources and Deputy Leader,NPOWER,02/10/2019,2886.44
Bath and North East Somerset Council,10916017,3F7,PCB External Fees,P24,Community Services,FEILDEN CLEGG BRADLEY LLP,02/10/2019,3026.86
Bath and North East Somerset Council,10916097,3E5,PCB IT Hardware,P19,Resources and Deputy Leader,BIBLIOTHECA,02/10/2019,3160
Bath and North East Somerset Council,10915962,LA3,Equipment Maintenance,P22,Climate Emergency & Neighbourhood Services,CWS ENGINEERING LTD,02/10/2019,3458.5
Bath and North East Somerset Council,10916015,3F7,PCB External Fees,P24,Community Services,FEILDEN CLEGG BRADLEY LLP,02/10/2019,3562.5
Bath and North East Somerset Council,10916134,HA3,Planned Maintenance,P24,Community Services,DM & JP COMMERCIAL LTD,02/10/2019,3750
Bath and North East Somerset Council,10915055,HP1,Rent Payable,P24,Community Services,THE NATIONAL TRUST,02/10/2019,4183.3
Bath and North East Somerset Council,10916149,HA3,Planned Maintenance,P24,Community Services,SYSCO AV LTD,02/10/2019,5050
Bath and North East Somerset Council,10915822,HA1,Responsive Maintenance,P19,Resources and Deputy Leader,ZETA COMPLIANCE SERVICES LTD,02/10/2019,5140
Bath and North East Somerset Council,10916169,LK1,Fees,P19,Resources and Deputy Leader,HARTNELL TAYLOR COOK LLP OFFICE ACCOUNT,02/10/2019,5200
Bath and North East Somerset Council,80873027,PG1,Rent Allowances,P19,Resources and Deputy Leader,THE GUINNESS HOUSING ASSOCIATION,02/10/2019,833.2
Bath and North East Somerset Council,10915060,XF3,Recoveries,P19,Resources and Deputy Leader,WORKMAN LLP,02/10/2019,6377.05
Bath and North East Somerset Council,10916050,LJ4,Contracts,P21,Childrens Services,OFF THE RECORD (B&NES),02/10/2019,7600
Bath and North East Somerset Council,10916119,LK1,Fees,P22,Climate Emergency & Neighbourhood Services,ENVIRO TECHNOLOGY SERVICES PLC,02/10/2019,8334
Bath and North East Somerset Council,10915963,LH1,Liability Insurance,Z99,Outside Revenue Accounts,BEACHCROFT LLP OFFICE ACCOUNT,02/10/2019,8978.55
Bath and North East Somerset Council,10915158,HP1,Rent Payable,P19,Resources and Deputy Leader,MR WILLATS' CHARITY,02/10/2019,9125
Bath and North East Somerset Council,10916060,LV1,Grants to Voluntary Bodies,P21,Childrens Services,WHITCHURCH PARISH COUNCIL,02/10/2019,9641.43
Bath and North East Somerset Council,10916175,LJ4,Contracts,P24,Community Services,SOUTHSIDE FAMILY PROJECT,02/10/2019,12000
Bath and North East Somerset Council,10916155,LP8,SPARE - never used,P19,Resources and Deputy Leader,SOFTCAT LTD,02/10/2019,12613.44
Bath and North East Somerset Council,10915505,LK1,Fees,P21,Childrens Services,PCC FOR AVON & SOMERSET,02/10/2019,14663.5
Bath and North East Somerset Council,10916029,LM1,Volunt Homes Placements Top/Up,P21,Childrens Services,BUDWOOD LTD,02/10/2019,14899.33
Bath and North East Somerset Council,10916065,LP8,SPARE - never used,P19,Resources and Deputy Leader,SOFTCAT LTD,02/10/2019,30693.6
Bath and North East Somerset Council,10916024,LJ4,Contracts,P20,Adult Services,VIRGIN CARE SERVICES LTD,02/10/2019,35632
Bath and North East Somerset Council,10916030,3C4,Building Works,P24,Community Services,E W BEARD LTD,02/10/2019,127528.95
Bath and North East Somerset Council,80873058,LM8,Home Care,P20,Adult Services,REDACTED,03/10/2019,40.3
Bath and North East Somerset Council,80873058,LM8,Home Care,P20,Adult Services,REDACTED,03/10/2019,69.54
Bath and North East Somerset Council,80873058,LM8,Home Care,P20,Adult Services,REDACTED,03/10/2019,81.13
Bath and North East Somerset Council,80873058,LM8,Home Care,P20,Adult Services,REDACTED,03/10/2019,98.68
Bath and North East Somerset Council,80873058,LM8,Home Care,P20,Adult Services,REDACTED,03/10/2019,116.81
Bath and North East Somerset Council,80873058,LM8,Home Care,P20,Adult Services,REDACTED,03/10/2019,116.81
Bath and North East Somerset Council,80873058,LM8,Home Care,P20,Adult Services,REDACTED,03/10/2019,116.81
Bath and North East Somerset Council,80873058,LM8,Home Care,P20,Adult Services,REDACTED,03/10/2019,121.96
Bath and North East Somerset Council,80873058,LM8,Home Care,P20,Adult Services,REDACTED,03/10/2019,145.09
Bath and North East Somerset Council,80873058,LM8,Home Care,P20,Adult Services,REDACTED,03/10/2019,145.09
Bath and North East Somerset Council,80873058,LM8,Home Care,P20,Adult Services,REDACTED,03/10/2019,152.16
Bath and North East Somerset Council,80873058,LM8,Home Care,P20,Adult Services,REDACTED,03/10/2019,168.32
Bath and North East Somerset Council,80873058,LM8,Home Care,P20,Adult Services,REDACTED,03/10/2019,233.62
Bath and North East Somerset Council,80873058,LM8,Home Care,P20,Adult Services,REDACTED,03/10/2019,233.62
Bath and North East Somerset Council,80873058,LM8,Home Care,P20,Adult Services,REDACTED,03/10/2019,247.76
Bath and North East Somerset Council,80873058,LM8,Home Care,P20,Adult Services,REDACTED,03/10/2019,280.03
Bath and North East Somerset Council,80873058,LM8,Home Care,P20,Adult Services,REDACTED,03/10/2019,290.23
Bath and North East Somerset Council,80873058,LM8,Home Care,P20,Adult Services,REDACTED,03/10/2019,339.75
Bath and North East Somerset Council,80873058,LM8,Home Care,P20,Adult Services,REDACTED,03/10/2019,348.18
Bath and North East Somerset Council,80873058,LM8,Home Care,P20,Adult Services,REDACTED,03/10/2019,358.51
Bath and North East Somerset Council,80873058,LM8,Home Care,P20,Adult Services,REDACTED,03/10/2019,378.71
Bath and North East Somerset Council,80873058,LM8,Home Care,P20,Adult Services,REDACTED,03/10/2019,378.71
Bath and North East Somerset Council,80873064,LM8,Home Care,P20,Adult Services,ABICARE SERVICES LTD,03/10/2019,66.96
Bath and North East Somerset Council,80873058,LM8,Home Care,P20,Adult Services,REDACTED,03/10/2019,396.79
Bath and North East Somerset Council,80873058,LM8,Home Care,P20,Adult Services,REDACTED,03/10/2019,401.89
Bath and North East Somerset Council,80873058,LM8,Home Care,P20,Adult Services,REDACTED,03/10/2019,413
Bath and North East Somerset Council,80873058,LM8,Home Care,P20,Adult Services,REDACTED,03/10/2019,501.58
Bath and North East Somerset Council,80873058,LM8,Home Care,P20,Adult Services,REDACTED,03/10/2019,518.75
Bath and North East Somerset Council,80873058,LM8,Home Care,P20,Adult Services,REDACTED,03/10/2019,518.75
Bath and North East Somerset Council,80873058,LM8,Home Care,P20,Adult Services,REDACTED,03/10/2019,518.75
Bath and North East Somerset Council,80873058,LM8,Home Care,P20,Adult Services,REDACTED,03/10/2019,536.78
Bath and North East Somerset Council,80873058,LM8,Home Care,P20,Adult Services,REDACTED,03/10/2019,640.61
Bath and North East Somerset Council,80873058,LM8,Home Care,P20,Adult Services,REDACTED,03/10/2019,750.5
Bath and North East Somerset Council,80873053,LM8,Home Care,P20,Adult Services,ACTIVE ASSISTANCE,03/10/2019,6089.29
Bath and North East Somerset Council,10916200,LV1,Grants to Voluntary Bodies,P25,Transport Services,AGE UK BATH & N E SOMERSET,03/10/2019,1500
Bath and North East Somerset Council,80873054,LM8,Home Care,P20,Adult Services,AGINCARE LIVE IN CARE SERVICES LTD,03/10/2019,1400
Bath and North East Somerset Council,80873054,LM8,Home Care,P20,Adult Services,AGINCARE LIVE IN CARE SERVICES LTD,03/10/2019,1530.06
Bath and North East Somerset Council,80873054,LM8,Home Care,P20,Adult Services,AGINCARE LIVE IN CARE SERVICES LTD,03/10/2019,1700.02
Bath and North East Somerset Council,80873054,LM8,Home Care,P20,Adult Services,AGINCARE LIVE IN CARE SERVICES LTD,03/10/2019,1910.02
Bath and North East Somerset Council,80873039,LM8,Home Care,P20,Adult Services,BATH MIND,03/10/2019,10.8
Bath and North East Somerset Council,80873039,LM8,Home Care,P20,Adult Services,BATH MIND,03/10/2019,18
Bath and North East Somerset Council,80873039,LM8,Home Care,P20,Adult Services,BATH MIND,03/10/2019,18
Bath and North East Somerset Council,80873039,LM8,Home Care,P20,Adult Services,BATH MIND,03/10/2019,27
Bath and North East Somerset Council,80873039,LM8,Home Care,P20,Adult Services,BATH MIND,03/10/2019,36
Bath and North East Somerset Council,80873039,LM8,Home Care,P20,Adult Services,BATH MIND,03/10/2019,81
Bath and North East Somerset Council,80873039,LL3,Supported Living,P20,Adult Services,BATH MIND,03/10/2019,81.6
Bath and North East Somerset Council,80873039,LM8,Home Care,P20,Adult Services,BATH MIND,03/10/2019,144
Bath and North East Somerset Council,80873039,LM8,Home Care,P20,Adult Services,BATH MIND,03/10/2019,163.2
Bath and North East Somerset Council,80873039,LL3,Supported Living,P20,Adult Services,BATH MIND,03/10/2019,163.2
Bath and North East Somerset Council,80873039,LL3,Supported Living,P20,Adult Services,BATH MIND,03/10/2019,186
Bath and North East Somerset Council,80873039,LL3,Supported Living,P20,Adult Services,BATH MIND,03/10/2019,186
Bath and North East Somerset Council,80873039,LL3,Supported Living,P20,Adult Services,BATH MIND,03/10/2019,204
Bath and North East Somerset Council,80873039,LL3,Supported Living,P20,Adult Services,BATH MIND,03/10/2019,326.4
Bath and North East Somerset Council,80873039,LL3,Supported Living,P20,Adult Services,BATH MIND,03/10/2019,489.6
Bath and North East Somerset Council,80873039,LL3,Supported Living,P20,Adult Services,BATH MIND,03/10/2019,571.2
Bath and North East Somerset Council,80873039,LL3,Supported Living,P20,Adult Services,BATH MIND,03/10/2019,795.6
Bath and North East Somerset Council,80873039,LL3,Supported Living,P20,Adult Services,BATH MIND,03/10/2019,1141.28
Bath and North East Somerset Council,80873039,LL3,Supported Living,P20,Adult Services,BATH MIND,03/10/2019,1174.65
Bath and North East Somerset Council,80873039,LL3,Supported Living,P20,Adult Services,BATH MIND,03/10/2019,1306.65
Bath and North East Somerset Council,80873039,LL3,Supported Living,P20,Adult Services,BATH MIND,03/10/2019,1753.8
Bath and North East Somerset Council,80873039,LL3,Supported Living,P20,Adult Services,BATH MIND,03/10/2019,2976.9
Bath and North East Somerset Council,80873068,LM8,Home Care,P20,Adult Services,BLUEBIRD CARE,03/10/2019,2835.92
Bath and North East Somerset Council,80873055,LM8,Home Care,P20,Adult Services,BLUEBIRD CARE (BATH),03/10/2019,66.42
Bath and North East Somerset Council,80873055,LM8,Home Care,P20,Adult Services,BLUEBIRD CARE (BATH),03/10/2019,88.56
Bath and North East Somerset Council,80873055,LM8,Home Care,P20,Adult Services,BLUEBIRD CARE (BATH),03/10/2019,88.56
Bath and North East Somerset Council,80873055,LM8,Home Care,P20,Adult Services,BLUEBIRD CARE (BATH),03/10/2019,132.84
Bath and North East Somerset Council,80873055,LM8,Home Care,P20,Adult Services,BLUEBIRD CARE (BATH),03/10/2019,238.72
Bath and North East Somerset Council,80873055,LM8,Home Care,P20,Adult Services,BLUEBIRD CARE (BATH),03/10/2019,246.35
Bath and North East Somerset Council,80873055,LM8,Home Care,P20,Adult Services,BLUEBIRD CARE (BATH),03/10/2019,273.38
Bath and North East Somerset Council,80873055,LM8,Home Care,P20,Adult Services,BLUEBIRD CARE (BATH),03/10/2019,325.85
Bath and North East Somerset Council,80873055,LM8,Home Care,P20,Adult Services,BLUEBIRD CARE (BATH),03/10/2019,386.9
Bath and North East Somerset Council,80873055,LM8,Home Care,P20,Adult Services,BLUEBIRD CARE (BATH),03/10/2019,393.59
Bath and North East Somerset Council,80873055,LM8,Home Care,P20,Adult Services,BLUEBIRD CARE (BATH),03/10/2019,525.03
Bath and North East Somerset Council,80873055,LM8,Home Care,P20,Adult Services,BLUEBIRD CARE (BATH),03/10/2019,549.58
Bath and North East Somerset Council,80873055,LM8,Home Care,P20,Adult Services,BLUEBIRD CARE (BATH),03/10/2019,736.7
Bath and North East Somerset Council,80873055,LM8,Home Care,P20,Adult Services,BLUEBIRD CARE (BATH),03/10/2019,861.08
Bath and North East Somerset Council,80873055,LM8,Home Care,P20,Adult Services,BLUEBIRD CARE (BATH),03/10/2019,908.14
Bath and North East Somerset Council,80873055,LM8,Home Care,P20,Adult Services,BLUEBIRD CARE (BATH),03/10/2019,919.91
Bath and North East Somerset Council,80873055,LM8,Home Care,P20,Adult Services,BLUEBIRD CARE (BATH),03/10/2019,1562.48
Bath and North East Somerset Council,80873055,LM8,Home Care,P20,Adult Services,BLUEBIRD CARE (BATH),03/10/2019,1888.46
Bath and North East Somerset Council,80873055,LM8,Home Care,P20,Adult Services,BLUEBIRD CARE (BATH),03/10/2019,2562.98
Bath and North East Somerset Council,80873055,LM8,Home Care,P20,Adult Services,BLUEBIRD CARE (BATH),03/10/2019,4133
Bath and North East Somerset Council,80873055,LM8,Home Care,P20,Adult Services,BLUEBIRD CARE (BATH),03/10/2019,4133
Bath and North East Somerset Council,80873055,LM8,Home Care,P20,Adult Services,BLUEBIRD CARE (BATH),03/10/2019,4188.26
Bath and North East Somerset Council,80873055,LM8,Home Care,P20,Adult Services,BLUEBIRD CARE (BATH),03/10/2019,4326
Bath and North East Somerset Council,80873055,LM8,Home Care,P20,Adult Services,BLUEBIRD CARE (BATH),03/10/2019,5658.66
Bath and North East Somerset Council,80873055,LM8,Home Care,P20,Adult Services,BLUEBIRD CARE (BATH),03/10/2019,5773.76
Bath and North East Somerset Council,80873059,LL3,Supported Living,P20,Adult Services,BRADBURY OUTREACH SERVICES,03/10/2019,240
Bath and North East Somerset Council,80873059,LL3,Supported Living,P20,Adult Services,BRADBURY OUTREACH SERVICES,03/10/2019,365.12
Bath and North East Somerset Council,80873059,LL3,Supported Living,P20,Adult Services,BRADBURY OUTREACH SERVICES,03/10/2019,365.12
Bath and North East Somerset Council,80873059,LL3,Supported Living,P20,Adult Services,BRADBURY OUTREACH SERVICES,03/10/2019,547.68
Bath and North East Somerset Council,80873059,LL3,Supported Living,P20,Adult Services,BRADBURY OUTREACH SERVICES,03/10/2019,547.68
Bath and North East Somerset Council,80873059,LL3,Supported Living,P20,Adult Services,BRADBURY OUTREACH SERVICES,03/10/2019,640
Bath and North East Somerset Council,80873059,LL3,Supported Living,P20,Adult Services,BRADBURY OUTREACH SERVICES,03/10/2019,720
Bath and North East Somerset Council,80873059,LL3,Supported Living,P20,Adult Services,BRADBURY OUTREACH SERVICES,03/10/2019,730.24
Bath and North East Somerset Council,80873059,LM8,Home Care,P20,Adult Services,BRADBURY OUTREACH SERVICES,03/10/2019,1232
Bath and North East Somerset Council,80873059,LL3,Supported Living,P20,Adult Services,BRADBURY OUTREACH SERVICES,03/10/2019,1344
Bath and North East Somerset Council,80873059,LL3,Supported Living,P20,Adult Services,BRADBURY OUTREACH SERVICES,03/10/2019,1437.66
Bath and North East Somerset Council,80873059,LL3,Supported Living,P20,Adult Services,BRADBURY OUTREACH SERVICES,03/10/2019,1584
Bath and North East Somerset Council,80873059,LL3,Supported Living,P20,Adult Services,BRADBURY OUTREACH SERVICES,03/10/2019,2920.96
Bath and North East Somerset Council,80873048,LM9,Day Care,P20,Adult Services,CARE FUTURES,03/10/2019,783.89
Bath and North East Somerset Council,80873048,LM9,Day Care,P20,Adult Services,CARE FUTURES,03/10/2019,1377.18
Bath and North East Somerset Council,10916199,LV1,Grants to Voluntary Bodies,P25,Transport Services,CHEW VALLEY COMMUNITY TRANSPORT,03/10/2019,902.5
Bath and North East Somerset Council,80873046,LM9,Day Care,P20,Adult Services,UNITED RESPONSE,03/10/2019,344
Bath and North East Somerset Council,80874156,PG1,Rent Allowances,P19,Resources and Deputy Leader,CURO,03/10/2019,44887.3
Bath and North East Somerset Council,80874158,PG1,Rent Allowances,P19,Resources and Deputy Leader,CURO,03/10/2019,1149777.18
Bath and North East Somerset Council,10916176,LJ2,Legal Fees,P20,Adult Services,BEVAN BRITTAN,03/10/2019,432
Bath and North East Somerset Council,10916353,LG9,OT Equipment,P21,Childrens Services,G & S SMIRTHWAITE LTD,03/10/2019,445
Bath and North East Somerset Council,10916348,LJ4,Contracts,P22,Climate Emergency & Neighbourhood Services,L&F COMMERCIAL PARTS,03/10/2019,466.32
Bath and North East Somerset Council,10916284,HA3,Planned Maintenance,P24,Community Services,WESSEX WATER ENTERPRISES,03/10/2019,468.47
Bath and North East Somerset Council,10916312,KA1,Repairs & Maintenance,P22,Climate Emergency & Neighbourhood Services,TRUCTYRE FLEET MANAGEMENT LTD,03/10/2019,483.26
Bath and North East Somerset Council,10916339,LJ4,Contracts,P22,Climate Emergency & Neighbourhood Services,PARTSPLUS UK,03/10/2019,498.51
Bath and North East Somerset Council,10916184,EA1,Training,P21,Childrens Services,MRS PATRICIA CLAIRE CRAVEN,03/10/2019,500
Bath and North East Somerset Council,80873060,LM8,Home Care,P20,Adult Services,DIVINE HEALTHCARE BUSINESS SOLUTIONS LTD,03/10/2019,5680.25
Bath and North East Somerset Council,10916237,LJ8,PCB External Fees,P23,"Housing, Planning & Economic Development",MARC BUBB,03/10/2019,505.44
Bath and North East Somerset Council,10916350,3E5,PCB IT Hardware,P19,Resources and Deputy Leader,SOFTCAT LTD,03/10/2019,510.3
Bath and North East Somerset Council,80873065,LM8,Home Care,P20,Adult Services,FEATHERBED CARE LTD,03/10/2019,1880
Bath and North East Somerset Council,80873043,LL3,Supported Living,P20,Adult Services,HOME FARM TRUST,03/10/2019,12214.56
Bath and North East Somerset Council,80873043,LL3,Supported Living,P20,Adult Services,HOME FARM TRUST,03/10/2019,15268.2
Bath and North East Somerset Council,80873064,LM8,Home Care,P20,Adult Services,ABICARE SERVICES LTD,03/10/2019,602.64
Bath and North East Somerset Council,80873034,LL1,Services to/for Clients,P20,Adult Services,GUINNESS HOUSING ASSOCIATION,03/10/2019,609.71
Bath and North East Somerset Council,10916053,LA1,Equipment Purchase,P22,Climate Emergency & Neighbourhood Services,REXEL NO 1,03/10/2019,615
Bath and North East Somerset Council,10916289,LD1,Protective & Safety Clothing,P22,Climate Emergency & Neighbourhood Services,SMI GROUP LTD,03/10/2019,640
Bath and North East Somerset Council,10916285,3F7,PCB External Fees,P24,Community Services,D A & D P REED T/A THE PARK KEEPERS,03/10/2019,650
Bath and North East Somerset Council,10916293,3J2,PCB Consultants,P19,Resources and Deputy Leader,PEOPLE SOURCE CONSULTING LTD,03/10/2019,659.75
Bath and North East Somerset Council,10916281,LA4,Equipment Hire/Rent,P24,Community Services,THE YABOO CO LTD,03/10/2019,682.45
Bath and North East Somerset Council,10915820,HA1,Responsive Maintenance,P19,Resources and Deputy Leader,REXON DAY CONSULTING LIMITED,03/10/2019,687.22
Bath and North East Somerset Council,10916294,3J2,PCB Consultants,P19,Resources and Deputy Leader,PEOPLE SOURCE CONSULTING LTD,03/10/2019,688.03
Bath and North East Somerset Council,80873066,LM8,Home Care,P20,Adult Services,ICAPS ENTERPRISES LTD,03/10/2019,729.4
Bath and North East Somerset Council,80873968,PG1,Rent Allowances,P19,Resources and Deputy Leader,REDACTED,03/10/2019,572.2
Bath and North East Somerset Council,80873080,PG1,Rent Allowances,P19,Resources and Deputy Leader,REDACTED,03/10/2019,1000
Bath and North East Somerset Council,80873191,PG1,Rent Allowances,P19,Resources and Deputy Leader,REDACTED,03/10/2019,1000
Bath and North East Somerset Council,80873302,PG1,Rent Allowances,P19,Resources and Deputy Leader,REDACTED,03/10/2019,1000
Bath and North East Somerset Council,80873413,PG1,Rent Allowances,P19,Resources and Deputy Leader,REDACTED,03/10/2019,1000
Bath and North East Somerset Council,80874027,PG1,Rent Allowances,P19,Resources and Deputy Leader,REDACTED,03/10/2019,14230.35
Bath and North East Somerset Council,10916238,3E4,Furniture/Equipment,P24,Community Services,KATHERINE STEVENS,03/10/2019,890
Bath and North East Somerset Council,10916318,KA1,Repairs & Maintenance,P22,Climate Emergency & Neighbourhood Services,TRUCTYRE FLEET MANAGEMENT LTD,03/10/2019,928.16
Bath and North East Somerset Council,10916299,3J2,PCB Consultants,P19,Resources and Deputy Leader,PEOPLE SOURCE CONSULTING LTD,03/10/2019,937.5
Bath and North East Somerset Council,10916300,3J2,PCB Consultants,P19,Resources and Deputy Leader,PEOPLE SOURCE CONSULTING LTD,03/10/2019,950.25
Bath and North East Somerset Council,10916277,LN5,Data Lines,P19,Resources and Deputy Leader,ADEPT POWER SOLUTIONS LIMITED,03/10/2019,955.63
Bath and North East Somerset Council,10916292,3J2,PCB Consultants,P19,Resources and Deputy Leader,PEOPLE SOURCE CONSULTING LTD,03/10/2019,1000
Bath and North East Somerset Council,10916208,KA1,Repairs & Maintenance,P22,Climate Emergency & Neighbourhood Services,TRUCTYRE FLEET MANAGEMENT LTD,03/10/2019,1034.8
Bath and North East Somerset Council,10915701,LF4,Stationery,P25,Transport Services,ESP SYSTEX LTD,03/10/2019,1045
Bath and North East Somerset Council,10915655,LA3,Equipment Maintenance,P24,Community Services,AG INDUSTRIES LTD T/A ALLGREEN GROUP,03/10/2019,1098.12
Bath and North East Somerset Council,80874026,PG1,Rent Allowances,P19,Resources and Deputy Leader,LIVEWEST HOMES LIMITED,03/10/2019,830.28
Bath and North East Somerset Council,10916168,LK1,Fees,P19,Resources and Deputy Leader,MINES RESCUE SERVICE LTD,03/10/2019,1121.05
Bath and North East Somerset Council,80873728,PG1,Rent Allowances,P19,Resources and Deputy Leader,REDACTED,03/10/2019,1763.21
Bath and North East Somerset Council,80873265,PG1,Rent Allowances,P19,Resources and Deputy Leader,REDACTED,03/10/2019,619.36
Bath and North East Somerset Council,80873632,PG1,Rent Allowances,P19,Resources and Deputy Leader,REDACTED,03/10/2019,2900.76
Bath and North East Somerset Council,80873085,PG1,Rent Allowances,P19,Resources and Deputy Leader,REDACTED,03/10/2019,588.16
Bath and North East Somerset Council,10915442,LK1,Fees,P21,Childrens Services,BATH YMCA TRADING,03/10/2019,1160
Bath and North East Somerset Council,10916108,HP6,Water Charges,P19,Resources and Deputy Leader,WATER2BUSINESS,03/10/2019,1162.12
Bath and North East Somerset Council,80874035,PG1,Rent Allowances,P19,Resources and Deputy Leader,REDACTED,03/10/2019,1152
Bath and North East Somerset Council,10916105,EA1,Training,P21,Childrens Services,SOUTHSIDE FAMILY PROJECT,03/10/2019,1200
Bath and North East Somerset Council,80873336,PG1,Rent Allowances,P19,Resources and Deputy Leader,REDACTED,03/10/2019,553.84
Bath and North East Somerset Council,80873193,PG1,Rent Allowances,P19,Resources and Deputy Leader,REDACTED,03/10/2019,643.38
Bath and North East Somerset Council,80873684,PG1,Rent Allowances,P19,Resources and Deputy Leader,REDACTED,03/10/2019,643.38
Bath and North East Somerset Council,80874139,PG1,Rent Allowances,P19,Resources and Deputy Leader,REDACTED,03/10/2019,573.84
Bath and North East Somerset Council,80873474,PG1,Rent Allowances,P19,Resources and Deputy Leader,REDACTED,03/10/2019,581.54
Bath and North East Somerset Council,80873290,PG1,Rent Allowances,P19,Resources and Deputy Leader,REDACTED,03/10/2019,553.84
Bath and North East Somerset Council,80873315,PG1,Rent Allowances,P19,Resources and Deputy Leader,REDACTED,03/10/2019,643
Bath and North East Somerset Council,80874157,PG1,Rent Allowances,P19,Resources and Deputy Leader,REDACTED,03/10/2019,927.6
Bath and North East Somerset Council,80873284,PG1,Rent Allowances,P19,Resources and Deputy Leader,REDACTED,03/10/2019,503.04
Bath and North East Somerset Council,80873828,PG1,Rent Allowances,P19,Resources and Deputy Leader,REDACTED,03/10/2019,1735.89
Bath and North East Somerset Council,80873379,PG1,Rent Allowances,P19,Resources and Deputy Leader,REDACTED,03/10/2019,586.38
Bath and North East Somerset Council,80873914,PG1,Rent Allowances,P19,Resources and Deputy Leader,REDACTED,03/10/2019,1152
Bath and North East Somerset Council,80873062,LM8,Home Care,P20,Adult Services,MY WILLOWS - SOMERSET CARE AT HOME LTD,03/10/2019,272.65
Bath and North East Somerset Council,80873062,LM8,Home Care,P20,Adult Services,MY WILLOWS - SOMERSET CARE AT HOME LTD,03/10/2019,300.73
Bath and North East Somerset Council,80873062,LM8,Home Care,P20,Adult Services,MY WILLOWS - SOMERSET CARE AT HOME LTD,03/10/2019,302.94
Bath and North East Somerset Council,80873062,LM8,Home Care,P20,Adult Services,MY WILLOWS - SOMERSET CARE AT HOME LTD,03/10/2019,363.52
Bath and North East Somerset Council,80873062,LM8,Home Care,P20,Adult Services,MY WILLOWS - SOMERSET CARE AT HOME LTD,03/10/2019,424.12
Bath and North East Somerset Council,80873062,LM8,Home Care,P20,Adult Services,MY WILLOWS - SOMERSET CARE AT HOME LTD,03/10/2019,424.12
Bath and North East Somerset Council,80873062,LM8,Home Care,P20,Adult Services,MY WILLOWS - SOMERSET CARE AT HOME LTD,03/10/2019,783.39
Bath and North East Somerset Council,80873062,LM8,Home Care,P20,Adult Services,MY WILLOWS - SOMERSET CARE AT HOME LTD,03/10/2019,787.21
Bath and North East Somerset Council,80873062,LM8,Home Care,P20,Adult Services,MY WILLOWS - SOMERSET CARE AT HOME LTD,03/10/2019,1064.15
Bath and North East Somerset Council,80873062,LM8,Home Care,P20,Adult Services,MY WILLOWS - SOMERSET CARE AT HOME LTD,03/10/2019,1272.35
Bath and North East Somerset Council,80873062,LM8,Home Care,P20,Adult Services,MY WILLOWS - SOMERSET CARE AT HOME LTD,03/10/2019,1272.35
Bath and North East Somerset Council,80873062,LM8,Home Care,P20,Adult Services,MY WILLOWS - SOMERSET CARE AT HOME LTD,03/10/2019,1272.35
Bath and North East Somerset Council,80873062,LM8,Home Care,P20,Adult Services,MY WILLOWS - SOMERSET CARE AT HOME LTD,03/10/2019,1459.25
Bath and North East Somerset Council,80873062,LM8,Home Care,P20,Adult Services,MY WILLOWS - SOMERSET CARE AT HOME LTD,03/10/2019,1499.65
Bath and North East Somerset Council,80873062,LM8,Home Care,P20,Adult Services,MY WILLOWS - SOMERSET CARE AT HOME LTD,03/10/2019,1851.3
Bath and North East Somerset Council,80873062,LM8,Home Care,P20,Adult Services,MY WILLOWS - SOMERSET CARE AT HOME LTD,03/10/2019,1889.87
Bath and North East Somerset Council,80873062,LM8,Home Care,P20,Adult Services,MY WILLOWS - SOMERSET CARE AT HOME LTD,03/10/2019,2012.97
Bath and North East Somerset Council,80873062,LM8,Home Care,P20,Adult Services,MY WILLOWS - SOMERSET CARE AT HOME LTD,03/10/2019,2620.43
Bath and North East Somerset Council,80873062,LM8,Home Care,P20,Adult Services,MY WILLOWS - SOMERSET CARE AT HOME LTD,03/10/2019,3686.16
Bath and North East Somerset Council,80873062,LM8,Home Care,P20,Adult Services,MY WILLOWS - SOMERSET CARE AT HOME LTD,03/10/2019,6124
Bath and North East Somerset Council,80873062,LM8,Home Care,P20,Adult Services,MY WILLOWS - SOMERSET CARE AT HOME LTD,03/10/2019,7916.91
Bath and North East Somerset Council,80873062,LM8,Home Care,P20,Adult Services,MY WILLOWS - SOMERSET CARE AT HOME LTD,03/10/2019,14429.24
Bath and North East Somerset Council,10916298,3J2,PCB Consultants,P19,Resources and Deputy Leader,PEOPLE SOURCE CONSULTING LTD,03/10/2019,1530
Bath and North East Somerset Council,80873046,LL3,Supported Living,P20,Adult Services,UNITED RESPONSE,03/10/2019,1618.94
Bath and North East Somerset Council,10916303,KB1,Hire of Vehicles,P22,Climate Emergency & Neighbourhood Services,ROBERTS (BATH) LTD,03/10/2019,1736
Bath and North East Somerset Council,10915777,3E5,PCB IT Hardware,P19,Resources and Deputy Leader,IDOX SOFTWARE LTD,03/10/2019,1770
Bath and North East Somerset Council,10916249,HN1,Electricity,P19,Resources and Deputy Leader,SOUTHERN ELECTRIC PLC,03/10/2019,1821.74
Bath and North East Somerset Council,80873064,LM8,Home Care,P20,Adult Services,ABICARE SERVICES LTD,03/10/2019,1874.88
Bath and North East Somerset Council,80873064,LM8,Home Care,P20,Adult Services,ABICARE SERVICES LTD,03/10/2019,1874.88
Bath and North East Somerset Council,80873064,LM8,Home Care,P20,Adult Services,ABICARE SERVICES LTD,03/10/2019,1874.88
Bath and North East Somerset Council,80873064,LM8,Home Care,P20,Adult Services,ABICARE SERVICES LTD,03/10/2019,1874.88
Bath and North East Somerset Council,10916271,LL1,Services to/for Clients,P21,Childrens Services,ALWAYS PRECIOUS LTD,03/10/2019,2070
Bath and North East Somerset Council,80873042,LM8,Home Care,P20,Adult Services,SOMERSET CARE AT HOME,03/10/2019,34.5
Bath and North East Somerset Council,80873042,LM8,Home Care,P20,Adult Services,SOMERSET CARE AT HOME,03/10/2019,34.5
Bath and North East Somerset Council,80873042,LM8,Home Care,P20,Adult Services,SOMERSET CARE AT HOME,03/10/2019,92
Bath and North East Somerset Council,80873042,LM8,Home Care,P20,Adult Services,SOMERSET CARE AT HOME,03/10/2019,115
Bath and North East Somerset Council,80873042,LM8,Home Care,P20,Adult Services,SOMERSET CARE AT HOME,03/10/2019,138
Bath and North East Somerset Council,80873042,LM8,Home Care,P20,Adult Services,SOMERSET CARE AT HOME,03/10/2019,138
Bath and North East Somerset Council,80873042,LM8,Home Care,P20,Adult Services,SOMERSET CARE AT HOME,03/10/2019,143.75
Bath and North East Somerset Council,80873042,LM8,Home Care,P20,Adult Services,SOMERSET CARE AT HOME,03/10/2019,162.68
Bath and North East Somerset Council,80873042,LM8,Home Care,P20,Adult Services,SOMERSET CARE AT HOME,03/10/2019,184
Bath and North East Somerset Council,80873042,LM8,Home Care,P20,Adult Services,SOMERSET CARE AT HOME,03/10/2019,207
Bath and North East Somerset Council,80873042,LM8,Home Care,P20,Adult Services,SOMERSET CARE AT HOME,03/10/2019,230
Bath and North East Somerset Council,80873042,LM8,Home Care,P20,Adult Services,SOMERSET CARE AT HOME,03/10/2019,230
Bath and North East Somerset Council,80873042,LM8,Home Care,P20,Adult Services,SOMERSET CARE AT HOME,03/10/2019,230
Bath and North East Somerset Council,80873042,LM8,Home Care,P20,Adult Services,SOMERSET CARE AT HOME,03/10/2019,230
Bath and North East Somerset Council,80873042,LM8,Home Care,P20,Adult Services,SOMERSET CARE AT HOME,03/10/2019,253
Bath and North East Somerset Council,80873042,LM8,Home Care,P20,Adult Services,SOMERSET CARE AT HOME,03/10/2019,253
Bath and North East Somerset Council,80873042,LM8,Home Care,P20,Adult Services,SOMERSET CARE AT HOME,03/10/2019,258.75
Bath and North East Somerset Council,80873042,LM8,Home Care,P20,Adult Services,SOMERSET CARE AT HOME,03/10/2019,276
Bath and North East Somerset Council,80873042,LM8,Home Care,P20,Adult Services,SOMERSET CARE AT HOME,03/10/2019,287.5
Bath and North East Somerset Council,80873042,LM8,Home Care,P20,Adult Services,SOMERSET CARE AT HOME,03/10/2019,322
Bath and North East Somerset Council,80873042,LM8,Home Care,P20,Adult Services,SOMERSET CARE AT HOME,03/10/2019,322
Bath and North East Somerset Council,80873042,LM8,Home Care,P20,Adult Services,SOMERSET CARE AT HOME,03/10/2019,368
Bath and North East Somerset Council,80873042,LM8,Home Care,P20,Adult Services,SOMERSET CARE AT HOME,03/10/2019,368
Bath and North East Somerset Council,80873042,LM8,Home Care,P20,Adult Services,SOMERSET CARE AT HOME,03/10/2019,391
Bath and North East Somerset Council,80873042,LM8,Home Care,P20,Adult Services,SOMERSET CARE AT HOME,03/10/2019,396.75
Bath and North East Somerset Council,80873042,LM8,Home Care,P20,Adult Services,SOMERSET CARE AT HOME,03/10/2019,402.5
Bath and North East Somerset Council,80873042,LM8,Home Care,P20,Adult Services,SOMERSET CARE AT HOME,03/10/2019,402.5
Bath and North East Somerset Council,80873042,LM8,Home Care,P20,Adult Services,SOMERSET CARE AT HOME,03/10/2019,414
Bath and North East Somerset Council,80873042,LM8,Home Care,P20,Adult Services,SOMERSET CARE AT HOME,03/10/2019,460
Bath and North East Somerset Council,80873042,LM8,Home Care,P20,Adult Services,SOMERSET CARE AT HOME,03/10/2019,494.5
Bath and North East Somerset Council,80873042,LM8,Home Care,P20,Adult Services,SOMERSET CARE AT HOME,03/10/2019,588.8
Bath and North East Somerset Council,80873042,LM8,Home Care,P20,Adult Services,SOMERSET CARE AT HOME,03/10/2019,614.72
Bath and North East Somerset Council,80873042,LM8,Home Care,P20,Adult Services,SOMERSET CARE AT HOME,03/10/2019,644
Bath and North East Somerset Council,80873042,LM8,Home Care,P20,Adult Services,SOMERSET CARE AT HOME,03/10/2019,736
Bath and North East Somerset Council,80873042,LM8,Home Care,P20,Adult Services,SOMERSET CARE AT HOME,03/10/2019,779.9
Bath and North East Somerset Council,80873042,LM8,Home Care,P20,Adult Services,SOMERSET CARE AT HOME,03/10/2019,787.75
Bath and North East Somerset Council,80873042,LM8,Home Care,P20,Adult Services,SOMERSET CARE AT HOME,03/10/2019,805
Bath and North East Somerset Council,80873042,LM8,Home Care,P20,Adult Services,SOMERSET CARE AT HOME,03/10/2019,851
Bath and North East Somerset Council,80873042,LM8,Home Care,P20,Adult Services,SOMERSET CARE AT HOME,03/10/2019,920
Bath and North East Somerset Council,80873042,LM8,Home Care,P20,Adult Services,SOMERSET CARE AT HOME,03/10/2019,989
Bath and North East Somerset Council,80873042,LM8,Home Care,P20,Adult Services,SOMERSET CARE AT HOME,03/10/2019,1063.75
Bath and North East Somerset Council,80873042,LM8,Home Care,P20,Adult Services,SOMERSET CARE AT HOME,03/10/2019,1219
Bath and North East Somerset Council,80873042,LM8,Home Care,P20,Adult Services,SOMERSET CARE AT HOME,03/10/2019,1265
Bath and North East Somerset Council,80873042,LM8,Home Care,P20,Adult Services,SOMERSET CARE AT HOME,03/10/2019,1598.5
Bath and North East Somerset Council,80873042,LM8,Home Care,P20,Adult Services,SOMERSET CARE AT HOME,03/10/2019,2254
Bath and North East Somerset Council,80873042,LM8,Home Care,P20,Adult Services,SOMERSET CARE AT HOME,03/10/2019,2576
Bath and North East Somerset Council,80873042,LM8,Home Care,P20,Adult Services,SOMERSET CARE AT HOME,03/10/2019,2591.34
Bath and North East Somerset Council,80873042,LM8,Home Care,P20,Adult Services,SOMERSET CARE AT HOME,03/10/2019,2597.32
Bath and North East Somerset Council,80873042,LM8,Home Care,P20,Adult Services,SOMERSET CARE AT HOME,03/10/2019,2645
Bath and North East Somerset Council,80873042,LM8,Home Care,P20,Adult Services,SOMERSET CARE AT HOME,03/10/2019,2806
Bath and North East Somerset Council,80873042,LM8,Home Care,P20,Adult Services,SOMERSET CARE AT HOME,03/10/2019,2829
Bath and North East Somerset Council,80873042,LM8,Home Care,P20,Adult Services,SOMERSET CARE AT HOME,03/10/2019,2927.28
Bath and North East Somerset Council,80873042,LM8,Home Care,P20,Adult Services,SOMERSET CARE AT HOME,03/10/2019,3013
Bath and North East Somerset Council,80873042,LM8,Home Care,P20,Adult Services,SOMERSET CARE AT HOME,03/10/2019,3208.5
Bath and North East Somerset Council,80873042,LM8,Home Care,P20,Adult Services,SOMERSET CARE AT HOME,03/10/2019,3220
Bath and North East Somerset Council,80873042,LM8,Home Care,P20,Adult Services,SOMERSET CARE AT HOME,03/10/2019,3252.2
Bath and North East Somerset Council,80873042,LM8,Home Care,P20,Adult Services,SOMERSET CARE AT HOME,03/10/2019,3659.1
Bath and North East Somerset Council,80873042,LM8,Home Care,P20,Adult Services,SOMERSET CARE AT HOME,03/10/2019,4025
Bath and North East Somerset Council,80873051,LM8,Home Care,P20,Adult Services,SOMERSET CARE AT HOME LTD,03/10/2019,513
Bath and North East Somerset Council,80873051,LM8,Home Care,P20,Adult Services,SOMERSET CARE AT HOME LTD,03/10/2019,798
Bath and North East Somerset Council,10916191,LV1,Grants to Voluntary Bodies,P25,Transport Services,ST PHILLIPS COMMUNITY MINIBUS,03/10/2019,1172.5
Bath and North East Somerset Council,80874034,PG1,Rent Allowances,P19,Resources and Deputy Leader,SUPPORTED INDEPENDENCE LTD,03/10/2019,942.32
Bath and North East Somerset Council,10916247,HA3,Planned Maintenance,P24,Community Services,CHG SOUTHWEST LTD,03/10/2019,3740
Bath and North East Somerset Council,10916352,LK1,Fees,P24,Community Services,NBC BIRD & PEST SOLUTIONS,03/10/2019,3800
Bath and North East Somerset Council,10916163,3G1,Grants/Advances,P23,"Housing, Planning & Economic Development",CLOSOMAT LTD,03/10/2019,4055
Bath and North East Somerset Council,10916164,LV1,Grants to Voluntary Bodies,P25,Transport Services,SWAN ADVICE NETWORK,03/10/2019,3857.75
Bath and North East Somerset Council,80873050,LM6,Nursing Care,P20,Adult Services,NEWCROSS HEALTHCARE SOLUTIONS LTD,03/10/2019,4084.92
Bath and North East Somerset Council,10916235,LJ1,Consultants Fees,P23,"Housing, Planning & Economic Development",MACE LIMITED,03/10/2019,4800
Bath and North East Somerset Council,10914841,LK1,Fees,P21,Childrens Services,ALWAYS PRECIOUS LTD,03/10/2019,5013.3
Bath and North East Somerset Council,80873067,LL3,Supported Living,P20,Adult Services,UNITED RESPONSE SERVICES LTD,03/10/2019,2000.38
Bath and North East Somerset Council,80873067,LL3,Supported Living,P20,Adult Services,UNITED RESPONSE SERVICES LTD,03/10/2019,15562.4
Bath and North East Somerset Council,80873067,LL3,Supported Living,P20,Adult Services,UNITED RESPONSE SERVICES LTD,03/10/2019,15562.4
Bath and North East Somerset Council,10916210,LJ1,Consultants Fees,P22,Climate Emergency & Neighbourhood Services,FAUN ZOELLOR UK LTD,03/10/2019,6666.67
Bath and North East Somerset Council,10916196,3F7,PCB External Fees,P19,Resources and Deputy Leader,CARTER JONAS LLP,03/10/2019,7525
Bath and North East Somerset Council,10915474,LK1,Fees,P21,Childrens Services,KEY2 FUTURES LTD,03/10/2019,7559.66
Bath and North East Somerset Council,10916273,LL3,Supported Living,P20,Adult Services,SEAP,03/10/2019,10693
Bath and North East Somerset Council,10916198,LV1,Grants to Voluntary Bodies,P25,Transport Services,BATH COMMUNITY TRANSPORT,03/10/2019,12349.25
Bath and North East Somerset Council,10915707,LL3,Supported Living,P20,Adult Services,JULIAN HOUSE NIGHT SHELTER,03/10/2019,13061.05
Bath and North East Somerset Council,10916161,3G1,Grants/Advances,P23,"Housing, Planning & Economic Development",MARK NASH LTD,03/10/2019,13823.8
Bath and North East Somerset Council,10916192,LJ4,Contracts,P20,Adult Services,NHW ASSOCIATES LTD,03/10/2019,14700
Bath and North East Somerset Council,10915871,3E5,PCB IT Hardware,P19,Resources and Deputy Leader,BIBLIOTHECA,03/10/2019,15890
Bath and North East Somerset Council,10915481,3E6,IT Software,P21,Childrens Services,LIQUIDLOGIC LIMITED,03/10/2019,16500
Bath and North East Somerset Council,10916194,LV1,Grants to Voluntary Bodies,P25,Transport Services,KEYNSHAM & DISTRICT DIAL-A-RIDE,03/10/2019,21112.5
Bath and North East Somerset Council,10916166,LV1,Grants to Voluntary Bodies,P25,Transport Services,WELLOW COMMUNITY BUS GROUP,03/10/2019,1181.5
Bath and North East Somerset Council,10916193,LV1,Grants to Voluntary Bodies,P25,Transport Services,MIDSOMER NORTON & RADSTOCK DIAL A RIDE,03/10/2019,26827.75
Bath and North East Somerset Council,80874176,LA7,Purchases for Resale,P24,Community Services,WESTAIR REPRODUCTIONS LIMITED,07/10/2019,13.3
Bath and North East Somerset Council,10916301,3F7,PCB External Fees,P23,"Housing, Planning & Economic Development",BRYAN CAVE LEIGHTON PAISNER LLP,07/10/2019,19
Bath and North East Somerset Council,80874198,LA7,Purchases for Resale,P24,Community Services,TEMPLE ISLAND COLLECTIONS,07/10/2019,88.8
Bath and North East Somerset Council,10916403,HP6,Water Charges,P24,Community Services,WATER2BUSINESS,07/10/2019,105.52
Bath and North East Somerset Council,10916572,LL1,Services to/for Clients,P23,"Housing, Planning & Economic Development",ABBEY TAXIS LIMITED,07/10/2019,187.8
Bath and North East Somerset Council,80874169,LA7,Purchases for Resale,P24,Community Services,J & N PRODUCTS,07/10/2019,205.2
Bath and North East Somerset Council,80874169,LA7,Purchases for Resale,P24,Community Services,J & N PRODUCTS,07/10/2019,205.2
Bath and North East Somerset Council,80874199,LA7,Purchases for Resale,P24,Community Services,F H SWIFT,07/10/2019,243.6
Bath and North East Somerset Council,10916572,LL1,Services to/for Clients,P23,"Housing, Planning & Economic Development",ABBEY TAXIS LIMITED,07/10/2019,273.8
Bath and North East Somerset Council,10916549,LK1,Fees,P24,Community Services,SEARCY TANSLEY & CO LTD,07/10/2019,371.76
Bath and North East Somerset Council,80874169,LA7,Purchases for Resale,P24,Community Services,J & N PRODUCTS,07/10/2019,410.4
Bath and North East Somerset Council,10916449,3C4,Building Works,P19,Resources and Deputy Leader,MANNINGS FACILITIES MANAGEMENT LTD,07/10/2019,420.55
Bath and North East Somerset Council,10916127,HA1,Responsive Maintenance,P24,Community Services,N K S CONTRACTS LTD,07/10/2019,431.33
Bath and North East Somerset Council,80874161,LA7,Purchases for Resale,P24,Community Services,MILLARS ARK TOYS LTD,07/10/2019,432
Bath and North East Somerset Council,10916611,LF1,Printing/Design,P19,Resources and Deputy Leader,TAYLOR BROTHERS BRISTOL LTD,07/10/2019,463
Bath and North East Somerset Council,10916535,LK1,Fees,P23,"Housing, Planning & Economic Development",OFFICE WATERCOOLERS LTD,07/10/2019,474.96
Bath and North East Somerset Council,80874207,LA7,Purchases for Resale,P24,Community Services,ROMAN CANDLES OF BATH LTD,07/10/2019,479.04
Bath and North East Somerset Council,10916627,3F7,PCB External Fees,P21,Childrens Services,MDA CONSULTING LTD,07/10/2019,487.14
Bath and North East Somerset Council,10916628,3F7,PCB External Fees,P21,Childrens Services,MDA CONSULTING LTD,07/10/2019,487.14
Bath and North East Somerset Council,80874187,LA7,Purchases for Resale,P24,Community Services,COTSWOLD LAVENDER,07/10/2019,490.6
Bath and North East Somerset Council,10916641,KA1,Repairs & Maintenance,P22,Climate Emergency & Neighbourhood Services,TRUCTYRE FLEET MANAGEMENT LTD,07/10/2019,497.82
Bath and North East Somerset Council,10916441,3C4,Building Works,P25,Transport Services,SURVEYBASE LTD,07/10/2019,500
Bath and North East Somerset Council,10916574,LM1,Volunt Homes Placements Top/Up,P21,Childrens Services,THORNBURY NURSING SERVICES,07/10/2019,506.72
Bath and North East Somerset Council,80874206,LA7,Purchases for Resale,P24,Community Services,RB CERAMICS LTD,07/10/2019,507.5
Bath and North East Somerset Council,10916316,HV3,Window Cleaning,P19,Resources and Deputy Leader,ABC WINDOW CLEANING SERVICES,07/10/2019,511
Bath and North East Somerset Council,10916201,LK1,Fees,P25,Transport Services,ASHFORDS LLP OFFICE ACCOUNT,07/10/2019,513
Bath and North East Somerset Council,10916402,3F7,PCB External Fees,P19,Resources and Deputy Leader,CAPITA SYMONDS,07/10/2019,516.6
Bath and North East Somerset Council,80874190,LA7,Purchases for Resale,P24,Community Services,HOT TOMATO LTD,07/10/2019,528
Bath and North East Somerset Council,80874184,LA7,Purchases for Resale,P24,Community Services,BILL SKINNER STUDIO LTD,07/10/2019,532.5
Bath and North East Somerset Council,10916385,HP6,Water Charges,P24,Community Services,WATER2BUSINESS,07/10/2019,535.98
Bath and North East Somerset Council,80874178,LA7,Purchases for Resale,P24,Community Services,FLAME & FRAGRANCE LTD,07/10/2019,538.92
Bath and North East Somerset Council,10916555,EA1,Training,P19,Resources and Deputy Leader,ICCM,07/10/2019,540
Bath and North East Somerset Council,10916556,LK1,Fees,P19,Resources and Deputy Leader,GBS RE DBS POA,07/10/2019,572
Bath and North East Somerset Council,10916607,HE1,General Maintenance,P25,Transport Services,BUS SHELTERS LTD,07/10/2019,588.5
Bath and North East Somerset Council,10916640,KA1,Repairs & Maintenance,P22,Climate Emergency & Neighbourhood Services,TRUCTYRE FLEET MANAGEMENT LTD,07/10/2019,594.87
Bath and North East Somerset Council,10916453,EA1,Training,P19,Resources and Deputy Leader,SHELTER TRAINING,07/10/2019,620
Bath and North East Somerset Council,80874192,LA7,Purchases for Resale,P24,Community Services,ONE HUNDRED STARS TRADING LTD,07/10/2019,624
Bath and North East Somerset Council,80874185,LA7,Purchases for Resale,P24,Community Services,CHRIS ANDREWS PUBLICATIONS LTD,07/10/2019,650
Bath and North East Somerset Council,10916076,LA5,Materials,P24,Community Services,SORBUS INTERNATIONAL LTD,07/10/2019,652.65
Bath and North East Somerset Council,10916528,3J2,PCB Consultants,P19,Resources and Deputy Leader,PEOPLE SOURCE CONSULTING LTD,07/10/2019,659.75
Bath and North East Somerset Council,10916644,LJ4,Contracts,P22,Climate Emergency & Neighbourhood Services,P C JONES,07/10/2019,701.88
Bath and North East Somerset Council,10916497,LP5,Software Support,P19,Resources and Deputy Leader,METRIC GROUP LIMITED,07/10/2019,702
Bath and North East Somerset Council,10916498,LP5,Software Support,P19,Resources and Deputy Leader,METRIC GROUP LIMITED,07/10/2019,702
Bath and North East Somerset Council,10916473,LA5,Materials,P24,Community Services,WILLIAMS-BATH,07/10/2019,703.5
Bath and North East Somerset Council,10916162,3C4,Building Works,P19,Resources and Deputy Leader,BUILDING MANAGEMENT SOLUTIONS INTEGRATORS LIMITED,07/10/2019,719.63
Bath and North East Somerset Council,10916537,LM1,Volunt Homes Placements Top/Up,P21,Childrens Services,THE FOSTERING FOUNDATION  LTD,07/10/2019,720
Bath and North East Somerset Council,80874179,LA7,Purchases for Resale,P24,Community Services,FLAME & FRAGRANCE LTD,07/10/2019,720.96
Bath and North East Somerset Council,10916666,HE5,Security of Premises,P25,Transport Services,SAFE AND SOUND UK LIMITED,07/10/2019,728
Bath and North East Somerset Council,10916330,LL2,Personal Needs of Clients,P19,Resources and Deputy Leader,MR VINCENT P SMITH,07/10/2019,733.19
Bath and North East Somerset Council,80874182,LA7,Purchases for Resale,P24,Community Services,BILL SKINNER STUDIO LTD,07/10/2019,745
Bath and North East Somerset Council,80874162,LA7,Purchases for Resale,P24,Community Services,CHALICE MEAD LTD,07/10/2019,768
Bath and North East Somerset Council,10916414,PB4,Payments to Private Contractors,P22,Climate Emergency & Neighbourhood Services,ENVIRONMENTAL CONCERN LTD,07/10/2019,790.5
Bath and North East Somerset Council,10916415,PB4,Payments to Private Contractors,P22,Climate Emergency & Neighbourhood Services,ENVIRONMENTAL CONCERN LTD,07/10/2019,790.5
Bath and North East Somerset Council,10916416,PB4,Payments to Private Contractors,P22,Climate Emergency & Neighbourhood Services,ENVIRONMENTAL CONCERN LTD,07/10/2019,790.5
Bath and North East Somerset Council,10916362,LF5,Postages,P19,Resources and Deputy Leader,WHISTL UK LTD,07/10/2019,799.83
Bath and North East Somerset Council,10916505,LA2,Training Materials,P20,Adult Services,GRASSROOTS SUICIDE PREVENTION,07/10/2019,806
Bath and North East Somerset Council,80874193,LA7,Purchases for Resale,P24,Community Services,ONE HUNDRED STARS TRADING LTD,07/10/2019,814
Bath and North East Somerset Council,80874196,LA7,Purchases for Resale,P24,Community Services,TEMPLE ISLAND COLLECTIONS,07/10/2019,817.95
Bath and North East Somerset Council,10916564,LJ1,Consultants Fees,P20,Adult Services,BRISTOL MIND,07/10/2019,819.3
Bath and North East Somerset Council,10915657,LA1,Equipment Purchase,P24,Community Services,GEORGE CARR & SONS (SAWS) LTD,07/10/2019,836.85
Bath and North East Somerset Council,10916178,3E5,PCB IT Hardware,P23,"Housing, Planning & Economic Development",AVON ALARMS LIMITED,07/10/2019,875
Bath and North East Somerset Council,80874209,LA7,Purchases for Resale,P24,Community Services,TEMPLE ISLAND COLLECTIONS,07/10/2019,882
Bath and North East Somerset Council,10916369,KE3,Transport & Travel,P19,Resources and Deputy Leader,CLICK TRAVEL LTD,07/10/2019,887.7
Bath and North East Somerset Council,80874197,LA7,Purchases for Resale,P24,Community Services,TEMPLE ISLAND COLLECTIONS,07/10/2019,946.6
Bath and North East Somerset Council,10915909,HV4,Cleaning Materials,P19,Resources and Deputy Leader,PHS GROUP LTD,07/10/2019,963.48
Bath and North East Somerset Council,10916403,HP6,Water Charges,P24,Community Services,WATER2BUSINESS,07/10/2019,989.19
Bath and North East Somerset Council,80874188,LA7,Purchases for Resale,P24,Community Services,ECO BATH LONDON LTD,07/10/2019,1021.5
Bath and North East Somerset Council,10916532,EA1,Training,P19,Resources and Deputy Leader,SHELTER TRAINING,07/10/2019,1027.02
Bath and North East Somerset Council,10916360,3F7,PCB External Fees,P19,Resources and Deputy Leader,CAPITA SYMONDS,07/10/2019,1033.2
Bath and North East Somerset Council,10916371,3F7,PCB External Fees,P23,"Housing, Planning & Economic Development",CAPITA SYMONDS,07/10/2019,1033.2
Bath and North East Somerset Council,80874199,LA7,Purchases for Resale,P24,Community Services,F H SWIFT,07/10/2019,1044
Bath and North East Somerset Council,80874201,LA7,Purchases for Resale,P24,Community Services,CHALICE MEAD LTD,07/10/2019,1056
Bath and North East Somerset Council,10916595,3F7,PCB External Fees,P24,Community Services,EDMOND SHIPWAY LLP,07/10/2019,1070
Bath and North East Somerset Council,10916129,HP3,Room Hire Charges,P24,Community Services,N K S CONTRACTS LTD,07/10/2019,1080
Bath and North East Somerset Council,10916594,LK3,PCB Fees (paid),P19,Resources and Deputy Leader,ANSTEY HORNE & CO (BRISTOL) LIMITED,07/10/2019,1083
Bath and North East Somerset Council,10911822,LA5,Materials,P24,Community Services,GLASDON UK LIMITED,07/10/2019,1086.36
Bath and North East Somerset Council,80874165,LA7,Purchases for Resale,P24,Community Services,D&X LTD,07/10/2019,1182
Bath and North East Somerset Council,80874174,LA7,Purchases for Resale,P24,Community Services,THE ADAMS IMPORT CO LTD T/A SUZIE BLUE JEWELLERY,07/10/2019,1216.2
Bath and North East Somerset Council,10915867,3E4,Furniture/Equipment,P24,Community Services,GOOD DIRECTIONS LTD,07/10/2019,1237.5
Bath and North East Somerset Council,10913504,LA5,Materials,P24,Community Services,BROXAP LIMITED,07/10/2019,1240
Bath and North East Somerset Council,80874205,LA7,Purchases for Resale,P24,Community Services,PRODIR LTD,07/10/2019,1287
Bath and North East Somerset Council,80874181,LA7,Purchases for Resale,P24,Community Services,BIG METAL,07/10/2019,1397.85
Bath and North East Somerset Council,10916549,LK1,Fees,P24,Community Services,SEARCY TANSLEY & CO LTD,07/10/2019,1402.32
Bath and North East Somerset Council,10916236,LV2,Contributions to Organisations,P19,Resources and Deputy Leader,NATIONAL HERITAGE IRONWORK GROUP,07/10/2019,12300
Bath and North East Somerset Council,10916515,DB1,Agency Staff,P22,Climate Emergency & Neighbourhood Services,M4 RECRUITMENT LTD,07/10/2019,1564.92
Bath and North East Somerset Council,10916581,LX6,Bus Revenue Support,P25,Transport Services,FARESAVER,07/10/2019,1583.33
Bath and North East Somerset Council,10916527,LJ4,Contracts,P25,Transport Services,BBFI LTD,07/10/2019,1600
Bath and North East Somerset Council,10916399,LK1,Fees,P20,Adult Services,EIGHTBALL CONSULTANCY LTD,07/10/2019,1600
Bath and North East Somerset Council,10916382,HP6,Water Charges,P24,Community Services,WATER2BUSINESS,07/10/2019,1604.7
Bath and North East Somerset Council,10916274,HK1,Highway Maintenance,P25,Transport Services,SAKNEL HIGHWAYS STRUCTURES CONTRACTOR,07/10/2019,1658
Bath and North East Somerset Council,80874176,LA7,Purchases for Resale,P24,Community Services,WESTAIR REPRODUCTIONS LIMITED,07/10/2019,1676.7
Bath and North East Somerset Council,80874211,LA7,Purchases for Resale,P24,Community Services,WESTAIR REPRODUCTIONS LIMITED,07/10/2019,1687.96
Bath and North East Somerset Council,10916455,LJ4,Contracts,P21,Childrens Services,MENTORING PLUS BATH AND NE SOMERSET LTD,07/10/2019,1693.29
Bath and North East Somerset Council,10916154,LP8,SPARE - never used,P19,Resources and Deputy Leader,SOFTCAT LTD,07/10/2019,1705.2
Bath and North East Somerset Council,10916130,HA3,Planned Maintenance,P24,Community Services,N K S CONTRACTS LTD,07/10/2019,1821.07
Bath and North East Somerset Council,10916561,LM1,Volunt Homes Placements Top/Up,P21,Childrens Services,THORNBURY NURSING SERVICES,07/10/2019,1846.84
Bath and North East Somerset Council,10916379,KB1,Hire of Vehicles,P22,Climate Emergency & Neighbourhood Services,DAWSON RENTALS SWEEPERS,07/10/2019,1960
Bath and North East Somerset Council,80874337,LE1,Education Payment (independent school),P21,Childrens Services,CHURCHFIELDS THE VILLAGE SCHOOL,07/10/2019,2000
Bath and North East Somerset Council,80874198,LA7,Purchases for Resale,P24,Community Services,TEMPLE ISLAND COLLECTIONS,07/10/2019,2015.4
Bath and North East Somerset Council,80874336,LK4,Nursery/Childcare Vouchers,P21,Childrens Services,SNAPDRAGONS SHIREHAMPTON,07/10/2019,620
Bath and North East Somerset Council,10916217,LK1,Fees,P25,Transport Services,ASHFORDS LLP OFFICE ACCOUNT,07/10/2019,2222
Bath and North East Somerset Council,10916418,3F7,PCB External Fees,P24,Community Services,CONSTRUCTION PLANNING ASSOCIATES,07/10/2019,2250
Bath and North East Somerset Council,10916380,LJ4,Contracts,P20,Adult Services,Dr Blackwell & Partners,07/10/2019,2250
Bath and North East Somerset Council,10916333,HK1,Highway Maintenance,P25,Transport Services,SAKNEL HIGHWAYS STRUCTURES CONTRACTOR,07/10/2019,2340
Bath and North East Somerset Council,10916585,EA1,Training,P25,Transport Services,ALPHA PARKING LTD,07/10/2019,2390
Bath and North East Somerset Council,80874328,LK4,Nursery/Childcare Vouchers,P21,Childrens Services,STAGECOACH BRISTOL SOUTH WEST,07/10/2019,504
Bath and North East Somerset Council,10916174,3G1,Grants/Advances,P23,"Housing, Planning & Economic Development",TPM (SOUTH WEST) LTD,07/10/2019,2837
Bath and North East Somerset Council,10916368,3F7,PCB External Fees,P19,Resources and Deputy Leader,MANNINGS FACILITIES MANAGEMENT LTD,07/10/2019,2978.49
Bath and North East Somerset Council,10916359,3F7,PCB External Fees,P19,Resources and Deputy Leader,CAPITA SYMONDS,07/10/2019,3099.6
Bath and North East Somerset Council,10916128,HA3,Planned Maintenance,P24,Community Services,N K S CONTRACTS LTD,07/10/2019,3154.81
Bath and North East Somerset Council,10916327,3F7,PCB External Fees,P23,"Housing, Planning & Economic Development",BRYAN CAVE LEIGHTON PAISNER LLP,07/10/2019,3216.4
Bath and North East Somerset Council,80874195,LA7,Purchases for Resale,P24,Community Services,ST NICOLAS,07/10/2019,3221.2
Bath and North East Somerset Council,10916373,LN9,IT Security,P19,Resources and Deputy Leader,VODAFONE LTD FORMERLY CABLE & WIRELESS,07/10/2019,3457.6
Bath and North East Somerset Council,10916173,3G1,Grants/Advances,P23,"Housing, Planning & Economic Development",ANDREW MAISEY,07/10/2019,3665
Bath and North East Somerset Council,10916521,EA1,Training,P23,"Housing, Planning & Economic Development",CARDIFF UNIVERSITY,07/10/2019,3975
Bath and North East Somerset Council,10916573,LM1,Volunt Homes Placements Top/Up,P21,Childrens Services,THORNBURY NURSING SERVICES,07/10/2019,4070.19
Bath and North East Somerset Council,10916274,HK1,Highway Maintenance,P25,Transport Services,SAKNEL HIGHWAYS STRUCTURES CONTRACTOR,07/10/2019,4073.1
Bath and North East Somerset Council,10916333,HK1,Highway Maintenance,P25,Transport Services,SAKNEL HIGHWAYS STRUCTURES CONTRACTOR,07/10/2019,4152.05
Bath and North East Somerset Council,10916182,HK1,Highway Maintenance,P25,Transport Services,AVON ALARMS LIMITED,07/10/2019,4556
Bath and North East Somerset Council,10916569,LM1,Volunt Homes Placements Top/Up,P21,Childrens Services,THORNBURY NURSING SERVICES,07/10/2019,4757.67
Bath and North East Somerset Council,10916302,3F7,PCB External Fees,P23,"Housing, Planning & Economic Development",BRYAN CAVE LEIGHTON PAISNER LLP,07/10/2019,4904.6
Bath and North East Somerset Council,10916575,3C4,Building Works,P24,Community Services,CLIVEDEN CONSERVATION WORKSHOP,07/10/2019,4955
Bath and North East Somerset Council,10916372,3F7,PCB External Fees,P24,Community Services,BBA ARCHITECTS,07/10/2019,5000
Bath and North East Somerset Council,10916465,LK1,Fees,Z99,Outside Revenue Accounts,MARSH UK LTD,07/10/2019,5000
Bath and North East Somerset Council,10916546,LJ4,Contracts,P24,Community Services,ACOUSTIGUIDE LTD,07/10/2019,5036.85
Bath and North East Somerset Council,10916596,3F7,PCB External Fees,P19,Resources and Deputy Leader,N K S CONTRACTS LTD,07/10/2019,5084.41
Bath and North East Somerset Council,10916231,LA3,Equipment Maintenance,P24,Community Services,SUTCLIFFE PLAY (SOUTH WEST) LTD,07/10/2019,5329
Bath and North East Somerset Council,10916357,3F7,PCB External Fees,P21,Childrens Services,BBA ARCHITECTS,07/10/2019,6575
Bath and North East Somerset Council,10916417,LK1,Fees,P20,Adult Services,DEVELOPING HEALTH AND INDEPENDENCE,07/10/2019,8175
Bath and North East Somerset Council,10916183,3C4,Building Works,P19,Resources and Deputy Leader,DAWSON STEEPLEJACKS LTD,07/10/2019,8516
Bath and North East Somerset Council,10916301,3F7,PCB External Fees,P23,"Housing, Planning & Economic Development",BRYAN CAVE LEIGHTON PAISNER LLP,07/10/2019,8640.8
Bath and North East Somerset Council,10916118,LK1,Fees,P25,Transport Services,ATKINS LTD,07/10/2019,8680
Bath and North East Somerset Council,10916458,KA3,Fuel,P22,Climate Emergency & Neighbourhood Services,ALLSTAR BUSINESS SOLUTIONS LTD,07/10/2019,9765.14
Bath and North East Somerset Council,10916571,LM1,Volunt Homes Placements Top/Up,P21,Childrens Services,THORNBURY NURSING SERVICES,07/10/2019,10052.79
Bath and North East Somerset Council,10916369,KE3,Transport & Travel,P19,Resources and Deputy Leader,CLICK TRAVEL LTD,07/10/2019,10165.12
Bath and North East Somerset Council,10916377,HP1,Rent Payable,P19,Resources and Deputy Leader,E T PARKER (MANAGEMENT) LTD,07/10/2019,12250
Bath and North East Somerset Council,10916580,LJ1,Consultants Fees,P19,Resources and Deputy Leader,ARLINGCLOSE LTD,07/10/2019,13000
Bath and North East Somerset Council,10916051,LJ4,Contracts,P20,Adult Services,SIRONA CARE & HEALTH C.I.C.,07/10/2019,17083.33
Bath and North East Somerset Council,10916536,LJ4,Contracts,P23,"Housing, Planning & Economic Development",COOL VENTURES LTD,07/10/2019,18366
Bath and North East Somerset Council,10916467,EC9,Other Employee Expenses,P19,Resources and Deputy Leader,CORDELL HEALTH LTD,07/10/2019,18802.5
Bath and North East Somerset Council,10916383,3V1,Vehicle Purchase,P25,Transport Services,AEBI SCHMIDT UK LIMITED,07/10/2019,20649
Bath and North East Somerset Council,10916539,LM2,Foster Carer Allowances,P21,Childrens Services,ENHANCED LEARNING SERVICES LTD,07/10/2019,22533.33
Bath and North East Somerset Council,10916636,LJ4,Contracts,P20,Adult Services,SIRONA CARE & HEALTH C.I.C.,07/10/2019,25236.67
Bath and North East Somerset Council,10916546,LJ4,Contracts,P24,Community Services,ACOUSTIGUIDE LTD,07/10/2019,30407
Bath and North East Somerset Council,10916472,LJ4,Contracts,P21,Childrens Services,SOUTHSIDE FAMILY PROJECT,07/10/2019,32329.43
Bath and North East Somerset Council,10916358,3C4,Building Works,P21,Childrens Services,M D BUILDING SERVICES LTD,07/10/2019,33302.53
Bath and North East Somerset Council,10916451,3N7,PCB Misc. Costs,P24,Community Services,MANNINGS FACILITIES MANAGEMENT LTD,07/10/2019,35867.58
Bath and North East Somerset Council,10916570,LJ4,Contracts,P20,Adult Services,VIRGIN CARE SERVICES LTD,07/10/2019,41114
Bath and North East Somerset Council,10916454,LJ4,Contracts,P21,Childrens Services,MENTORING PLUS BATH AND NE SOMERSET LTD,07/10/2019,44675.46
Bath and North East Somerset Council,10916355,DB1,Agency Staff,P19,Resources and Deputy Leader,COMENSURA LTD,07/10/2019,58926.9
Bath and North East Somerset Council,10916389,LJ4,Contracts,P20,Adult Services,ROYAL UNITED HOSPITAL NHS TRUST,07/10/2019,59531.45
Bath and North East Somerset Council,10916381,3V1,Vehicle Purchase,P25,Transport Services,AEBI SCHMIDT UK LIMITED,07/10/2019,115796
Bath and North East Somerset Council,10916384,3V1,Vehicle Purchase,P25,Transport Services,AEBI SCHMIDT UK LIMITED,07/10/2019,242563
Bath and North East Somerset Council,10916386,3V1,Vehicle Purchase,P25,Transport Services,AEBI SCHMIDT UK LIMITED,07/10/2019,414985
Bath and North East Somerset Council,80874375,LL5,Adoption Allowances,P21,Childrens Services,REDACTED,09/10/2019,286
Bath and North East Somerset Council,80874375,LL5,Adoption Allowances,P21,Childrens Services,REDACTED,09/10/2019,325.78
Bath and North East Somerset Council,80874409,KE3,Transport & Travel,P21,Childrens Services,REDACTED,09/10/2019,148.05
Bath and North East Somerset Council,80874409,LM2,Foster Carer Allowances,P21,Childrens Services,REDACTED,09/10/2019,150
Bath and North East Somerset Council,80874409,LM2,Foster Carer Allowances,P21,Childrens Services,REDACTED,09/10/2019,250
Bath and North East Somerset Council,80874409,LM2,Foster Carer Allowances,P21,Childrens Services,REDACTED,09/10/2019,430
Bath and North East Somerset Council,10916767,LP4,Software Purchase,P22,Climate Emergency & Neighbourhood Services,AVORIA LIMITED T/A PENNINE TELECOM,09/10/2019,100
Bath and North East Somerset Council,10916655,LH2,Advertising,P19,Resources and Deputy Leader,COLOUR STUDIOS LTD,09/10/2019,420
Bath and North East Somerset Council,10916715,KB1,Hire of Vehicles,P22,Climate Emergency & Neighbourhood Services,LINDE SEVERNSIDE LTD,09/10/2019,423.52
Bath and North East Somerset Council,80872148,LA7,Purchases for Resale,P24,Community Services,M & R CREATIVE DESIGNS LTD T/A GREEN PEBBLE,09/10/2019,451.2
Bath and North East Somerset Council,10916732,3C4,Building Works,P25,Transport Services,CLIFTON SURVEYS LTD,09/10/2019,472.5
Bath and North East Somerset Council,10916732,3C4,Building Works,P25,Transport Services,CLIFTON SURVEYS LTD,09/10/2019,472.5
Bath and North East Somerset Council,10916706,LJ2,Legal Fees,P21,Childrens Services,MR ALEX HODGE,09/10/2019,500
Bath and North East Somerset Council,10916788,LJ3,Other Services to the Council,P20,Adult Services,GREAT WESTERN HOSPITALS NHS FOUNDATION TRUST,09/10/2019,530.5
Bath and North East Somerset Council,10916122,HK1,Highway Maintenance,P25,Transport Services,CRADOCK & SON,09/10/2019,532
Bath and North East Somerset Council,80874411,LL5,Adoption Allowances,P21,Childrens Services,REDACTED,09/10/2019,256.96
Bath and North East Somerset Council,80874411,LL5,Adoption Allowances,P21,Childrens Services,REDACTED,09/10/2019,256.96
Bath and North East Somerset Council,80874411,LL5,Adoption Allowances,P21,Childrens Services,REDACTED,09/10/2019,256.96
Bath and North East Somerset Council,10916740,LJ4,Contracts,P22,Climate Emergency & Neighbourhood Services,ROMAQUIP LTD,09/10/2019,564.1
Bath and North East Somerset Council,10916419,HP6,Water Charges,P19,Resources and Deputy Leader,WATER2BUSINESS,09/10/2019,598.4
Bath and North East Somerset Council,10916745,LJ2,Legal Fees,P21,Childrens Services,ABIGAIL BOND,09/10/2019,600
Bath and North East Somerset Council,10914378,LK1,Fees,P21,Childrens Services,ONCALL INTERPRETERS,09/10/2019,645.3
Bath and North East Somerset Council,10916692,LJ4,Contracts,P22,Climate Emergency & Neighbourhood Services,MOTUS COMMERCIALS LTD,09/10/2019,662.82
Bath and North East Somerset Council,10916693,LJ4,Contracts,P22,Climate Emergency & Neighbourhood Services,MOTUS COMMERCIALS LTD,09/10/2019,662.82
Bath and North East Somerset Council,10916718,LJ2,Legal Fees,P21,Childrens Services,DNA LEGAL LTD,09/10/2019,701
Bath and North East Somerset Council,10916631,HP8,Service Charges,P19,Resources and Deputy Leader,AK LLP CLIENT RE BRISTOL BUSINESS PARK MA,09/10/2019,747
Bath and North East Somerset Council,10916712,LW9,Other Expenses,P19,Resources and Deputy Leader,CYCLESCHEME LTD,09/10/2019,810
Bath and North East Somerset Council,10916760,KB1,Hire of Vehicles,P22,Climate Emergency & Neighbourhood Services,BRISTOL FORKLIFTS LTD,09/10/2019,819
Bath and North East Somerset Council,10916757,3F7,PCB External Fees,P19,Resources and Deputy Leader,RIDER LEVETT BUCKNALL UK LTD,09/10/2019,836.66
Bath and North East Somerset Council,10916764,LK3,PCB Fees (paid),P19,Resources and Deputy Leader,RIDER LEVETT BUCKNALL UK LTD,09/10/2019,891.66
Bath and North East Somerset Council,10916781,PB4,Payments to Private Contractors,P22,Climate Emergency & Neighbourhood Services,BLACK-RAM RECYCLING LTD,09/10/2019,993.9
Bath and North East Somerset Council,10916724,LJ2,Legal Fees,P21,Childrens Services,DNA LEGAL LTD,09/10/2019,999
Bath and North East Somerset Council,10916767,LP4,Software Purchase,P22,Climate Emergency & Neighbourhood Services,AVORIA LIMITED T/A PENNINE TELECOM,09/10/2019,1000
Bath and North East Somerset Council,80874391,LL2,Personal Needs of Clients,P21,Childrens Services,REDACTED,09/10/2019,82
Bath and North East Somerset Council,80874391,LM2,Foster Carer Allowances,P21,Childrens Services,REDACTED,09/10/2019,150
Bath and North East Somerset Council,80874391,LM2,Foster Carer Allowances,P21,Childrens Services,REDACTED,09/10/2019,430
Bath and North East Somerset Council,10916240,LK1,Fees,P24,Community Services,PICKFORDS MOVE MANAGEMENT LTD,09/10/2019,1133
Bath and North East Somerset Council,80874386,LM2,Foster Carer Allowances,P21,Childrens Services,REDACTED,09/10/2019,522
Bath and North East Somerset Council,80874373,LM2,Foster Carer Allowances,P21,Childrens Services,REDACTED,09/10/2019,150
Bath and North East Somerset Council,80874373,LM2,Foster Carer Allowances,P21,Childrens Services,REDACTED,09/10/2019,150
Bath and North East Somerset Council,80874373,LM2,Foster Carer Allowances,P21,Childrens Services,REDACTED,09/10/2019,304
Bath and North East Somerset Council,80874373,LM2,Foster Carer Allowances,P21,Childrens Services,REDACTED,09/10/2019,342
Bath and North East Somerset Council,80874359,LM2,Foster Carer Allowances,P21,Childrens Services,REDACTED,09/10/2019,195.75
Bath and North East Somerset Council,80874359,LL9,Special Guardianship,P21,Childrens Services,REDACTED,09/10/2019,325.7
Bath and North East Somerset Council,80874368,LL2,Personal Needs of Clients,P21,Childrens Services,REDACTED,09/10/2019,600
Bath and North East Somerset Council,80874400,LL7,Residence Orders,P21,Childrens Services,REDACTED,09/10/2019,275.64
Bath and North East Somerset Council,80874400,LL7,Residence Orders,P21,Childrens Services,REDACTED,09/10/2019,289.64
Bath and North East Somerset Council,10916731,LJ2,Legal Fees,P21,Childrens Services,REDACTED,09/10/2019,500
Bath and North East Somerset Council,10916759,EA1,Training,P19,Resources and Deputy Leader,ZEBRA TRAINING SERVICES LTD,09/10/2019,1250
Bath and North East Somerset Council,80874397,LM2,Foster Carer Allowances,P21,Childrens Services,REDACTED,09/10/2019,75
Bath and North East Somerset Council,80874397,LM2,Foster Carer Allowances,P21,Childrens Services,REDACTED,09/10/2019,75
Bath and North East Somerset Council,80874397,LM2,Foster Carer Allowances,P21,Childrens Services,REDACTED,09/10/2019,75
Bath and North East Somerset Council,80874397,KE3,Transport & Travel,P21,Childrens Services,REDACTED,09/10/2019,85.25
Bath and North East Somerset Council,80874397,LM2,Foster Carer Allowances,P21,Childrens Services,REDACTED,09/10/2019,125
Bath and North East Somerset Council,80874397,LM2,Foster Carer Allowances,P21,Childrens Services,REDACTED,09/10/2019,125
Bath and North East Somerset Council,10916777,3F7,PCB External Fees,P23,"Housing, Planning & Economic Development",MDA CONSULTING LTD,09/10/2019,1270
Bath and North East Somerset Council,80874397,LM2,Foster Carer Allowances,P21,Childrens Services,REDACTED,09/10/2019,125
Bath and North East Somerset Council,80874397,LM2,Foster Carer Allowances,P21,Childrens Services,REDACTED,09/10/2019,215
Bath and North East Somerset Council,80874397,LM2,Foster Carer Allowances,P21,Childrens Services,REDACTED,09/10/2019,215
Bath and North East Somerset Council,80874397,LM2,Foster Carer Allowances,P21,Childrens Services,REDACTED,09/10/2019,215
Bath and North East Somerset Council,10916817,3C4,Building Works,P19,Resources and Deputy Leader,LEICA GEOSYSTEMS LTD,09/10/2019,1298
Bath and North East Somerset Council,80874363,LM2,Foster Carer Allowances,P21,Childrens Services,REDACTED,09/10/2019,75
Bath and North East Somerset Council,80874363,LM2,Foster Carer Allowances,P21,Childrens Services,REDACTED,09/10/2019,75
Bath and North East Somerset Council,80874363,LM2,Foster Carer Allowances,P21,Childrens Services,REDACTED,09/10/2019,152
Bath and North East Somerset Council,80874363,LM2,Foster Carer Allowances,P21,Childrens Services,REDACTED,09/10/2019,152
Bath and North East Somerset Council,80874363,LL6,Needs & Services,P21,Childrens Services,REDACTED,09/10/2019,179.5
Bath and North East Somerset Council,80874363,KE3,Transport & Travel,P21,Childrens Services,REDACTED,09/10/2019,181.2
Bath and North East Somerset Council,10916630,HP8,Service Charges,P19,Resources and Deputy Leader,AK LLP CLIENT RE BRISTOL BUSINESS PARK MA,09/10/2019,1323
Bath and North East Somerset Council,80874376,LM2,Foster Carer Allowances,P21,Childrens Services,REDACTED,09/10/2019,150
Bath and North East Somerset Council,80874376,LM2,Foster Carer Allowances,P21,Childrens Services,REDACTED,09/10/2019,150
Bath and North East Somerset Council,80874376,LM2,Foster Carer Allowances,P21,Childrens Services,REDACTED,09/10/2019,150
Bath and North East Somerset Council,10916599,HP8,Service Charges,P19,Resources and Deputy Leader,BMO REP CLIENT ACCOUNT RE RSA COLLECTIONS A/C,09/10/2019,1351.02
Bath and North East Somerset Council,80874376,LM2,Foster Carer Allowances,P21,Childrens Services,REDACTED,09/10/2019,250
Bath and North East Somerset Council,80874376,LM2,Foster Carer Allowances,P21,Childrens Services,REDACTED,09/10/2019,261
Bath and North East Somerset Council,80874376,LM2,Foster Carer Allowances,P21,Childrens Services,REDACTED,09/10/2019,342
Bath and North East Somerset Council,80874376,LM2,Foster Carer Allowances,P21,Childrens Services,REDACTED,09/10/2019,522
Bath and North East Somerset Council,10916755,4M4,Training,,,BATH COLLEGE,09/10/2019,1365
Bath and North East Somerset Council,80874412,LM2,Foster Carer Allowances,P21,Childrens Services,REDACTED,09/10/2019,1172.57
Bath and North East Somerset Council,80874412,LM2,Foster Carer Allowances,P21,Childrens Services,REDACTED,09/10/2019,1319.14
Bath and North East Somerset Council,10916716,LJ2,Legal Fees,P21,Childrens Services,DNA LEGAL LTD,09/10/2019,1397
Bath and North East Somerset Council,10916457,HA1,Responsive Maintenance,P19,Resources and Deputy Leader,MANNINGS FACILITIES MANAGEMENT LTD,09/10/2019,1397.24
Bath and North East Somerset Council,80874353,LL9,Special Guardianship,P21,Childrens Services,REDACTED,09/10/2019,267.52
Bath and North East Somerset Council,80874353,LL9,Special Guardianship,P21,Childrens Services,REDACTED,09/10/2019,267.54
Bath and North East Somerset Council,10916123,HK1,Highway Maintenance,P25,Transport Services,CRADOCK & SON,09/10/2019,1497.41
Bath and North East Somerset Council,10916758,KA2,Running Costs,P22,Climate Emergency & Neighbourhood Services,HAKO MACHINES LTD,09/10/2019,1581
Bath and North East Somerset Council,10916809,LK1,Fees,P21,Childrens Services,VIRGIN CARE SERVICES LTD,09/10/2019,1659
Bath and North East Somerset Council,10916393,3G1,Grants/Advances,P23,"Housing, Planning & Economic Development",1ST CHOICE STAIRLIFTS LIMITED,09/10/2019,1695
Bath and North East Somerset Council,10916615,LK1,Fees,P19,Resources and Deputy Leader,BAT PRO LTD,09/10/2019,1753.88
Bath and North East Somerset Council,10916598,HP8,Service Charges,P19,Resources and Deputy Leader,BMO REP CLIENT ACCOUNT RE RSA COLLECTIONS A/C,09/10/2019,1870.83
Bath and North East Somerset Council,10916744,KB1,Hire of Vehicles,P22,Climate Emergency & Neighbourhood Services,SMITH'S GLOUCESTER LTD,09/10/2019,1885
Bath and North East Somerset Council,10916687,LX1,Educational Activity,P21,Childrens Services,WELFARE CALL (LAC) LTD,09/10/2019,1904
Bath and North East Somerset Council,10916783,LF5,Postages,P19,Resources and Deputy Leader,NEOPOST FINANCE LIMITED,09/10/2019,1920
Bath and North East Somerset Council,10916821,LA1,Equipment Purchase,P24,Community Services,ANDREW FLETCHER,09/10/2019,1935
Bath and North East Somerset Council,10916395,3G1,Grants/Advances,P23,"Housing, Planning & Economic Development",DOLPHIN LIFTS (WESTERN) LTD,09/10/2019,2085
Bath and North East Somerset Council,10916445,LA3,Equipment Maintenance,P24,Community Services,G. B. SPORT & LEISURE UK LTD,09/10/2019,2101.1
Bath and North East Somerset Council,80874347,LM4,Respite Care,P21,Childrens Services,REDACTED,09/10/2019,519
Bath and North East Somerset Council,80874351,LM4,Respite Care,P21,Childrens Services,REDACTED,09/10/2019,519
Bath and North East Somerset Council,10916796,LJ1,Consultants Fees,Z98,West of England Partnership,HELEN WILSON CONSULTANCY LTD,09/10/2019,2250
Bath and North East Somerset Council,10916557,HV6,Sanitary Disposal,P24,Community Services,AQUAID FRANCHISING LTD,09/10/2019,2400.99
Bath and North East Somerset Council,10916623,LK1,Fees,P19,Resources and Deputy Leader,BAT PRO LTD,09/10/2019,2471.38
Bath and North East Somerset Council,10916624,LK1,Fees,P19,Resources and Deputy Leader,BAT PRO LTD,09/10/2019,2471.38
Bath and North East Somerset Council,10916754,LK1,Fees,P19,Resources and Deputy Leader,HARTNELL TAYLOR COOK LLP OFFICE ACCOUNT,09/10/2019,2500
Bath and North East Somerset Council,10916754,LK1,Fees,P19,Resources and Deputy Leader,HARTNELL TAYLOR COOK LLP OFFICE ACCOUNT,09/10/2019,2500
Bath and North East Somerset Council,10916807,LK1,Fees,P21,Childrens Services,VIRGIN CARE SERVICES LTD,09/10/2019,2662.5
Bath and North East Somerset Council,10916612,HP8,Service Charges,P19,Resources and Deputy Leader,SAVILLS COM LTD MANAGEMENT CLIENT ACC,09/10/2019,3166
Bath and North East Somerset Council,10916803,3G1,Grants/Advances,P23,"Housing, Planning & Economic Development",OASIS BATHROOM CENTRE,09/10/2019,3260
Bath and North East Somerset Council,10916638,3F7,PCB External Fees,P21,Childrens Services,MACE LIMITED,09/10/2019,3382.5
Bath and North East Somerset Council,10916730,LJ2,Legal Fees,P21,Childrens Services,SARAH POPE,09/10/2019,4280
Bath and North East Somerset Council,10916670,LP5,Software Support,P19,Resources and Deputy Leader,JC APPLICATIONS DEVELOPMENT,09/10/2019,4282
Bath and North East Somerset Council,10916776,LA4,Equipment Hire/Rent,P22,Climate Emergency & Neighbourhood Services,EGBERT H TAYLOR & CO LTD,09/10/2019,4650
Bath and North East Somerset Council,10916650,HE5,Security of Premises,P25,Transport Services,KINGDOM SECURITY SERVICES GROUP LTD,09/10/2019,5125.08
Bath and North East Somerset Council,10916771,LJ1,Consultants Fees,P23,"Housing, Planning & Economic Development",JONES LANG LASALLE LTD,09/10/2019,5352.6
Bath and North East Somerset Council,10916396,3G1,Grants/Advances,P23,"Housing, Planning & Economic Development",1ST CHOICE STAIRLIFTS LIMITED,09/10/2019,5503
Bath and North East Somerset Council,10916702,LK1,Fees,P25,Transport Services,T MISTRY & ASSOCIATES LIMITED,09/10/2019,7216.76
Bath and North East Somerset Council,10916729,HK1,Highway Maintenance,P25,Transport Services,METDESK LTD,09/10/2019,7251.2
Bath and North East Somerset Council,10916297,3N7,PCB Misc. Costs,P24,Community Services,GREENWICH LEISURE LIMITED,09/10/2019,7500
Bath and North East Somerset Council,10916548,HA3,Planned Maintenance,P24,Community Services,N K S CONTRACTS LTD,09/10/2019,10547.38
Bath and North East Somerset Council,10916603,LC6,FP10s,P25,Transport Services,CT COACHES,09/10/2019,15413.3
Bath and North East Somerset Council,10916808,LK1,Fees,P21,Childrens Services,VIRGIN CARE SERVICES LTD,09/10/2019,20313
Bath and North East Somerset Council,10916700,LA1,Equipment Purchase,P20,Adult Services,SIRONA CARE & HEALTH C.I.C.,09/10/2019,51764.55
Bath and North East Somerset Council,10916697,3C4,Building Works,P21,Childrens Services,NOVUS PROPERTY SOLUTIONS LTD,09/10/2019,65210.06
Bath and North East Somerset Council,10916752,LJ1,Consultants Fees,P19,Resources and Deputy Leader,BLOOM PROCUREMENT SERVICES LIMITED,09/10/2019,105369.9
Bath and North East Somerset Council,80874501,PG1,Rent Allowances,P19,Resources and Deputy Leader,ADVANCE HOUSING SUPPORT **DO NOT,10/10/2019,2955.28
Bath and North East Somerset Council,80874548,LM8,Home Care,P20,Adult Services,AGINCARE LIVE IN CARE SERVICES LTD,10/10/2019,1400
Bath and North East Somerset Council,80874548,LM8,Home Care,P20,Adult Services,AGINCARE LIVE IN CARE SERVICES LTD,10/10/2019,1530.06
Bath and North East Somerset Council,80874548,LM8,Home Care,P20,Adult Services,AGINCARE LIVE IN CARE SERVICES LTD,10/10/2019,1700.02
Bath and North East Somerset Council,80874548,LM8,Home Care,P20,Adult Services,AGINCARE LIVE IN CARE SERVICES LTD,10/10/2019,1910.02
Bath and North East Somerset Council,80874467,PG1,Rent Allowances,P19,Resources and Deputy Leader,ANCHOR HANOVER GROUP,10/10/2019,1587
Bath and North East Somerset Council,80874521,PG1,Rent Allowances,P19,Resources and Deputy Leader,ARCH CARE SERVICES LTD,10/10/2019,960
Bath and North East Somerset Council,80874505,PG1,Rent Allowances,P19,Resources and Deputy Leader,ASTER COMMUNITIES,10/10/2019,11666.96
Bath and North East Somerset Council,80874465,PG1,Rent Allowances,P19,Resources and Deputy Leader,BARONS PROPERTY AGENTS,10/10/2019,1241.56
Bath and North East Somerset Council,80874527,PG1,Rent Allowances,P19,Resources and Deputy Leader,BATH & DISTRICT LIFE CARE,10/10/2019,2481.38
Bath and North East Somerset Council,10916882,LW9,Other Expenses,P19,Resources and Deputy Leader,BATH & WELLS DIOCESAN - ST SAVIOURS INFANTS SCHOOL CLUB,10/10/2019,1500
Bath and North East Somerset Council,80874484,PG1,Rent Allowances,P19,Resources and Deputy Leader,CENTRIX PROPERTIES LTD,10/10/2019,625.12
Bath and North East Somerset Council,80874529,PG1,Rent Allowances,P19,Resources and Deputy Leader,CURO,10/10/2019,7281.15
Bath and North East Somerset Council,80874528,PG1,Rent Allowances,P19,Resources and Deputy Leader,CURO,10/10/2019,42062.89
Bath and North East Somerset Council,10916502,LA1,Equipment Purchase,P21,Childrens Services,JAMES LECKEY DESIGN LTD,10/10/2019,458
Bath and North East Somerset Council,10916840,LD4,Uniforms,P24,Community Services,WATERFRONT MANUFACTURING LTD,10/10/2019,508.5
Bath and North East Somerset Council,80874531,LM3,Residential Care,P20,Adult Services,FARLEIGH FEC FROME PRIORY,10/10/2019,10281.29
Bath and North East Somerset Council,10916919,PA3,Payments to Health Authorities,P20,Adult Services,NHS BATH & NORTH EAST SOMERSET CCG,10/10/2019,539.44
Bath and North East Somerset Council,80874492,PG1,Rent Allowances,P19,Resources and Deputy Leader,GRAINGER RESIDENTIAL MANAGEMENT,10/10/2019,503.24
Bath and North East Somerset Council,80874456,PG1,Rent Allowances,P19,Resources and Deputy Leader,HML PROPERTY MANAGEMENT,10/10/2019,689
Bath and North East Somerset Council,10916883,LH5,Marketing,P24,Community Services,NINEPOINT DESIGN LTD,10/10/2019,580
Bath and North East Somerset Council,10916850,LH3,Publicity,P24,Community Services,IMMIX MEDIA LTD,10/10/2019,600
Bath and North East Somerset Council,10916961,HK1,Highway Maintenance,P25,Transport Services,BENDREY BROS,10/10/2019,755.92
Bath and North East Somerset Council,80874430,PG1,Rent Allowances,P19,Resources and Deputy Leader,REDACTED,10/10/2019,1000
Bath and North East Somerset Council,80874441,PG1,Rent Allowances,P19,Resources and Deputy Leader,REDACTED,10/10/2019,1000
Bath and North East Somerset Council,80874534,LM8,Home Care,P20,Adult Services,KUMARI HOMECARE SERVICE,10/10/2019,41.42
Bath and North East Somerset Council,80874534,LM8,Home Care,P20,Adult Services,KUMARI HOMECARE SERVICE,10/10/2019,62.13
Bath and North East Somerset Council,80874534,LM8,Home Care,P20,Adult Services,KUMARI HOMECARE SERVICE,10/10/2019,79.74
Bath and North East Somerset Council,80874534,LM8,Home Care,P20,Adult Services,KUMARI HOMECARE SERVICE,10/10/2019,81.3
Bath and North East Somerset Council,80874534,LM8,Home Care,P20,Adult Services,KUMARI HOMECARE SERVICE,10/10/2019,110
Bath and North East Somerset Council,80874534,LM8,Home Care,P20,Adult Services,KUMARI HOMECARE SERVICE,10/10/2019,135.67
Bath and North East Somerset Council,80874534,LM8,Home Care,P20,Adult Services,KUMARI HOMECARE SERVICE,10/10/2019,159.47
Bath and North East Somerset Council,80874534,LM8,Home Care,P20,Adult Services,KUMARI HOMECARE SERVICE,10/10/2019,289.94
Bath and North East Somerset Council,10916896,HA1,Responsive Maintenance,P24,Community Services,HORDERS,10/10/2019,840
Bath and North East Somerset Council,10916899,HA1,Responsive Maintenance,P24,Community Services,HORDERS,10/10/2019,840
Bath and North East Somerset Council,80874534,LM8,Home Care,P20,Adult Services,KUMARI HOMECARE SERVICE,10/10/2019,289.94
Bath and North East Somerset Council,80874534,LM8,Home Care,P20,Adult Services,KUMARI HOMECARE SERVICE,10/10/2019,311.69
Bath and North East Somerset Council,80874534,LM8,Home Care,P20,Adult Services,KUMARI HOMECARE SERVICE,10/10/2019,318.94
Bath and North East Somerset Council,80874534,LM8,Home Care,P20,Adult Services,KUMARI HOMECARE SERVICE,10/10/2019,403.85
Bath and North East Somerset Council,80874534,LM8,Home Care,P20,Adult Services,KUMARI HOMECARE SERVICE,10/10/2019,420
Bath and North East Somerset Council,80874534,LM8,Home Care,P20,Adult Services,KUMARI HOMECARE SERVICE,10/10/2019,434.91
Bath and North East Somerset Council,80874534,LM8,Home Care,P20,Adult Services,KUMARI HOMECARE SERVICE,10/10/2019,440.1
Bath and North East Somerset Council,80874534,LM8,Home Care,P20,Adult Services,KUMARI HOMECARE SERVICE,10/10/2019,478.41
Bath and North East Somerset Council,80874534,LM8,Home Care,P20,Adult Services,KUMARI HOMECARE SERVICE,10/10/2019,652.37
Bath and North East Somerset Council,80874534,LM8,Home Care,P20,Adult Services,KUMARI HOMECARE SERVICE,10/10/2019,717.62
Bath and North East Somerset Council,80874534,LM8,Home Care,P20,Adult Services,KUMARI HOMECARE SERVICE,10/10/2019,797.34
Bath and North East Somerset Council,80874534,LM8,Home Care,P20,Adult Services,KUMARI HOMECARE SERVICE,10/10/2019,797.72
Bath and North East Somerset Council,80874534,LM8,Home Care,P20,Adult Services,KUMARI HOMECARE SERVICE,10/10/2019,812.98
Bath and North East Somerset Council,80874534,LM8,Home Care,P20,Adult Services,KUMARI HOMECARE SERVICE,10/10/2019,812.98
Bath and North East Somerset Council,80874534,LM8,Home Care,P20,Adult Services,KUMARI HOMECARE SERVICE,10/10/2019,825.49
Bath and North East Somerset Council,80874534,LM8,Home Care,P20,Adult Services,KUMARI HOMECARE SERVICE,10/10/2019,877.09
Bath and North East Somerset Council,80874534,LM8,Home Care,P20,Adult Services,KUMARI HOMECARE SERVICE,10/10/2019,877.47
Bath and North East Somerset Council,80874534,LM8,Home Care,P20,Adult Services,KUMARI HOMECARE SERVICE,10/10/2019,894.28
Bath and North East Somerset Council,80874534,LM8,Home Care,P20,Adult Services,KUMARI HOMECARE SERVICE,10/10/2019,908.04
Bath and North East Somerset Council,80874534,LM8,Home Care,P20,Adult Services,KUMARI HOMECARE SERVICE,10/10/2019,948.39
Bath and North East Somerset Council,80874534,LM8,Home Care,P20,Adult Services,KUMARI HOMECARE SERVICE,10/10/2019,1043.23
Bath and North East Somerset Council,80874534,LM8,Home Care,P20,Adult Services,KUMARI HOMECARE SERVICE,10/10/2019,1078
Bath and North East Somerset Council,80874534,LM8,Home Care,P20,Adult Services,KUMARI HOMECARE SERVICE,10/10/2019,1100
Bath and North East Somerset Council,80874534,LM8,Home Care,P20,Adult Services,KUMARI HOMECARE SERVICE,10/10/2019,1100
Bath and North East Somerset Council,80874534,LM8,Home Care,P20,Adult Services,KUMARI HOMECARE SERVICE,10/10/2019,1100
Bath and North East Somerset Council,80874534,LM8,Home Care,P20,Adult Services,KUMARI HOMECARE SERVICE,10/10/2019,1102.92
Bath and North East Somerset Council,80874534,LM8,Home Care,P20,Adult Services,KUMARI HOMECARE SERVICE,10/10/2019,1210
Bath and North East Somerset Council,80874534,LM8,Home Care,P20,Adult Services,KUMARI HOMECARE SERVICE,10/10/2019,1213.22
Bath and North East Somerset Council,80874534,LM8,Home Care,P20,Adult Services,KUMARI HOMECARE SERVICE,10/10/2019,1331.27
Bath and North East Somerset Council,10916831,HV4,Cleaning Materials,P24,Community Services,AVANTI HYGIENE LTD,10/10/2019,895.66
Bath and North East Somerset Council,10917008,LK1,Fees,P21,Childrens Services,TALKOUT SERVICES LTD,10/10/2019,968.24
Bath and North East Somerset Council,10916858,HA3,Planned Maintenance,P24,Community Services,HORDERS,10/10/2019,971.83
Bath and North East Somerset Council,10916447,HA1,Responsive Maintenance,P19,Resources and Deputy Leader,MANNINGS FACILITIES MANAGEMENT LTD,10/10/2019,989.98
Bath and North East Somerset Council,10916863,LA1,Equipment Purchase,P24,Community Services,DIRECT COMMUNICATIONS RADIO SE,10/10/2019,1075
Bath and North East Somerset Council,80874466,PG1,Rent Allowances,P19,Resources and Deputy Leader,LIVEWEST HOMES LIMITED,10/10/2019,8153.36
Bath and North East Somerset Council,80874480,PG1,Rent Allowances,P19,Resources and Deputy Leader,LIVEWEST HOMES LIMITED,10/10/2019,19013.14
Bath and North East Somerset Council,80874454,PG1,Rent Allowances,P19,Resources and Deputy Leader,LIVEWEST HOMES LIMITED,10/10/2019,19189.25
Bath and North East Somerset Council,80874457,PG1,Rent Allowances,P19,Resources and Deputy Leader,LIVEWEST HOMES LIMITED,10/10/2019,65262.45
Bath and North East Somerset Council,80874519,PG1,Rent Allowances,P19,Resources and Deputy Leader,MERCY IN ACTION,10/10/2019,560.18
Bath and North East Somerset Council,80874496,PG1,Rent Allowances,P19,Resources and Deputy Leader,REDACTED,10/10/2019,2631.85
Bath and North East Somerset Council,80874513,PG1,Rent Allowances,P19,Resources and Deputy Leader,REDACTED,10/10/2019,761.52
Bath and North East Somerset Council,80874450,PG1,Rent Allowances,P19,Resources and Deputy Leader,REDACTED,10/10/2019,886.18
Bath and North East Somerset Council,80874468,PG1,Rent Allowances,P19,Resources and Deputy Leader,REDACTED,10/10/2019,521.52
Bath and North East Somerset Council,80874493,PG1,Rent Allowances,P19,Resources and Deputy Leader,REDACTED,10/10/2019,619.2
Bath and North East Somerset Council,80874447,PG1,Rent Allowances,P19,Resources and Deputy Leader,REDACTED,10/10/2019,596.97
Bath and North East Somerset Council,80874471,PG1,Rent Allowances,P19,Resources and Deputy Leader,REDACTED,10/10/2019,507.68
Bath and North East Somerset Council,80874469,PG1,Rent Allowances,P19,Resources and Deputy Leader,REDACTED,10/10/2019,558.48
Bath and North East Somerset Council,80874514,PG1,Rent Allowances,P19,Resources and Deputy Leader,REDACTED,10/10/2019,507.68
Bath and North East Somerset Council,80874515,PG1,Rent Allowances,P19,Resources and Deputy Leader,REDACTED,10/10/2019,713.08
Bath and North East Somerset Council,80874502,PG1,Rent Allowances,P19,Resources and Deputy Leader,REDACTED,10/10/2019,623.08
Bath and North East Somerset Council,80874488,PG1,Rent Allowances,P19,Resources and Deputy Leader,REDACTED,10/10/2019,576
Bath and North East Somerset Council,80874504,PG1,Rent Allowances,P19,Resources and Deputy Leader,REDACTED,10/10/2019,623.08
Bath and North East Somerset Council,80874476,PG1,Rent Allowances,P19,Resources and Deputy Leader,REDACTED,10/10/2019,546.4
Bath and North East Somerset Council,80874491,PG1,Rent Allowances,P19,Resources and Deputy Leader,REDACTED,10/10/2019,689
Bath and North East Somerset Council,10916981,LF5,Postages,P19,Resources and Deputy Leader,WHISTL UK LTD,10/10/2019,1229.93
Bath and North East Somerset Council,80874557,LM8,Home Care,P20,Adult Services,ABICARE SERVICES LTD,10/10/2019,1272.24
Bath and North East Somerset Council,80874479,PG1,Rent Allowances,P19,Resources and Deputy Leader,REDACTED,10/10/2019,572.32
Bath and North East Somerset Council,10916772,HA1,Responsive Maintenance,P19,Resources and Deputy Leader,FACULTATIEVE TECHNOLOGIES LTD,10/10/2019,1326.52
Bath and North East Somerset Council,80874511,PG1,Rent Allowances,P19,Resources and Deputy Leader,REDACTED,10/10/2019,784.64
Bath and North East Somerset Council,80874445,PG1,Rent Allowances,P19,Resources and Deputy Leader,REDACTED,10/10/2019,563.85
Bath and North East Somerset Council,80874499,PG1,Rent Allowances,P19,Resources and Deputy Leader,REDACTED,10/10/2019,792.68
Bath and North East Somerset Council,80874535,LM9,Day Care,P20,Adult Services,NATIONAL AUTISTIC SOCIETY,10/10/2019,0.02
Bath and North East Somerset Council,80874535,LM9,Day Care,P20,Adult Services,NATIONAL AUTISTIC SOCIETY,10/10/2019,0.1
Bath and North East Somerset Council,80874535,LM9,Day Care,P20,Adult Services,NATIONAL AUTISTIC SOCIETY,10/10/2019,1613.3
Bath and North East Somerset Council,80874535,LM9,Day Care,P20,Adult Services,NATIONAL AUTISTIC SOCIETY,10/10/2019,1620.82
Bath and North East Somerset Council,80874551,LM8,Home Care,P20,Adult Services,NETWORK VENTURES LTD,10/10/2019,64
Bath and North East Somerset Council,80874551,LM8,Home Care,P20,Adult Services,NETWORK VENTURES LTD,10/10/2019,64
Bath and North East Somerset Council,80874551,LM8,Home Care,P20,Adult Services,NETWORK VENTURES LTD,10/10/2019,64
Bath and North East Somerset Council,80874551,LM8,Home Care,P20,Adult Services,NETWORK VENTURES LTD,10/10/2019,128
Bath and North East Somerset Council,80874551,LM8,Home Care,P20,Adult Services,NETWORK VENTURES LTD,10/10/2019,146
Bath and North East Somerset Council,80874551,LM8,Home Care,P20,Adult Services,NETWORK VENTURES LTD,10/10/2019,154
Bath and North East Somerset Council,80874551,LM8,Home Care,P20,Adult Services,NETWORK VENTURES LTD,10/10/2019,160
Bath and North East Somerset Council,80874551,LM8,Home Care,P20,Adult Services,NETWORK VENTURES LTD,10/10/2019,164
Bath and North East Somerset Council,80874551,LM8,Home Care,P20,Adult Services,NETWORK VENTURES LTD,10/10/2019,288
Bath and North East Somerset Council,80874551,LM8,Home Care,P20,Adult Services,NETWORK VENTURES LTD,10/10/2019,306
Bath and North East Somerset Council,80874551,LM8,Home Care,P20,Adult Services,NETWORK VENTURES LTD,10/10/2019,1151.5
Bath and North East Somerset Council,10916928,LW9,Other Expenses,P19,Resources and Deputy Leader,HAYESFIELD SCHOOL,10/10/2019,1500
Bath and North East Somerset Council,10916856,LK1,Fees,P24,Community Services,NOMA ARCHITECTS LTD,10/10/2019,1500
Bath and North East Somerset Council,80874516,PG1,Rent Allowances,P19,Resources and Deputy Leader,NSAH (ALLIANCE HOMES) LIMITED,10/10/2019,2681.48
Bath and North East Somerset Council,80874494,PG1,Rent Allowances,P19,Resources and Deputy Leader,P.E.O.P.L.E.,10/10/2019,902.4
Bath and North East Somerset Council,80874520,PG1,Rent Allowances,P19,Resources and Deputy Leader,RESIDE HOUSING ASSOCIATION,10/10/2019,1824.44
Bath and North East Somerset Council,10916919,PA3,Payments to Health Authorities,P20,Adult Services,NHS BATH & NORTH EAST SOMERSET CCG,10/10/2019,1801.6
Bath and North East Somerset Council,10917001,LM1,Volunt Homes Placements Top/Up,P21,Childrens Services,THORNBURY NURSING SERVICES,10/10/2019,1845.58
Bath and North East Somerset Council,80874557,LM8,Home Care,P20,Adult Services,ABICARE SERVICES LTD,10/10/2019,1874.88
Bath and North East Somerset Council,80874557,LM8,Home Care,P20,Adult Services,ABICARE SERVICES LTD,10/10/2019,1874.88
Bath and North East Somerset Council,10916875,LF5,Postages,P19,Resources and Deputy Leader,NEOPOST FINANCE LIMITED,10/10/2019,1920
Bath and North East Somerset Council,80874462,PG1,Rent Allowances,P19,Resources and Deputy Leader,SANCTUARY HOUSING SERVICES LIMIT,10/10/2019,1020.32
Bath and North East Somerset Council,80874517,PG1,Rent Allowances,P19,Resources and Deputy Leader,SELWOOD HOUSING SOCIETY LIMITED,10/10/2019,6907.04
Bath and North East Somerset Council,80874553,LM6,Nursing Care,P20,Adult Services,SILVA CARE LTD,10/10/2019,9373.44
Bath and North East Somerset Council,10916920,LL3,Supported Living,P20,Adult Services,SWAN Advice Network,10/10/2019,2264
Bath and North East Somerset Council,10916919,PA3,Payments to Health Authorities,P20,Adult Services,NHS BATH & NORTH EAST SOMERSET CCG,10/10/2019,2526.45
Bath and North East Somerset Council,10916861,LJ4,Contracts,P24,Community Services,STEPHEN R BUCK,10/10/2019,2631
Bath and North East Somerset Council,80874555,LL3,Supported Living,P20,Adult Services,ST JOHN'S FOUNDATION EST 1174,10/10/2019,294.5
Bath and North East Somerset Council,80874555,LL3,Supported Living,P20,Adult Services,ST JOHN'S FOUNDATION EST 1174,10/10/2019,411.6
Bath and North East Somerset Council,80874555,LL3,Supported Living,P20,Adult Services,ST JOHN'S FOUNDATION EST 1174,10/10/2019,537.1
Bath and North East Somerset Council,80874555,LL3,Supported Living,P20,Adult Services,ST JOHN'S FOUNDATION EST 1174,10/10/2019,633.6
Bath and North East Somerset Council,80874555,LL3,Supported Living,P20,Adult Services,ST JOHN'S FOUNDATION EST 1174,10/10/2019,1178
Bath and North East Somerset Council,80874555,LL3,Supported Living,P20,Adult Services,ST JOHN'S FOUNDATION EST 1174,10/10/2019,1349.7
Bath and North East Somerset Council,10916919,LK1,Fees,P20,Adult Services,NHS BATH & NORTH EAST SOMERSET CCG,10/10/2019,3052.22
Bath and North East Somerset Council,10916919,PA3,Payments to Health Authorities,P19,Resources and Deputy Leader,NHS BATH & NORTH EAST SOMERSET CCG,10/10/2019,3133.21
Bath and North East Somerset Council,10916964,LK1,Fees,P21,Childrens Services,NHS BATH & NORTH EAST SOMERSET CCG,10/10/2019,3315.78
Bath and North East Somerset Council,10916919,PA3,Payments to Health Authorities,P20,Adult Services,NHS BATH & NORTH EAST SOMERSET CCG,10/10/2019,3364.03
Bath and North East Somerset Council,80874546,LM6,Nursing Care,P20,Adult Services,NEWCROSS HEALTHCARE SOLUTIONS LTD,10/10/2019,3381.72
Bath and North East Somerset Council,80874541,LL3,Supported Living,P20,Adult Services,SUPPORTED INDEPENDENCE,10/10/2019,235.56
Bath and North East Somerset Council,80874541,LL3,Supported Living,P20,Adult Services,SUPPORTED INDEPENDENCE,10/10/2019,314.08
Bath and North East Somerset Council,80874541,LL3,Supported Living,P20,Adult Services,SUPPORTED INDEPENDENCE,10/10/2019,314.08
Bath and North East Somerset Council,80874541,LL3,Supported Living,P20,Adult Services,SUPPORTED INDEPENDENCE,10/10/2019,549.64
Bath and North East Somerset Council,80874541,LL3,Supported Living,P20,Adult Services,SUPPORTED INDEPENDENCE,10/10/2019,942.24
Bath and North East Somerset Council,80874541,LL3,Supported Living,P20,Adult Services,SUPPORTED INDEPENDENCE,10/10/2019,1202.4
Bath and North East Somerset Council,80874541,LM8,Home Care,P20,Adult Services,SUPPORTED INDEPENDENCE,10/10/2019,1506.84
Bath and North East Somerset Council,80874541,LM8,Home Care,P20,Adult Services,SUPPORTED INDEPENDENCE,10/10/2019,1844.4
Bath and North East Somerset Council,80874541,LM8,Home Care,P20,Adult Services,SUPPORTED INDEPENDENCE,10/10/2019,1969.28
Bath and North East Somerset Council,80874541,LM8,Home Care,P20,Adult Services,SUPPORTED INDEPENDENCE,10/10/2019,1982.36
Bath and North East Somerset Council,10916919,PA3,Payments to Health Authorities,P20,Adult Services,NHS BATH & NORTH EAST SOMERSET CCG,10/10/2019,3929.52
Bath and North East Somerset Council,10916919,PA3,Payments to Health Authorities,P20,Adult Services,NHS BATH & NORTH EAST SOMERSET CCG,10/10/2019,4407.67
Bath and North East Somerset Council,80874506,PG1,Rent Allowances,P19,Resources and Deputy Leader,REDACTED,10/10/2019,2365.88
Bath and North East Somerset Council,80874472,PG1,Rent Allowances,P19,Resources and Deputy Leader,THE BATH PROPERTY SHOP,10/10/2019,526.16
Bath and North East Somerset Council,10916884,3F7,PCB External Fees,P23,"Housing, Planning & Economic Development",STONEBARN LANDSCAPES LTD,10/10/2019,5058.1
Bath and North East Somerset Council,80874460,PG1,Rent Allowances,P19,Resources and Deputy Leader,THE GUINNESS PARTNERSHIP,10/10/2019,1437.8
Bath and North East Somerset Council,80874459,PG1,Rent Allowances,P19,Resources and Deputy Leader,THE GUINNESS PARTNERSHIP,10/10/2019,2382.92
Bath and North East Somerset Council,10917002,LM1,Volunt Homes Placements Top/Up,P21,Childrens Services,THORNBURY NURSING SERVICES,10/10/2019,5451.59
Bath and North East Somerset Council,80874487,PG1,Rent Allowances,P19,Resources and Deputy Leader,TRUSTEASE PROPERTY MANAGEMENT LT,10/10/2019,1208.2
Bath and North East Somerset Council,80874524,PG1,Rent Allowances,P19,Resources and Deputy Leader,UNITED RESPONSE,10/10/2019,1022.24
Bath and North East Somerset Council,10916686,LX6,Bus Revenue Support,P25,Transport Services,CT PLUS COMMUNITY INTEREST COMPANY,10/10/2019,6308.33
Bath and North East Somerset Council,10916887,LW9,Other Expenses,P19,Resources and Deputy Leader,JULIAN HOUSE NIGHT SHELTER,10/10/2019,7100
Bath and North East Somerset Council,10916889,LW9,Other Expenses,P19,Resources and Deputy Leader,JULIAN HOUSE NIGHT SHELTER,10/10/2019,7100
Bath and North East Somerset Council,10916806,DB3,Temporary Staff,P21,Childrens Services,UNIVERSITY OF BRISTOL,10/10/2019,7975
Bath and North East Somerset Council,10916685,LX6,Bus Revenue Support,P25,Transport Services,CT PLUS COMMUNITY INTEREST COMPANY,10/10/2019,11468.23
Bath and North East Somerset Council,10916923,LJ4,Contracts,P20,Adult Services,VIRGIN CARE SERVICES LTD,10/10/2019,14360
Bath and North East Somerset Council,10916442,LA1,Equipment Purchase,P22,Climate Emergency & Neighbourhood Services,STRAIGHT MANUFACTURING LTD,10/10/2019,14460.6
Bath and North East Somerset Council,10916860,LJ4,Contracts,P24,Community Services,CHURCHILL SECURITY SERVICES,10/10/2019,18473.42
Bath and North East Somerset Council,10916922,LJ4,Contracts,P20,Adult Services,VIRGIN CARE SERVICES LTD,10/10/2019,22120.45
Bath and North East Somerset Council,10916921,LJ4,Contracts,P20,Adult Services,VIRGIN CARE SERVICES LTD,10/10/2019,35632
Bath and North East Somerset Council,10916999,LJ4,Contracts,P20,Adult Services,VIRGIN CARE SERVICES LTD,10/10/2019,35675.19
Bath and North East Somerset Council,10916874,LL3,Supported Living,P23,"Housing, Planning & Economic Development",JULIAN HOUSE NIGHT SHELTER,10/10/2019,40000
Bath and North East Somerset Council,10916926,3C4,Building Works,P21,Childrens Services,H MEALING & SONS LTD,10/10/2019,40940.86
Bath and North East Somerset Council,10916871,XA1,Grant Income,P19,Resources and Deputy Leader,COMMUNITES & LOCAL GOVERNMENT,10/10/2019,100000
Bath and North East Somerset Council,10916932,3F7,PCB External Fees,P23,"Housing, Planning & Economic Development",BAM CONSTRUCTION LIMITED,10/10/2019,136423.18
Bath and North East Somerset Council,10916924,LJ4,Contracts,P20,Adult Services,VIRGIN CARE SERVICES LTD,10/10/2019,231725
Bath and North East Somerset Council,10916802,3N7,PCB Misc. Costs,P19,Resources and Deputy Leader,AEQUUS CONSTRUCTION LTD,10/10/2019,250000
Bath and North East Somerset Council,10916925,LJ4,Contracts,P20,Adult Services,VIRGIN CARE SERVICES LTD,10/10/2019,4440795.33
Bath and North East Somerset Council,80874970,LL8,Individualised Budget,P20,Adult Services,REDACTED,14/10/2019,5547.18
Bath and North East Somerset Council,80875206,LM6,Nursing Care,P20,Adult Services,ABLECARE HOMES,14/10/2019,3900
Bath and North East Somerset Council,10917178,LN5,Data Lines,P24,Community Services,THE NETWORKING PEOPLE (TNP) LTD,14/10/2019,17.68
Bath and North East Somerset Council,10916246,LJ3,Other Services to the Council,P24,Community Services,RUNDLES & CO LTD,14/10/2019,24
Bath and North East Somerset Council,10917331,HA2,Servicing,P19,Resources and Deputy Leader,HORDERS,14/10/2019,28.43
Bath and North East Somerset Council,10917334,HA2,Servicing,P19,Resources and Deputy Leader,HORDERS,14/10/2019,28.43
Bath and North East Somerset Council,10917178,LN5,Data Lines,P19,Resources and Deputy Leader,THE NETWORKING PEOPLE (TNP) LTD,14/10/2019,30.67
Bath and North East Somerset Council,10917178,LP1,Hardware Purchase,P23,"Housing, Planning & Economic Development",THE NETWORKING PEOPLE (TNP) LTD,14/10/2019,30.81
Bath and North East Somerset Council,10917331,HA2,Servicing,P22,Climate Emergency & Neighbourhood Services,HORDERS,14/10/2019,42.65
Bath and North East Somerset Council,10917331,HA2,Servicing,P19,Resources and Deputy Leader,HORDERS,14/10/2019,42.65
Bath and North East Somerset Council,10917334,HA2,Servicing,P22,Climate Emergency & Neighbourhood Services,HORDERS,14/10/2019,42.65
Bath and North East Somerset Council,10917334,HA2,Servicing,P19,Resources and Deputy Leader,HORDERS,14/10/2019,42.65
Bath and North East Somerset Council,10917178,LN5,Data Lines,P19,Resources and Deputy Leader,THE NETWORKING PEOPLE (TNP) LTD,14/10/2019,48.49
Bath and North East Somerset Council,10917334,HA2,Servicing,P22,Climate Emergency & Neighbourhood Services,HORDERS,14/10/2019,56.86
Bath and North East Somerset Council,10917331,HA2,Servicing,P24,Community Services,HORDERS,14/10/2019,56.87
Bath and North East Somerset Council,10917331,HA2,Servicing,P24,Community Services,HORDERS,14/10/2019,56.87
Bath and North East Somerset Council,10917334,HA2,Servicing,P24,Community Services,HORDERS,14/10/2019,56.87
Bath and North East Somerset Council,10917334,HA2,Servicing,P24,Community Services,HORDERS,14/10/2019,56.87
Bath and North East Somerset Council,80874717,LM6,Nursing Care,P20,Adult Services,ACCOMPLISH GROUP SUPPORT LIMITED,14/10/2019,6986
Bath and North East Somerset Council,80874843,LL8,Individualised Budget,P20,Adult Services,REDACTED,14/10/2019,2015.3
Bath and North East Somerset Council,80874917,LL8,Individualised Budget,P20,Adult Services,REDACTED,14/10/2019,2969
Bath and North East Somerset Council,80875138,LM3,Residential Care,P20,Adult Services,ALEXANDRA HOMES (BRISTOL) LTD,14/10/2019,3710.74
Bath and North East Somerset Council,80875138,LM3,Residential Care,P20,Adult Services,ALEXANDRA HOMES (BRISTOL) LTD,14/10/2019,3710.74
Bath and North East Somerset Council,80874868,LL8,Individualised Budget,P20,Adult Services,REDACTED,14/10/2019,1068.36
Bath and North East Somerset Council,80874796,LL8,Individualised Budget,P20,Adult Services,REDACTED,14/10/2019,696.84
Bath and North East Somerset Council,10917331,HA2,Servicing,P24,Community Services,HORDERS,14/10/2019,113.74
Bath and North East Somerset Council,10917334,HA2,Servicing,P24,Community Services,HORDERS,14/10/2019,113.74
Bath and North East Somerset Council,80875010,LL8,Individualised Budget,P20,Adult Services,REDACTED,14/10/2019,703.5
Bath and North East Somerset Council,80875260,LL3,Supported Living,P20,Adult Services,ARCH CARE SERVICES,14/10/2019,74.16
Bath and North East Somerset Council,80875260,LL3,Supported Living,P20,Adult Services,ARCH CARE SERVICES,14/10/2019,74.16
Bath and North East Somerset Council,80875260,LL3,Supported Living,P20,Adult Services,ARCH CARE SERVICES,14/10/2019,111.24
Bath and North East Somerset Council,80875260,LL3,Supported Living,P20,Adult Services,ARCH CARE SERVICES,14/10/2019,148.32
Bath and North East Somerset Council,80875260,LL3,Supported Living,P20,Adult Services,ARCH CARE SERVICES,14/10/2019,148.32
Bath and North East Somerset Council,80875260,LL3,Supported Living,P20,Adult Services,ARCH CARE SERVICES,14/10/2019,148.32
Bath and North East Somerset Council,80875260,LL3,Supported Living,P20,Adult Services,ARCH CARE SERVICES,14/10/2019,185.4
Bath and North East Somerset Council,80875260,LL3,Supported Living,P20,Adult Services,ARCH CARE SERVICES,14/10/2019,185.4
Bath and North East Somerset Council,80875260,LL3,Supported Living,P20,Adult Services,ARCH CARE SERVICES,14/10/2019,185.4
Bath and North East Somerset Council,80875260,LL3,Supported Living,P20,Adult Services,ARCH CARE SERVICES,14/10/2019,222.48
Bath and North East Somerset Council,80875260,LL3,Supported Living,P20,Adult Services,ARCH CARE SERVICES,14/10/2019,222.48
Bath and North East Somerset Council,80875260,LL3,Supported Living,P20,Adult Services,ARCH CARE SERVICES,14/10/2019,259.56
Bath and North East Somerset Council,80875260,LL3,Supported Living,P20,Adult Services,ARCH CARE SERVICES,14/10/2019,259.56
Bath and North East Somerset Council,80875260,LL3,Supported Living,P20,Adult Services,ARCH CARE SERVICES,14/10/2019,630.36
Bath and North East Somerset Council,80875260,LL3,Supported Living,P20,Adult Services,ARCH CARE SERVICES,14/10/2019,959.5
Bath and North East Somerset Council,80875260,LL3,Supported Living,P20,Adult Services,ARCH CARE SERVICES,14/10/2019,959.5
Bath and North East Somerset Council,80875260,LL3,Supported Living,P20,Adult Services,ARCH CARE SERVICES,14/10/2019,959.5
Bath and North East Somerset Council,80875260,LL3,Supported Living,P20,Adult Services,ARCH CARE SERVICES,14/10/2019,959.5
Bath and North East Somerset Council,80875260,LL3,Supported Living,P20,Adult Services,ARCH CARE SERVICES,14/10/2019,959.5
Bath and North East Somerset Council,80875260,LL3,Supported Living,P20,Adult Services,ARCH CARE SERVICES,14/10/2019,959.5
Bath and North East Somerset Council,80875260,LL3,Supported Living,P20,Adult Services,ARCH CARE SERVICES,14/10/2019,959.5
Bath and North East Somerset Council,80875260,LL3,Supported Living,P20,Adult Services,ARCH CARE SERVICES,14/10/2019,1033.66
Bath and North East Somerset Council,80875260,LL3,Supported Living,P20,Adult Services,ARCH CARE SERVICES,14/10/2019,1171.39
Bath and North East Somerset Council,80875160,LM6,Nursing Care,P20,Adult Services,ARGENTUM LODGE LIMITED,14/10/2019,1410
Bath and North East Somerset Council,10917229,LF4,Stationery,P19,Resources and Deputy Leader,ACS LTD,14/10/2019,141.28
Bath and North East Somerset Council,80875244,XD3,Client Contributions,P20,Adult Services,ARTI CARE HOMES (SOUTHWEST) LTD,14/10/2019,41.23
Bath and North East Somerset Council,80875244,LM3,Residential Care,P20,Adult Services,ARTI CARE HOMES (SOUTHWEST) LTD,14/10/2019,1128.24
Bath and North East Somerset Council,80875244,LM3,Residential Care,P20,Adult Services,ARTI CARE HOMES (SOUTHWEST) LTD,14/10/2019,1169.04
Bath and North East Somerset Council,80875244,LM3,Residential Care,P20,Adult Services,ARTI CARE HOMES (SOUTHWEST) LTD,14/10/2019,1169.04
Bath and North East Somerset Council,80875244,LM3,Residential Care,P20,Adult Services,ARTI CARE HOMES (SOUTHWEST) LTD,14/10/2019,1169.04
Bath and North East Somerset Council,80875244,LM3,Residential Care,P20,Adult Services,ARTI CARE HOMES (SOUTHWEST) LTD,14/10/2019,1250
Bath and North East Somerset Council,80875244,LM3,Residential Care,P20,Adult Services,ARTI CARE HOMES (SOUTHWEST) LTD,14/10/2019,1250
Bath and North East Somerset Council,80875244,LM3,Residential Care,P20,Adult Services,ARTI CARE HOMES (SOUTHWEST) LTD,14/10/2019,1250
Bath and North East Somerset Council,80875244,LM3,Residential Care,P20,Adult Services,ARTI CARE HOMES (SOUTHWEST) LTD,14/10/2019,1300
Bath and North East Somerset Council,80875244,LM3,Residential Care,P20,Adult Services,ARTI CARE HOMES (SOUTHWEST) LTD,14/10/2019,1300
Bath and North East Somerset Council,80875244,LM3,Residential Care,P20,Adult Services,ARTI CARE HOMES (SOUTHWEST) LTD,14/10/2019,1310
Bath and North East Somerset Council,80875244,LM3,Residential Care,P20,Adult Services,ARTI CARE HOMES (SOUTHWEST) LTD,14/10/2019,1422.24
Bath and North East Somerset Council,80875244,LM3,Residential Care,P20,Adult Services,ARTI CARE HOMES (SOUTHWEST) LTD,14/10/2019,2505.08
Bath and North East Somerset Council,80875244,LM3,Residential Care,P20,Adult Services,ARTI CARE HOMES (SOUTHWEST) LTD,14/10/2019,5010.17
Bath and North East Somerset Council,80875244,LM3,Residential Care,P20,Adult Services,ARTI CARE HOMES (SOUTHWEST) LTD,14/10/2019,7014.24
Bath and North East Somerset Council,80875231,LM3,Residential Care,P20,Adult Services,ARTI SERVICES LTD T/A THE MANOR FARM HOUSE,14/10/2019,1128.24
Bath and North East Somerset Council,80875231,LM3,Residential Care,P20,Adult Services,ARTI SERVICES LTD T/A THE MANOR FARM HOUSE,14/10/2019,1128.24
Bath and North East Somerset Council,80875231,LM3,Residential Care,P20,Adult Services,ARTI SERVICES LTD T/A THE MANOR FARM HOUSE,14/10/2019,1157.46
Bath and North East Somerset Council,80875231,LM3,Residential Care,P20,Adult Services,ARTI SERVICES LTD T/A THE MANOR FARM HOUSE,14/10/2019,1169.04
Bath and North East Somerset Council,80875231,LM3,Residential Care,P20,Adult Services,ARTI SERVICES LTD T/A THE MANOR FARM HOUSE,14/10/2019,1169.04
Bath and North East Somerset Council,80875231,LM3,Residential Care,P20,Adult Services,ARTI SERVICES LTD T/A THE MANOR FARM HOUSE,14/10/2019,1169.04
Bath and North East Somerset Council,80875231,LM3,Residential Care,P20,Adult Services,ARTI SERVICES LTD T/A THE MANOR FARM HOUSE,14/10/2019,1200
Bath and North East Somerset Council,80875231,LM3,Residential Care,P20,Adult Services,ARTI SERVICES LTD T/A THE MANOR FARM HOUSE,14/10/2019,1228.24
Bath and North East Somerset Council,80875231,LM3,Residential Care,P20,Adult Services,ARTI SERVICES LTD T/A THE MANOR FARM HOUSE,14/10/2019,1300
Bath and North East Somerset Council,80875126,LM3,Residential Care,P20,Adult Services,AUTISM SPECIALISED CARE HOMES LTD,14/10/2019,2745.84
Bath and North East Somerset Council,80874870,LL8,Individualised Budget,P20,Adult Services,REDACTED,14/10/2019,1554
Bath and North East Somerset Council,10917044,LW9,Other Expenses,P21,Childrens Services,B&NES COUNCIL -  OFFICE SERVICES,14/10/2019,150
Bath and North East Somerset Council,10917044,LW9,Other Expenses,P21,Childrens Services,B&NES COUNCIL -  OFFICE SERVICES,14/10/2019,5315.21
Bath and North East Somerset Council,80875086,LM6,Nursing Care,P20,Adult Services,BARCHESTER HEALTH CARE,14/10/2019,331.12
Bath and North East Somerset Council,80875086,LM6,Nursing Care,P20,Adult Services,BARCHESTER HEALTH CARE,14/10/2019,331.12
Bath and North East Somerset Council,80875086,LM6,Nursing Care,P20,Adult Services,BARCHESTER HEALTH CARE,14/10/2019,331.12
Bath and North East Somerset Council,80875086,LM6,Nursing Care,P20,Adult Services,BARCHESTER HEALTH CARE,14/10/2019,331.12
Bath and North East Somerset Council,80875086,LM6,Nursing Care,P20,Adult Services,BARCHESTER HEALTH CARE,14/10/2019,331.12
Bath and North East Somerset Council,80875086,LM6,Nursing Care,P20,Adult Services,BARCHESTER HEALTH CARE,14/10/2019,331.12
Bath and North East Somerset Council,80875086,LM6,Nursing Care,P20,Adult Services,BARCHESTER HEALTH CARE,14/10/2019,331.12
Bath and North East Somerset Council,80875086,LM6,Nursing Care,P20,Adult Services,BARCHESTER HEALTH CARE,14/10/2019,331.12
Bath and North East Somerset Council,80875086,LM6,Nursing Care,P20,Adult Services,BARCHESTER HEALTH CARE,14/10/2019,331.12
Bath and North East Somerset Council,80875086,LM6,Nursing Care,P20,Adult Services,BARCHESTER HEALTH CARE,14/10/2019,331.12
Bath and North East Somerset Council,80875086,LM6,Nursing Care,P20,Adult Services,BARCHESTER HEALTH CARE,14/10/2019,331.12
Bath and North East Somerset Council,80875086,LM6,Nursing Care,P20,Adult Services,BARCHESTER HEALTH CARE,14/10/2019,331.12
Bath and North East Somerset Council,80875086,LM6,Nursing Care,P20,Adult Services,BARCHESTER HEALTH CARE,14/10/2019,331.12
Bath and North East Somerset Council,80875086,LM6,Nursing Care,P20,Adult Services,BARCHESTER HEALTH CARE,14/10/2019,331.12
Bath and North East Somerset Council,80875086,LM6,Nursing Care,P20,Adult Services,BARCHESTER HEALTH CARE,14/10/2019,331.12
Bath and North East Somerset Council,80875086,LM6,Nursing Care,P20,Adult Services,BARCHESTER HEALTH CARE,14/10/2019,331.12
Bath and North East Somerset Council,80875086,LM6,Nursing Care,P20,Adult Services,BARCHESTER HEALTH CARE,14/10/2019,331.12
Bath and North East Somerset Council,80875086,LM6,Nursing Care,P20,Adult Services,BARCHESTER HEALTH CARE,14/10/2019,331.12
Bath and North East Somerset Council,80875086,LM6,Nursing Care,P20,Adult Services,BARCHESTER HEALTH CARE,14/10/2019,331.12
Bath and North East Somerset Council,80875086,LM6,Nursing Care,P20,Adult Services,BARCHESTER HEALTH CARE,14/10/2019,331.12
Bath and North East Somerset Council,80875086,LM6,Nursing Care,P20,Adult Services,BARCHESTER HEALTH CARE,14/10/2019,331.12
Bath and North East Somerset Council,80875086,LM6,Nursing Care,P20,Adult Services,BARCHESTER HEALTH CARE,14/10/2019,331.12
Bath and North East Somerset Council,80875086,LM6,Nursing Care,P20,Adult Services,BARCHESTER HEALTH CARE,14/10/2019,331.12
Bath and North East Somerset Council,80875086,LM6,Nursing Care,P20,Adult Services,BARCHESTER HEALTH CARE,14/10/2019,331.12
Bath and North East Somerset Council,80875242,LM6,Nursing Care,P20,Adult Services,BARCHESTER HEALTH CARE,14/10/2019,1256
Bath and North East Somerset Council,80875242,LM6,Nursing Care,P20,Adult Services,BARCHESTER HEALTH CARE,14/10/2019,1478.4
Bath and North East Somerset Council,80875242,LM6,Nursing Care,P20,Adult Services,BARCHESTER HEALTH CARE,14/10/2019,1489.9
Bath and North East Somerset Council,80875242,LM6,Nursing Care,P20,Adult Services,BARCHESTER HEALTH CARE,14/10/2019,1568.88
Bath and North East Somerset Council,80875242,LM6,Nursing Care,P20,Adult Services,BARCHESTER HEALTH CARE,14/10/2019,1628.4
Bath and North East Somerset Council,80875242,LM6,Nursing Care,P20,Adult Services,BARCHESTER HEALTH CARE,14/10/2019,1628.4
Bath and North East Somerset Council,80875242,LM6,Nursing Care,P20,Adult Services,BARCHESTER HEALTH CARE,14/10/2019,1654.88
Bath and North East Somerset Council,80875242,LM6,Nursing Care,P20,Adult Services,BARCHESTER HEALTH CARE,14/10/2019,1669.68
Bath and North East Somerset Council,80875242,LM6,Nursing Care,P20,Adult Services,BARCHESTER HEALTH CARE,14/10/2019,1868.88
Bath and North East Somerset Council,80875242,LM3,Residential Care,P20,Adult Services,BARCHESTER HEALTH CARE,14/10/2019,2060.4
Bath and North East Somerset Council,80875242,LM6,Nursing Care,P20,Adult Services,BARCHESTER HEALTH CARE,14/10/2019,2104.52
Bath and North East Somerset Council,80875242,LM6,Nursing Care,P20,Adult Services,BARCHESTER HEALTH CARE,14/10/2019,2378.4
Bath and North East Somerset Council,80875242,LM6,Nursing Care,P20,Adult Services,BARCHESTER HEALTH CARE,14/10/2019,2463.68
Bath and North East Somerset Council,80875242,LM3,Residential Care,P20,Adult Services,BARCHESTER HEALTH CARE,14/10/2019,2806.18
Bath and North East Somerset Council,80875242,LM6,Nursing Care,P20,Adult Services,BARCHESTER HEALTH CARE,14/10/2019,2960
Bath and North East Somerset Council,80875076,LM6,Nursing Care,P20,Adult Services,BARCHESTER HEALTHCARE HOMES LTD,14/10/2019,331.12
Bath and North East Somerset Council,80875076,LM6,Nursing Care,P20,Adult Services,BARCHESTER HEALTHCARE HOMES LTD,14/10/2019,331.12
Bath and North East Somerset Council,80875076,LM6,Nursing Care,P20,Adult Services,BARCHESTER HEALTHCARE HOMES LTD,14/10/2019,331.12
Bath and North East Somerset Council,80875076,LM6,Nursing Care,P20,Adult Services,BARCHESTER HEALTHCARE HOMES LTD,14/10/2019,331.12
Bath and North East Somerset Council,80875076,LM6,Nursing Care,P20,Adult Services,BARCHESTER HEALTHCARE HOMES LTD,14/10/2019,331.12
Bath and North East Somerset Council,80875076,LM6,Nursing Care,P20,Adult Services,BARCHESTER HEALTHCARE HOMES LTD,14/10/2019,331.12
Bath and North East Somerset Council,80875076,LM6,Nursing Care,P20,Adult Services,BARCHESTER HEALTHCARE HOMES LTD,14/10/2019,331.12
Bath and North East Somerset Council,80875076,LM6,Nursing Care,P20,Adult Services,BARCHESTER HEALTHCARE HOMES LTD,14/10/2019,331.12
Bath and North East Somerset Council,80875076,LM6,Nursing Care,P20,Adult Services,BARCHESTER HEALTHCARE HOMES LTD,14/10/2019,331.12
Bath and North East Somerset Council,10917334,HA2,Servicing,P24,Community Services,HORDERS,14/10/2019,154.56
Bath and North East Somerset Council,80875076,LM6,Nursing Care,P20,Adult Services,BARCHESTER HEALTHCARE HOMES LTD,14/10/2019,331.12
Bath and North East Somerset Council,80875076,LM6,Nursing Care,P20,Adult Services,BARCHESTER HEALTHCARE HOMES LTD,14/10/2019,331.12
Bath and North East Somerset Council,80875076,LM6,Nursing Care,P20,Adult Services,BARCHESTER HEALTHCARE HOMES LTD,14/10/2019,331.12
Bath and North East Somerset Council,80875076,LM6,Nursing Care,P20,Adult Services,BARCHESTER HEALTHCARE HOMES LTD,14/10/2019,331.12
Bath and North East Somerset Council,80875076,LM6,Nursing Care,P20,Adult Services,BARCHESTER HEALTHCARE HOMES LTD,14/10/2019,331.12
Bath and North East Somerset Council,80875076,LM6,Nursing Care,P20,Adult Services,BARCHESTER HEALTHCARE HOMES LTD,14/10/2019,331.12
Bath and North East Somerset Council,80875076,LM6,Nursing Care,P20,Adult Services,BARCHESTER HEALTHCARE HOMES LTD,14/10/2019,331.12
Bath and North East Somerset Council,80875076,LM6,Nursing Care,P20,Adult Services,BARCHESTER HEALTHCARE HOMES LTD,14/10/2019,331.12
Bath and North East Somerset Council,80875076,LM6,Nursing Care,P20,Adult Services,BARCHESTER HEALTHCARE HOMES LTD,14/10/2019,331.12
Bath and North East Somerset Council,80875076,LM6,Nursing Care,P20,Adult Services,BARCHESTER HEALTHCARE HOMES LTD,14/10/2019,331.12
Bath and North East Somerset Council,80875076,LM6,Nursing Care,P20,Adult Services,BARCHESTER HEALTHCARE HOMES LTD,14/10/2019,331.12
Bath and North East Somerset Council,80875076,LM6,Nursing Care,P20,Adult Services,BARCHESTER HEALTHCARE HOMES LTD,14/10/2019,331.12
Bath and North East Somerset Council,80875076,LM6,Nursing Care,P20,Adult Services,BARCHESTER HEALTHCARE HOMES LTD,14/10/2019,331.12
Bath and North East Somerset Council,80875076,LM6,Nursing Care,P20,Adult Services,BARCHESTER HEALTHCARE HOMES LTD,14/10/2019,331.12
Bath and North East Somerset Council,80875076,LM6,Nursing Care,P20,Adult Services,BARCHESTER HEALTHCARE HOMES LTD,14/10/2019,331.12
Bath and North East Somerset Council,80875076,LM6,Nursing Care,P20,Adult Services,BARCHESTER HEALTHCARE HOMES LTD,14/10/2019,331.12
Bath and North East Somerset Council,80875076,LM6,Nursing Care,P20,Adult Services,BARCHESTER HEALTHCARE HOMES LTD,14/10/2019,331.12
Bath and North East Somerset Council,80875076,LM6,Nursing Care,P20,Adult Services,BARCHESTER HEALTHCARE HOMES LTD,14/10/2019,331.12
Bath and North East Somerset Council,80875076,LM6,Nursing Care,P20,Adult Services,BARCHESTER HEALTHCARE HOMES LTD,14/10/2019,331.12
Bath and North East Somerset Council,80875076,LM6,Nursing Care,P20,Adult Services,BARCHESTER HEALTHCARE HOMES LTD,14/10/2019,331.12
Bath and North East Somerset Council,80875076,LM6,Nursing Care,P20,Adult Services,BARCHESTER HEALTHCARE HOMES LTD,14/10/2019,331.12
Bath and North East Somerset Council,80875076,LM6,Nursing Care,P20,Adult Services,BARCHESTER HEALTHCARE HOMES LTD,14/10/2019,331.12
Bath and North East Somerset Council,80875076,LM6,Nursing Care,P20,Adult Services,BARCHESTER HEALTHCARE HOMES LTD,14/10/2019,331.12
Bath and North East Somerset Council,80875076,LM6,Nursing Care,P20,Adult Services,BARCHESTER HEALTHCARE HOMES LTD,14/10/2019,331.12
Bath and North East Somerset Council,80875076,LM6,Nursing Care,P20,Adult Services,BARCHESTER HEALTHCARE HOMES LTD,14/10/2019,331.12
Bath and North East Somerset Council,80875076,LM6,Nursing Care,P20,Adult Services,BARCHESTER HEALTHCARE HOMES LTD,14/10/2019,331.12
Bath and North East Somerset Council,80875076,LM6,Nursing Care,P20,Adult Services,BARCHESTER HEALTHCARE HOMES LTD,14/10/2019,331.12
Bath and North East Somerset Council,80875076,LM6,Nursing Care,P20,Adult Services,BARCHESTER HEALTHCARE HOMES LTD,14/10/2019,331.12
Bath and North East Somerset Council,80875076,LM6,Nursing Care,P20,Adult Services,BARCHESTER HEALTHCARE HOMES LTD,14/10/2019,331.12
Bath and North East Somerset Council,80875076,LM6,Nursing Care,P20,Adult Services,BARCHESTER HEALTHCARE HOMES LTD,14/10/2019,331.12
Bath and North East Somerset Council,80875076,LM6,Nursing Care,P20,Adult Services,BARCHESTER HEALTHCARE HOMES LTD,14/10/2019,331.12
Bath and North East Somerset Council,80875076,LM6,Nursing Care,P20,Adult Services,BARCHESTER HEALTHCARE HOMES LTD,14/10/2019,331.12
Bath and North East Somerset Council,80875076,LM6,Nursing Care,P20,Adult Services,BARCHESTER HEALTHCARE HOMES LTD,14/10/2019,331.12
Bath and North East Somerset Council,80875076,LM6,Nursing Care,P20,Adult Services,BARCHESTER HEALTHCARE HOMES LTD,14/10/2019,331.12
Bath and North East Somerset Council,80875076,LM6,Nursing Care,P20,Adult Services,BARCHESTER HEALTHCARE HOMES LTD,14/10/2019,331.12
Bath and North East Somerset Council,80875076,LM6,Nursing Care,P20,Adult Services,BARCHESTER HEALTHCARE HOMES LTD,14/10/2019,331.12
Bath and North East Somerset Council,80875076,LM6,Nursing Care,P20,Adult Services,BARCHESTER HEALTHCARE HOMES LTD,14/10/2019,331.12
Bath and North East Somerset Council,80875076,LM6,Nursing Care,P20,Adult Services,BARCHESTER HEALTHCARE HOMES LTD,14/10/2019,331.12
Bath and North East Somerset Council,80875076,LM6,Nursing Care,P20,Adult Services,BARCHESTER HEALTHCARE HOMES LTD,14/10/2019,331.12
Bath and North East Somerset Council,80875076,LM6,Nursing Care,P20,Adult Services,BARCHESTER HEALTHCARE HOMES LTD,14/10/2019,331.12
Bath and North East Somerset Council,80875076,LM6,Nursing Care,P20,Adult Services,BARCHESTER HEALTHCARE HOMES LTD,14/10/2019,331.12
Bath and North East Somerset Council,80875076,LM6,Nursing Care,P20,Adult Services,BARCHESTER HEALTHCARE HOMES LTD,14/10/2019,331.12
Bath and North East Somerset Council,80875076,LM6,Nursing Care,P20,Adult Services,BARCHESTER HEALTHCARE HOMES LTD,14/10/2019,331.12
Bath and North East Somerset Council,80875076,LM6,Nursing Care,P20,Adult Services,BARCHESTER HEALTHCARE HOMES LTD,14/10/2019,331.12
Bath and North East Somerset Council,80875116,LM3,Residential Care,P20,Adult Services,ASPECTS & MILESTONES TRUST,14/10/2019,176.02
Bath and North East Somerset Council,80875219,LM6,Nursing Care,P20,Adult Services,BARCHESTER HEALTHCARE HOMES LTD,14/10/2019,744.44
Bath and North East Somerset Council,80875219,LM3,Residential Care,P20,Adult Services,BARCHESTER HEALTHCARE HOMES LTD,14/10/2019,1070.06
Bath and North East Somerset Council,80875219,LM3,Residential Care,P20,Adult Services,BARCHESTER HEALTHCARE HOMES LTD,14/10/2019,1128.24
Bath and North East Somerset Council,80875219,LM3,Residential Care,P20,Adult Services,BARCHESTER HEALTHCARE HOMES LTD,14/10/2019,1128.24
Bath and North East Somerset Council,80875219,LM6,Nursing Care,P20,Adult Services,BARCHESTER HEALTHCARE HOMES LTD,14/10/2019,1134.26
Bath and North East Somerset Council,80875219,LM6,Nursing Care,P20,Adult Services,BARCHESTER HEALTHCARE HOMES LTD,14/10/2019,1134.26
Bath and North East Somerset Council,80875219,LM6,Nursing Care,P20,Adult Services,BARCHESTER HEALTHCARE HOMES LTD,14/10/2019,1134.26
Bath and North East Somerset Council,80875219,LM6,Nursing Care,P20,Adult Services,BARCHESTER HEALTHCARE HOMES LTD,14/10/2019,1134.26
Bath and North East Somerset Council,80875219,LM6,Nursing Care,P20,Adult Services,BARCHESTER HEALTHCARE HOMES LTD,14/10/2019,1134.26
Bath and North East Somerset Council,80875219,LM6,Nursing Care,P20,Adult Services,BARCHESTER HEALTHCARE HOMES LTD,14/10/2019,1134.26
Bath and North East Somerset Council,10917065,LJ4,Contracts,P25,Transport Services,MR S W EDWARDS T/A ROAD RUNNER MINI BUSES,14/10/2019,206.36
Bath and North East Somerset Council,80875219,LM6,Nursing Care,P20,Adult Services,BARCHESTER HEALTHCARE HOMES LTD,14/10/2019,1168.88
Bath and North East Somerset Council,80875219,LM3,Residential Care,P20,Adult Services,BARCHESTER HEALTHCARE HOMES LTD,14/10/2019,1200
Bath and North East Somerset Council,80875219,LM6,Nursing Care,P20,Adult Services,BARCHESTER HEALTHCARE HOMES LTD,14/10/2019,1278.4
Bath and North East Somerset Council,80875219,LM6,Nursing Care,P20,Adult Services,BARCHESTER HEALTHCARE HOMES LTD,14/10/2019,1294.4
Bath and North East Somerset Council,80875219,LM3,Residential Care,P20,Adult Services,BARCHESTER HEALTHCARE HOMES LTD,14/10/2019,1300
Bath and North East Somerset Council,80875219,LM6,Nursing Care,P20,Adult Services,BARCHESTER HEALTHCARE HOMES LTD,14/10/2019,1383.68
Bath and North East Somerset Council,80875219,LM3,Residential Care,P20,Adult Services,BARCHESTER HEALTHCARE HOMES LTD,14/10/2019,1400
Bath and North East Somerset Council,80875219,LM3,Residential Care,P20,Adult Services,BARCHESTER HEALTHCARE HOMES LTD,14/10/2019,1400
Bath and North East Somerset Council,80875219,LM3,Residential Care,P20,Adult Services,BARCHESTER HEALTHCARE HOMES LTD,14/10/2019,1500
Bath and North East Somerset Council,80874715,LM6,Nursing Care,P20,Adult Services,BARCHESTER HEALTHCARE HOMES LTD,14/10/2019,1524.02
Bath and North East Somerset Council,80875219,LM6,Nursing Care,P20,Adult Services,BARCHESTER HEALTHCARE HOMES LTD,14/10/2019,1588.88
Bath and North East Somerset Council,80875219,LM6,Nursing Care,P20,Adult Services,BARCHESTER HEALTHCARE HOMES LTD,14/10/2019,1589.9
Bath and North East Somerset Council,80875219,LM6,Nursing Care,P20,Adult Services,BARCHESTER HEALTHCARE HOMES LTD,14/10/2019,1596.4
Bath and North East Somerset Council,80875219,LM6,Nursing Care,P20,Adult Services,BARCHESTER HEALTHCARE HOMES LTD,14/10/2019,1632.16
Bath and North East Somerset Council,80875219,LM6,Nursing Care,P20,Adult Services,BARCHESTER HEALTHCARE HOMES LTD,14/10/2019,1639.9
Bath and North East Somerset Council,80875219,LM6,Nursing Care,P20,Adult Services,BARCHESTER HEALTHCARE HOMES LTD,14/10/2019,1639.9
Bath and North East Somerset Council,80874715,LM6,Nursing Care,P20,Adult Services,BARCHESTER HEALTHCARE HOMES LTD,14/10/2019,1748
Bath and North East Somerset Council,80875219,LM6,Nursing Care,P20,Adult Services,BARCHESTER HEALTHCARE HOMES LTD,14/10/2019,1989.9
Bath and North East Somerset Council,80875219,LM6,Nursing Care,P20,Adult Services,BARCHESTER HEALTHCARE HOMES LTD,14/10/2019,2183.68
Bath and North East Somerset Council,80874715,LM6,Nursing Care,P20,Adult Services,BARCHESTER HEALTHCARE HOMES LTD,14/10/2019,2200
Bath and North East Somerset Council,80875219,LM6,Nursing Care,P20,Adult Services,BARCHESTER HEALTHCARE HOMES LTD,14/10/2019,2268.88
Bath and North East Somerset Council,10917331,HA2,Servicing,P24,Community Services,HORDERS,14/10/2019,227.49
Bath and North East Somerset Council,10917334,HA2,Servicing,P24,Community Services,HORDERS,14/10/2019,227.49
Bath and North East Somerset Council,80874715,LM6,Nursing Care,P20,Adult Services,BARCHESTER HEALTHCARE HOMES LTD,14/10/2019,2350
Bath and North East Somerset Council,80875219,LM3,Residential Care,P20,Adult Services,BARCHESTER HEALTHCARE HOMES LTD,14/10/2019,2511.18
Bath and North East Somerset Council,80875219,LM6,Nursing Care,P20,Adult Services,BARCHESTER HEALTHCARE HOMES LTD,14/10/2019,2913.63
Bath and North East Somerset Council,80874715,LM6,Nursing Care,P20,Adult Services,BARCHESTER HEALTHCARE HOMES LTD,14/10/2019,3928.57
Bath and North East Somerset Council,80874738,LM6,Nursing Care,P20,Adult Services,BARCHESTER HEALTHCARE HOMES LTD ,14/10/2019,2000
Bath and North East Somerset Council,80875082,LM6,Nursing Care,P20,Adult Services,BARKER CHEMICALS LTD T/A ST TERESA'S NH,14/10/2019,23.65
Bath and North East Somerset Council,80875234,LM6,Nursing Care,P20,Adult Services,BARKER CHEMICALS LTD T/A ST TERESA'S NH,14/10/2019,102.92
Bath and North East Somerset Council,80875082,LM6,Nursing Care,P20,Adult Services,BARKER CHEMICALS LTD T/A ST TERESA'S NH,14/10/2019,331.12
Bath and North East Somerset Council,80875082,LM6,Nursing Care,P20,Adult Services,BARKER CHEMICALS LTD T/A ST TERESA'S NH,14/10/2019,331.12
Bath and North East Somerset Council,80875082,LM6,Nursing Care,P20,Adult Services,BARKER CHEMICALS LTD T/A ST TERESA'S NH,14/10/2019,331.12
Bath and North East Somerset Council,80875082,LM6,Nursing Care,P20,Adult Services,BARKER CHEMICALS LTD T/A ST TERESA'S NH,14/10/2019,331.12
Bath and North East Somerset Council,80875082,LM6,Nursing Care,P20,Adult Services,BARKER CHEMICALS LTD T/A ST TERESA'S NH,14/10/2019,331.12
Bath and North East Somerset Council,80875082,LM6,Nursing Care,P20,Adult Services,BARKER CHEMICALS LTD T/A ST TERESA'S NH,14/10/2019,331.12
Bath and North East Somerset Council,80875082,LM6,Nursing Care,P20,Adult Services,BARKER CHEMICALS LTD T/A ST TERESA'S NH,14/10/2019,331.12
Bath and North East Somerset Council,80875082,LM6,Nursing Care,P20,Adult Services,BARKER CHEMICALS LTD T/A ST TERESA'S NH,14/10/2019,331.12
Bath and North East Somerset Council,80875082,LM6,Nursing Care,P20,Adult Services,BARKER CHEMICALS LTD T/A ST TERESA'S NH,14/10/2019,331.12
Bath and North East Somerset Council,80875082,LM6,Nursing Care,P20,Adult Services,BARKER CHEMICALS LTD T/A ST TERESA'S NH,14/10/2019,331.12
Bath and North East Somerset Council,80875082,LM6,Nursing Care,P20,Adult Services,BARKER CHEMICALS LTD T/A ST TERESA'S NH,14/10/2019,331.12
Bath and North East Somerset Council,80875082,LM6,Nursing Care,P20,Adult Services,BARKER CHEMICALS LTD T/A ST TERESA'S NH,14/10/2019,331.12
Bath and North East Somerset Council,80875082,LM6,Nursing Care,P20,Adult Services,BARKER CHEMICALS LTD T/A ST TERESA'S NH,14/10/2019,331.12
Bath and North East Somerset Council,80875082,LM6,Nursing Care,P20,Adult Services,BARKER CHEMICALS LTD T/A ST TERESA'S NH,14/10/2019,331.12
Bath and North East Somerset Council,80875082,LM6,Nursing Care,P20,Adult Services,BARKER CHEMICALS LTD T/A ST TERESA'S NH,14/10/2019,331.12
Bath and North East Somerset Council,80875082,LM6,Nursing Care,P20,Adult Services,BARKER CHEMICALS LTD T/A ST TERESA'S NH,14/10/2019,331.12
Bath and North East Somerset Council,80875082,LM6,Nursing Care,P20,Adult Services,BARKER CHEMICALS LTD T/A ST TERESA'S NH,14/10/2019,331.12
Bath and North East Somerset Council,80875082,LM6,Nursing Care,P20,Adult Services,BARKER CHEMICALS LTD T/A ST TERESA'S NH,14/10/2019,331.12
Bath and North East Somerset Council,80875082,LM6,Nursing Care,P20,Adult Services,BARKER CHEMICALS LTD T/A ST TERESA'S NH,14/10/2019,331.12
Bath and North East Somerset Council,80875082,LM6,Nursing Care,P20,Adult Services,BARKER CHEMICALS LTD T/A ST TERESA'S NH,14/10/2019,331.12
Bath and North East Somerset Council,80875082,LM6,Nursing Care,P20,Adult Services,BARKER CHEMICALS LTD T/A ST TERESA'S NH,14/10/2019,331.12
Bath and North East Somerset Council,80875082,LM6,Nursing Care,P20,Adult Services,BARKER CHEMICALS LTD T/A ST TERESA'S NH,14/10/2019,331.12
Bath and North East Somerset Council,80875082,LM6,Nursing Care,P20,Adult Services,BARKER CHEMICALS LTD T/A ST TERESA'S NH,14/10/2019,331.12
Bath and North East Somerset Council,80875082,LM6,Nursing Care,P20,Adult Services,BARKER CHEMICALS LTD T/A ST TERESA'S NH,14/10/2019,331.12
Bath and North East Somerset Council,80875082,LM6,Nursing Care,P20,Adult Services,BARKER CHEMICALS LTD T/A ST TERESA'S NH,14/10/2019,331.12
Bath and North East Somerset Council,80875082,LM6,Nursing Care,P20,Adult Services,BARKER CHEMICALS LTD T/A ST TERESA'S NH,14/10/2019,331.12
Bath and North East Somerset Council,80875082,LM6,Nursing Care,P20,Adult Services,BARKER CHEMICALS LTD T/A ST TERESA'S NH,14/10/2019,331.12
Bath and North East Somerset Council,80875082,LM6,Nursing Care,P20,Adult Services,BARKER CHEMICALS LTD T/A ST TERESA'S NH,14/10/2019,331.12
Bath and North East Somerset Council,80875082,LM6,Nursing Care,P20,Adult Services,BARKER CHEMICALS LTD T/A ST TERESA'S NH,14/10/2019,331.12
Bath and North East Somerset Council,80875082,LM6,Nursing Care,P20,Adult Services,BARKER CHEMICALS LTD T/A ST TERESA'S NH,14/10/2019,331.12
Bath and North East Somerset Council,80875082,LM6,Nursing Care,P20,Adult Services,BARKER CHEMICALS LTD T/A ST TERESA'S NH,14/10/2019,331.12
Bath and North East Somerset Council,80875082,LM6,Nursing Care,P20,Adult Services,BARKER CHEMICALS LTD T/A ST TERESA'S NH,14/10/2019,331.12
Bath and North East Somerset Council,80875082,LM6,Nursing Care,P20,Adult Services,BARKER CHEMICALS LTD T/A ST TERESA'S NH,14/10/2019,331.12
Bath and North East Somerset Council,80875082,LM6,Nursing Care,P20,Adult Services,BARKER CHEMICALS LTD T/A ST TERESA'S NH,14/10/2019,331.12
Bath and North East Somerset Council,80875082,LM6,Nursing Care,P20,Adult Services,BARKER CHEMICALS LTD T/A ST TERESA'S NH,14/10/2019,331.12
Bath and North East Somerset Council,80875082,LM6,Nursing Care,P20,Adult Services,BARKER CHEMICALS LTD T/A ST TERESA'S NH,14/10/2019,331.12
Bath and North East Somerset Council,80875082,LM6,Nursing Care,P20,Adult Services,BARKER CHEMICALS LTD T/A ST TERESA'S NH,14/10/2019,331.12
Bath and North East Somerset Council,80875082,LM6,Nursing Care,P20,Adult Services,BARKER CHEMICALS LTD T/A ST TERESA'S NH,14/10/2019,331.12
Bath and North East Somerset Council,80875082,LM6,Nursing Care,P20,Adult Services,BARKER CHEMICALS LTD T/A ST TERESA'S NH,14/10/2019,331.12
Bath and North East Somerset Council,80875082,LM6,Nursing Care,P20,Adult Services,BARKER CHEMICALS LTD T/A ST TERESA'S NH,14/10/2019,331.12
Bath and North East Somerset Council,80875082,LM6,Nursing Care,P20,Adult Services,BARKER CHEMICALS LTD T/A ST TERESA'S NH,14/10/2019,331.12
Bath and North East Somerset Council,80875082,LM6,Nursing Care,P20,Adult Services,BARKER CHEMICALS LTD T/A ST TERESA'S NH,14/10/2019,331.12
Bath and North East Somerset Council,80875082,LM6,Nursing Care,P20,Adult Services,BARKER CHEMICALS LTD T/A ST TERESA'S NH,14/10/2019,331.12
Bath and North East Somerset Council,80875082,LM6,Nursing Care,P20,Adult Services,BARKER CHEMICALS LTD T/A ST TERESA'S NH,14/10/2019,331.12
Bath and North East Somerset Council,80875234,XD3,Client Contributions,P20,Adult Services,BARKER CHEMICALS LTD T/A ST TERESA'S NH,14/10/2019,750
Bath and North East Somerset Council,80875234,LM6,Nursing Care,P20,Adult Services,BARKER CHEMICALS LTD T/A ST TERESA'S NH,14/10/2019,1170.98
Bath and North East Somerset Council,80875234,LM6,Nursing Care,P20,Adult Services,BARKER CHEMICALS LTD T/A ST TERESA'S NH,14/10/2019,1170.98
Bath and North East Somerset Council,80875234,LM6,Nursing Care,P20,Adult Services,BARKER CHEMICALS LTD T/A ST TERESA'S NH,14/10/2019,1170.98
Bath and North East Somerset Council,80875234,LM6,Nursing Care,P20,Adult Services,BARKER CHEMICALS LTD T/A ST TERESA'S NH,14/10/2019,1320.4
Bath and North East Somerset Council,80875234,LM6,Nursing Care,P20,Adult Services,BARKER CHEMICALS LTD T/A ST TERESA'S NH,14/10/2019,1361.94
Bath and North East Somerset Council,80875234,LM6,Nursing Care,P20,Adult Services,BARKER CHEMICALS LTD T/A ST TERESA'S NH,14/10/2019,1394.4
Bath and North East Somerset Council,80875234,LM6,Nursing Care,P20,Adult Services,BARKER CHEMICALS LTD T/A ST TERESA'S NH,14/10/2019,1412.4
Bath and North East Somerset Council,80875234,LM6,Nursing Care,P20,Adult Services,BARKER CHEMICALS LTD T/A ST TERESA'S NH,14/10/2019,1428.4
Bath and North East Somerset Council,80875234,LM3,Residential Care,P20,Adult Services,BARKER CHEMICALS LTD T/A ST TERESA'S NH,14/10/2019,1437.5
Bath and North East Somerset Council,80875234,LM6,Nursing Care,P20,Adult Services,BARKER CHEMICALS LTD T/A ST TERESA'S NH,14/10/2019,1451.86
Bath and North East Somerset Council,80875234,LM6,Nursing Care,P20,Adult Services,BARKER CHEMICALS LTD T/A ST TERESA'S NH,14/10/2019,1455.68
Bath and North East Somerset Council,80875234,LM6,Nursing Care,P20,Adult Services,BARKER CHEMICALS LTD T/A ST TERESA'S NH,14/10/2019,1455.68
Bath and North East Somerset Council,10917331,HA2,Servicing,P22,Climate Emergency & Neighbourhood Services,HORDERS,14/10/2019,252.26
Bath and North East Somerset Council,80875234,LM6,Nursing Care,P20,Adult Services,BARKER CHEMICALS LTD T/A ST TERESA'S NH,14/10/2019,1456
Bath and North East Somerset Council,80875234,LM6,Nursing Care,P20,Adult Services,BARKER CHEMICALS LTD T/A ST TERESA'S NH,14/10/2019,1456
Bath and North East Somerset Council,80875234,LM6,Nursing Care,P20,Adult Services,BARKER CHEMICALS LTD T/A ST TERESA'S NH,14/10/2019,1459.5
Bath and North East Somerset Council,80875234,LM6,Nursing Care,P20,Adult Services,BARKER CHEMICALS LTD T/A ST TERESA'S NH,14/10/2019,1466.92
Bath and North East Somerset Council,80875234,LM6,Nursing Care,P20,Adult Services,BARKER CHEMICALS LTD T/A ST TERESA'S NH,14/10/2019,1468.4
Bath and North East Somerset Council,80875234,LM6,Nursing Care,P20,Adult Services,BARKER CHEMICALS LTD T/A ST TERESA'S NH,14/10/2019,1479.9
Bath and North East Somerset Council,80875234,LM6,Nursing Care,P20,Adult Services,BARKER CHEMICALS LTD T/A ST TERESA'S NH,14/10/2019,1479.9
Bath and North East Somerset Council,80875234,LM6,Nursing Care,P20,Adult Services,BARKER CHEMICALS LTD T/A ST TERESA'S NH,14/10/2019,1479.9
Bath and North East Somerset Council,80875234,LM6,Nursing Care,P20,Adult Services,BARKER CHEMICALS LTD T/A ST TERESA'S NH,14/10/2019,1500
Bath and North East Somerset Council,80875234,LM3,Residential Care,P20,Adult Services,BARKER CHEMICALS LTD T/A ST TERESA'S NH,14/10/2019,1540
Bath and North East Somerset Council,80875234,LM6,Nursing Care,P20,Adult Services,BARKER CHEMICALS LTD T/A ST TERESA'S NH,14/10/2019,1561.68
Bath and North East Somerset Council,80875234,LM6,Nursing Care,P20,Adult Services,BARKER CHEMICALS LTD T/A ST TERESA'S NH,14/10/2019,1561.68
Bath and North East Somerset Council,80875234,LM6,Nursing Care,P20,Adult Services,BARKER CHEMICALS LTD T/A ST TERESA'S NH,14/10/2019,1564.88
Bath and North East Somerset Council,80875234,LM6,Nursing Care,P20,Adult Services,BARKER CHEMICALS LTD T/A ST TERESA'S NH,14/10/2019,1594.8
Bath and North East Somerset Council,80875234,LM6,Nursing Care,P20,Adult Services,BARKER CHEMICALS LTD T/A ST TERESA'S NH,14/10/2019,1614
Bath and North East Somerset Council,80875234,LM6,Nursing Care,P20,Adult Services,BARKER CHEMICALS LTD T/A ST TERESA'S NH,14/10/2019,1666
Bath and North East Somerset Council,80875234,LM3,Residential Care,P20,Adult Services,BARKER CHEMICALS LTD T/A ST TERESA'S NH,14/10/2019,1666.5
Bath and North East Somerset Council,80875234,LM6,Nursing Care,P20,Adult Services,BARKER CHEMICALS LTD T/A ST TERESA'S NH,14/10/2019,1740
Bath and North East Somerset Council,80874722,LM6,Nursing Care,P20,Adult Services,BARKER CHEMICALS LTD T/A ST TERESA'S NH,14/10/2019,1970
Bath and North East Somerset Council,80875234,LM6,Nursing Care,P20,Adult Services,BARKER CHEMICALS LTD T/A ST TERESA'S NH,14/10/2019,2043.68
Bath and North East Somerset Council,80874722,LM6,Nursing Care,P20,Adult Services,BARKER CHEMICALS LTD T/A ST TERESA'S NH,14/10/2019,2086
Bath and North East Somerset Council,80875234,LM6,Nursing Care,P20,Adult Services,BARKER CHEMICALS LTD T/A ST TERESA'S NH,14/10/2019,3465.09
Bath and North East Somerset Council,80874748,LL8,Individualised Budget,P20,Adult Services,REDACTED,14/10/2019,1533.2
Bath and North East Somerset Council,10917294,DB1,Agency Staff,P25,Transport Services,STEVE WARREN TRANSPORT SERVICES LTD,14/10/2019,285
Bath and North East Somerset Council,80875224,LM3,Residential Care,P20,Adult Services,BATH MIND,14/10/2019,1731.8
Bath and North East Somerset Council,80875224,LM3,Residential Care,P20,Adult Services,BATH MIND,14/10/2019,1731.8
Bath and North East Somerset Council,80875224,LM3,Residential Care,P20,Adult Services,BATH MIND,14/10/2019,1731.8
Bath and North East Somerset Council,80875224,LM3,Residential Care,P20,Adult Services,BATH MIND,14/10/2019,1731.8
Bath and North East Somerset Council,80875224,LM3,Residential Care,P20,Adult Services,BATH MIND,14/10/2019,1731.8
Bath and North East Somerset Council,80875224,LM3,Residential Care,P20,Adult Services,BATH MIND,14/10/2019,1731.8
Bath and North East Somerset Council,80875222,LM3,Residential Care,P20,Adult Services,BCVS HOMES,14/10/2019,1128.24
Bath and North East Somerset Council,80875222,LM3,Residential Care,P20,Adult Services,BCVS HOMES,14/10/2019,1128.24
Bath and North East Somerset Council,80875222,LM3,Residential Care,P20,Adult Services,BCVS HOMES,14/10/2019,1154
Bath and North East Somerset Council,80875222,LM3,Residential Care,P20,Adult Services,BCVS HOMES,14/10/2019,1169.04
Bath and North East Somerset Council,80875222,LM3,Residential Care,P20,Adult Services,BCVS HOMES,14/10/2019,1212
Bath and North East Somerset Council,80875222,LM3,Residential Care,P20,Adult Services,BCVS HOMES,14/10/2019,1240
Bath and North East Somerset Council,80875222,LM3,Residential Care,P20,Adult Services,BCVS HOMES,14/10/2019,1280
Bath and North East Somerset Council,80875222,LM3,Residential Care,P20,Adult Services,BCVS HOMES,14/10/2019,1290
Bath and North East Somerset Council,80875222,LM3,Residential Care,P20,Adult Services,BCVS HOMES,14/10/2019,1290
Bath and North East Somerset Council,80875222,LM3,Residential Care,P20,Adult Services,BCVS HOMES,14/10/2019,1372
Bath and North East Somerset Council,80875246,LM3,Residential Care,P20,Adult Services,BEDBOROUGH HOUSE,14/10/2019,5476.54
Bath and North East Somerset Council,80875246,LM3,Residential Care,P20,Adult Services,BEDBOROUGH HOUSE,14/10/2019,6172.52
Bath and North East Somerset Council,80875246,LM3,Residential Care,P20,Adult Services,BEDBOROUGH HOUSE,14/10/2019,7029.32
Bath and North East Somerset Council,80875139,LM3,Residential Care,P20,Adult Services,BELMONT VILLA RESIDENTIAL NURSING HOME LTD,14/10/2019,1500
Bath and North East Somerset Council,80875202,LM6,Nursing Care,P20,Adult Services,BONAER CARE HOME,14/10/2019,1604
Bath and North East Somerset Council,80875121,LM3,Residential Care,P20,Adult Services,BRADBURY HOUSE LTD,14/10/2019,2364.68
Bath and North East Somerset Council,80875121,LM3,Residential Care,P20,Adult Services,BRADBURY HOUSE LTD,14/10/2019,2423.32
Bath and North East Somerset Council,80875121,LM3,Residential Care,P20,Adult Services,BRADBURY HOUSE LTD,14/10/2019,2532.22
Bath and North East Somerset Council,80875121,LM3,Residential Care,P20,Adult Services,BRADBURY HOUSE LTD,14/10/2019,2946.24
Bath and North East Somerset Council,80875121,LM3,Residential Care,P20,Adult Services,BRADBURY HOUSE LTD,14/10/2019,3152.16
Bath and North East Somerset Council,80875121,LM3,Residential Care,P20,Adult Services,BRADBURY HOUSE LTD,14/10/2019,4021.4
Bath and North East Somerset Council,80875121,LM3,Residential Care,P20,Adult Services,BRADBURY HOUSE LTD,14/10/2019,4131.74
Bath and North East Somerset Council,80875121,LM3,Residential Care,P20,Adult Services,BRADBURY HOUSE LTD,14/10/2019,4435.82
Bath and North East Somerset Council,80875121,LM3,Residential Care,P20,Adult Services,BRADBURY HOUSE LTD,14/10/2019,4661.88
Bath and North East Somerset Council,80875121,LM3,Residential Care,P20,Adult Services,BRADBURY HOUSE LTD,14/10/2019,4912.68
Bath and North East Somerset Council,80875121,LM3,Residential Care,P20,Adult Services,BRADBURY HOUSE LTD,14/10/2019,4989.86
Bath and North East Somerset Council,80875121,LM3,Residential Care,P20,Adult Services,BRADBURY HOUSE LTD,14/10/2019,5105.06
Bath and North East Somerset Council,80875121,LM3,Residential Care,P20,Adult Services,BRADBURY HOUSE LTD,14/10/2019,5264.62
Bath and North East Somerset Council,80875121,LM3,Residential Care,P20,Adult Services,BRADBURY HOUSE LTD,14/10/2019,5416.3
Bath and North East Somerset Council,80875121,LM3,Residential Care,P20,Adult Services,BRADBURY HOUSE LTD,14/10/2019,6260.38
Bath and North East Somerset Council,80875069,LM6,Nursing Care,P20,Adult Services,BRIDGE CARE LTD,14/10/2019,331.12
Bath and North East Somerset Council,80875069,LM6,Nursing Care,P20,Adult Services,BRIDGE CARE LTD,14/10/2019,331.12
Bath and North East Somerset Council,80875069,LM6,Nursing Care,P20,Adult Services,BRIDGE CARE LTD,14/10/2019,331.12
Bath and North East Somerset Council,80875069,LM6,Nursing Care,P20,Adult Services,BRIDGE CARE LTD,14/10/2019,331.12
Bath and North East Somerset Council,80875069,LM6,Nursing Care,P20,Adult Services,BRIDGE CARE LTD,14/10/2019,331.12
Bath and North East Somerset Council,80875069,LM6,Nursing Care,P20,Adult Services,BRIDGE CARE LTD,14/10/2019,331.12
Bath and North East Somerset Council,80875069,LM6,Nursing Care,P20,Adult Services,BRIDGE CARE LTD,14/10/2019,331.12
Bath and North East Somerset Council,80875069,LM6,Nursing Care,P20,Adult Services,BRIDGE CARE LTD,14/10/2019,331.12
Bath and North East Somerset Council,80875069,LM6,Nursing Care,P20,Adult Services,BRIDGE CARE LTD,14/10/2019,331.12
Bath and North East Somerset Council,80875069,LM6,Nursing Care,P20,Adult Services,BRIDGE CARE LTD,14/10/2019,331.12
Bath and North East Somerset Council,80875069,LM6,Nursing Care,P20,Adult Services,BRIDGE CARE LTD,14/10/2019,331.12
Bath and North East Somerset Council,80875069,LM6,Nursing Care,P20,Adult Services,BRIDGE CARE LTD,14/10/2019,331.12
Bath and North East Somerset Council,80875069,LM6,Nursing Care,P20,Adult Services,BRIDGE CARE LTD,14/10/2019,331.12
Bath and North East Somerset Council,80875069,LM6,Nursing Care,P20,Adult Services,BRIDGE CARE LTD,14/10/2019,331.12
Bath and North East Somerset Council,80875069,LM6,Nursing Care,P20,Adult Services,BRIDGE CARE LTD,14/10/2019,331.12
Bath and North East Somerset Council,80875069,LM6,Nursing Care,P20,Adult Services,BRIDGE CARE LTD,14/10/2019,331.12
Bath and North East Somerset Council,80875212,LM3,Residential Care,P20,Adult Services,BRIDGE CARE LTD,14/10/2019,1128.24
Bath and North East Somerset Council,80875212,LM6,Nursing Care,P20,Adult Services,BRIDGE CARE LTD,14/10/2019,1134.26
Bath and North East Somerset Council,80875212,LM6,Nursing Care,P20,Adult Services,BRIDGE CARE LTD,14/10/2019,1134.26
Bath and North East Somerset Council,80875212,LM6,Nursing Care,P20,Adult Services,BRIDGE CARE LTD,14/10/2019,1134.26
Bath and North East Somerset Council,80875212,LM3,Residential Care,P20,Adult Services,BRIDGE CARE LTD,14/10/2019,1300
Bath and North East Somerset Council,80875212,LM6,Nursing Care,P20,Adult Services,BRIDGE CARE LTD,14/10/2019,1412.4
Bath and North East Somerset Council,80875212,LM6,Nursing Care,P20,Adult Services,BRIDGE CARE LTD,14/10/2019,1458.88
Bath and North East Somerset Council,80875212,LM3,Residential Care,P20,Adult Services,BRIDGE CARE LTD,14/10/2019,1600
Bath and North East Somerset Council,80875212,LM3,Residential Care,P20,Adult Services,BRIDGE CARE LTD,14/10/2019,1600
Bath and North East Somerset Council,80875212,LM3,Residential Care,P20,Adult Services,BRIDGE CARE LTD,14/10/2019,1624.2
Bath and North East Somerset Council,80875212,LM6,Nursing Care,P20,Adult Services,BRIDGE CARE LTD,14/10/2019,1700
Bath and North East Somerset Council,80875212,LM6,Nursing Care,P20,Adult Services,BRIDGE CARE LTD,14/10/2019,2150
Bath and North East Somerset Council,80875101,LM6,Nursing Care,P20,Adult Services,BRIGHTBOW LODGE,14/10/2019,1419.74
Bath and North East Somerset Council,80875101,LM6,Nursing Care,P20,Adult Services,BRIGHTBOW LODGE,14/10/2019,1419.74
Bath and North East Somerset Council,80875101,LM6,Nursing Care,P20,Adult Services,BRIGHTBOW LODGE,14/10/2019,1987.1
Bath and North East Somerset Council,80875114,LM6,Nursing Care,P20,Adult Services,BRISTOL AGE CARE,14/10/2019,1888.5
Bath and North East Somerset Council,80875114,LM6,Nursing Care,P20,Adult Services,BRISTOL AGE CARE,14/10/2019,1900
Bath and North East Somerset Council,80875174,LM3,Residential Care,P20,Adult Services,BROUGHTON LODGE CARE HOME LTD,14/10/2019,1039.62
Bath and North East Somerset Council,80875161,LM3,Residential Care,P20,Adult Services,BRUNEL CARE HOME,14/10/2019,1157.46
Bath and North East Somerset Council,80875161,LM3,Residential Care,P20,Adult Services,BRUNEL CARE HOME,14/10/2019,1600
Bath and North East Somerset Council,80875161,LM6,Nursing Care,P20,Adult Services,BRUNEL CARE HOME,14/10/2019,1604
Bath and North East Somerset Council,80875161,LM6,Nursing Care,P20,Adult Services,BRUNEL CARE HOME,14/10/2019,1987.5
Bath and North East Somerset Council,80875134,LM6,Nursing Care,P20,Adult Services,BRUNELCARE WELFARE,14/10/2019,1988.5
Bath and North East Somerset Council,80875073,LM6,Nursing Care,P20,Adult Services,REDACTED,14/10/2019,331.12
Bath and North East Somerset Council,80875073,LM6,Nursing Care,P20,Adult Services,REDACTED,14/10/2019,331.12
Bath and North East Somerset Council,80875073,LM6,Nursing Care,P20,Adult Services,REDACTED,14/10/2019,331.12
Bath and North East Somerset Council,80875073,LM6,Nursing Care,P20,Adult Services,REDACTED,14/10/2019,331.12
Bath and North East Somerset Council,80875073,LM6,Nursing Care,P20,Adult Services,REDACTED,14/10/2019,331.12
Bath and North East Somerset Council,80875073,LM6,Nursing Care,P20,Adult Services,REDACTED,14/10/2019,331.12
Bath and North East Somerset Council,80875073,LM6,Nursing Care,P20,Adult Services,REDACTED,14/10/2019,331.12
Bath and North East Somerset Council,80875073,LM6,Nursing Care,P20,Adult Services,REDACTED,14/10/2019,331.12
Bath and North East Somerset Council,80875105,LM6,Nursing Care,P20,Adult Services,REDACTED,14/10/2019,1500
Bath and North East Somerset Council,80875124,LM3,Residential Care,P20,Adult Services,C.H.O.I.C.E LTD,14/10/2019,4494.72
Bath and North East Somerset Council,80875145,LM3,Residential Care,P20,Adult Services,CAMPANIA CARE HOME,14/10/2019,1500
Bath and North East Somerset Council,80875144,LM3,Residential Care,P20,Adult Services,CAMPHILL DEVON COMMUNITY LTD,14/10/2019,1813.88
Bath and North East Somerset Council,80875083,LM6,Nursing Care,P20,Adult Services,CARE FIRST CARE HOMES LTD,14/10/2019,331.12
Bath and North East Somerset Council,80875083,LM6,Nursing Care,P20,Adult Services,CARE FIRST CARE HOMES LTD,14/10/2019,331.12
Bath and North East Somerset Council,80875083,LM6,Nursing Care,P20,Adult Services,CARE FIRST CARE HOMES LTD,14/10/2019,331.12
Bath and North East Somerset Council,80875083,LM6,Nursing Care,P20,Adult Services,CARE FIRST CARE HOMES LTD,14/10/2019,331.12
Bath and North East Somerset Council,80875083,LM6,Nursing Care,P20,Adult Services,CARE FIRST CARE HOMES LTD,14/10/2019,331.12
Bath and North East Somerset Council,80875083,LM6,Nursing Care,P20,Adult Services,CARE FIRST CARE HOMES LTD,14/10/2019,331.12
Bath and North East Somerset Council,80875083,LM6,Nursing Care,P20,Adult Services,CARE FIRST CARE HOMES LTD,14/10/2019,331.12
Bath and North East Somerset Council,80875083,LM6,Nursing Care,P20,Adult Services,CARE FIRST CARE HOMES LTD,14/10/2019,331.12
Bath and North East Somerset Council,80875083,LM6,Nursing Care,P20,Adult Services,CARE FIRST CARE HOMES LTD,14/10/2019,331.12
Bath and North East Somerset Council,80875083,LM6,Nursing Care,P20,Adult Services,CARE FIRST CARE HOMES LTD,14/10/2019,543.98
Bath and North East Somerset Council,80875237,LM6,Nursing Care,P20,Adult Services,CARE FIRST CARE HOMES LTD,14/10/2019,1134.26
Bath and North East Somerset Council,80875237,LM3,Residential Care,P20,Adult Services,CARE FIRST CARE HOMES LTD,14/10/2019,1489.18
Bath and North East Somerset Council,80875237,LM6,Nursing Care,P20,Adult Services,CARE FIRST CARE HOMES LTD,14/10/2019,1668.88
Bath and North East Somerset Council,80875237,LM6,Nursing Care,P20,Adult Services,CARE FIRST CARE HOMES LTD,14/10/2019,1800
Bath and North East Somerset Council,80875191,LM3,Residential Care,P20,Adult Services,CARE MANAGEMENT GROUP LTD,14/10/2019,6217.24
Bath and North East Somerset Council,80874866,LL8,Individualised Budget,P20,Adult Services,REDACTED,14/10/2019,1140
Bath and North East Somerset Council,80874730,LM6,Nursing Care,P20,Adult Services,CAS BEHAVIOURAL HEALTH LTD,14/10/2019,5769.58
Bath and North East Somerset Council,80874730,LM6,Nursing Care,P20,Adult Services,CAS BEHAVIOURAL HEALTH LTD,14/10/2019,5983.32
Bath and North East Somerset Council,80874730,LM6,Nursing Care,P20,Adult Services,CAS BEHAVIOURAL HEALTH LTD,14/10/2019,6869.58
Bath and North East Somerset Council,80874564,LK1,Fees,P21,Childrens Services,CATERPILLARS DAY NURSERY,14/10/2019,1080
Bath and North East Somerset Council,80874565,LK1,Fees,P21,Childrens Services,CATERPILLARS DAY NURSERY,14/10/2019,1080
Bath and North East Somerset Council,80875230,LM6,Nursing Care,P20,Adult Services,CEDAR CARE HOMES LTD,14/10/2019,46.42
Bath and North East Somerset Council,80875230,XD3,Client Contributions,P20,Adult Services,CEDAR CARE HOMES LTD,14/10/2019,193.63
Bath and North East Somerset Council,80875080,LM6,Nursing Care,P20,Adult Services,CEDAR CARE HOMES LTD,14/10/2019,331.12
Bath and North East Somerset Council,80875080,LM6,Nursing Care,P20,Adult Services,CEDAR CARE HOMES LTD,14/10/2019,331.12
Bath and North East Somerset Council,80875080,LM6,Nursing Care,P20,Adult Services,CEDAR CARE HOMES LTD,14/10/2019,331.12
Bath and North East Somerset Council,80875080,LM6,Nursing Care,P20,Adult Services,CEDAR CARE HOMES LTD,14/10/2019,331.12
Bath and North East Somerset Council,80875080,LM6,Nursing Care,P20,Adult Services,CEDAR CARE HOMES LTD,14/10/2019,331.12
Bath and North East Somerset Council,80875080,LM6,Nursing Care,P20,Adult Services,CEDAR CARE HOMES LTD,14/10/2019,331.12
Bath and North East Somerset Council,80875080,LM6,Nursing Care,P20,Adult Services,CEDAR CARE HOMES LTD,14/10/2019,331.12
Bath and North East Somerset Council,80875080,LM6,Nursing Care,P20,Adult Services,CEDAR CARE HOMES LTD,14/10/2019,331.12
Bath and North East Somerset Council,80875080,LM6,Nursing Care,P20,Adult Services,CEDAR CARE HOMES LTD,14/10/2019,331.12
Bath and North East Somerset Council,80875080,LM6,Nursing Care,P20,Adult Services,CEDAR CARE HOMES LTD,14/10/2019,331.12
Bath and North East Somerset Council,80875080,LM6,Nursing Care,P20,Adult Services,CEDAR CARE HOMES LTD,14/10/2019,331.12
Bath and North East Somerset Council,80875080,LM6,Nursing Care,P20,Adult Services,CEDAR CARE HOMES LTD,14/10/2019,331.12
Bath and North East Somerset Council,80875080,LM6,Nursing Care,P20,Adult Services,CEDAR CARE HOMES LTD,14/10/2019,331.12
Bath and North East Somerset Council,80875080,LM6,Nursing Care,P20,Adult Services,CEDAR CARE HOMES LTD,14/10/2019,331.12
Bath and North East Somerset Council,80875080,LM6,Nursing Care,P20,Adult Services,CEDAR CARE HOMES LTD,14/10/2019,331.12
Bath and North East Somerset Council,80875080,LM6,Nursing Care,P20,Adult Services,CEDAR CARE HOMES LTD,14/10/2019,331.12
Bath and North East Somerset Council,80875080,LM6,Nursing Care,P20,Adult Services,CEDAR CARE HOMES LTD,14/10/2019,331.12
Bath and North East Somerset Council,80875080,LM6,Nursing Care,P20,Adult Services,CEDAR CARE HOMES LTD,14/10/2019,331.12
Bath and North East Somerset Council,80875080,LM6,Nursing Care,P20,Adult Services,CEDAR CARE HOMES LTD,14/10/2019,331.12
Bath and North East Somerset Council,80875080,LM6,Nursing Care,P20,Adult Services,CEDAR CARE HOMES LTD,14/10/2019,331.12
Bath and North East Somerset Council,80875080,LM6,Nursing Care,P20,Adult Services,CEDAR CARE HOMES LTD,14/10/2019,331.12
Bath and North East Somerset Council,80875080,LM6,Nursing Care,P20,Adult Services,CEDAR CARE HOMES LTD,14/10/2019,331.12
Bath and North East Somerset Council,80875080,LM6,Nursing Care,P20,Adult Services,CEDAR CARE HOMES LTD,14/10/2019,331.12
Bath and North East Somerset Council,80875080,LM6,Nursing Care,P20,Adult Services,CEDAR CARE HOMES LTD,14/10/2019,331.12
Bath and North East Somerset Council,80875080,LM6,Nursing Care,P20,Adult Services,CEDAR CARE HOMES LTD,14/10/2019,331.12
Bath and North East Somerset Council,80875080,LM6,Nursing Care,P20,Adult Services,CEDAR CARE HOMES LTD,14/10/2019,331.12
Bath and North East Somerset Council,80875080,LM6,Nursing Care,P20,Adult Services,CEDAR CARE HOMES LTD,14/10/2019,331.12
Bath and North East Somerset Council,80875084,LM6,Nursing Care,P20,Adult Services,CEDAR CARE HOMES LTD,14/10/2019,331.12
Bath and North East Somerset Council,80875084,LM6,Nursing Care,P20,Adult Services,CEDAR CARE HOMES LTD,14/10/2019,331.12
Bath and North East Somerset Council,80875084,LM6,Nursing Care,P20,Adult Services,CEDAR CARE HOMES LTD,14/10/2019,331.12
Bath and North East Somerset Council,80875084,LM6,Nursing Care,P20,Adult Services,CEDAR CARE HOMES LTD,14/10/2019,331.12
Bath and North East Somerset Council,80875084,LM6,Nursing Care,P20,Adult Services,CEDAR CARE HOMES LTD,14/10/2019,331.12
Bath and North East Somerset Council,80875084,LM6,Nursing Care,P20,Adult Services,CEDAR CARE HOMES LTD,14/10/2019,331.12
Bath and North East Somerset Council,80875084,LM6,Nursing Care,P20,Adult Services,CEDAR CARE HOMES LTD,14/10/2019,331.12
Bath and North East Somerset Council,80875084,LM6,Nursing Care,P20,Adult Services,CEDAR CARE HOMES LTD,14/10/2019,331.12
Bath and North East Somerset Council,80875084,LM6,Nursing Care,P20,Adult Services,CEDAR CARE HOMES LTD,14/10/2019,331.12
Bath and North East Somerset Council,80875084,LM6,Nursing Care,P20,Adult Services,CEDAR CARE HOMES LTD,14/10/2019,331.12
Bath and North East Somerset Council,80875084,LM6,Nursing Care,P20,Adult Services,CEDAR CARE HOMES LTD,14/10/2019,331.12
Bath and North East Somerset Council,80875084,LM6,Nursing Care,P20,Adult Services,CEDAR CARE HOMES LTD,14/10/2019,331.12
Bath and North East Somerset Council,80875084,LM6,Nursing Care,P20,Adult Services,CEDAR CARE HOMES LTD,14/10/2019,331.12
Bath and North East Somerset Council,80875084,LM6,Nursing Care,P20,Adult Services,CEDAR CARE HOMES LTD,14/10/2019,331.12
Bath and North East Somerset Council,80875084,LM6,Nursing Care,P20,Adult Services,CEDAR CARE HOMES LTD,14/10/2019,331.12
Bath and North East Somerset Council,80875084,LM6,Nursing Care,P20,Adult Services,CEDAR CARE HOMES LTD,14/10/2019,331.12
Bath and North East Somerset Council,80875084,LM6,Nursing Care,P20,Adult Services,CEDAR CARE HOMES LTD,14/10/2019,331.12
Bath and North East Somerset Council,80875084,LM6,Nursing Care,P20,Adult Services,CEDAR CARE HOMES LTD,14/10/2019,331.12
Bath and North East Somerset Council,80875084,LM6,Nursing Care,P20,Adult Services,CEDAR CARE HOMES LTD,14/10/2019,331.12
Bath and North East Somerset Council,80875084,LM6,Nursing Care,P20,Adult Services,CEDAR CARE HOMES LTD,14/10/2019,331.12
Bath and North East Somerset Council,80875084,LM6,Nursing Care,P20,Adult Services,CEDAR CARE HOMES LTD,14/10/2019,331.12
Bath and North East Somerset Council,80875084,LM6,Nursing Care,P20,Adult Services,CEDAR CARE HOMES LTD,14/10/2019,331.12
Bath and North East Somerset Council,80875084,LM6,Nursing Care,P20,Adult Services,CEDAR CARE HOMES LTD,14/10/2019,331.12
Bath and North East Somerset Council,80875084,LM6,Nursing Care,P20,Adult Services,CEDAR CARE HOMES LTD,14/10/2019,331.12
Bath and North East Somerset Council,80875084,LM6,Nursing Care,P20,Adult Services,CEDAR CARE HOMES LTD,14/10/2019,331.12
Bath and North East Somerset Council,80875084,LM6,Nursing Care,P20,Adult Services,CEDAR CARE HOMES LTD,14/10/2019,331.12
Bath and North East Somerset Council,80875084,LM6,Nursing Care,P20,Adult Services,CEDAR CARE HOMES LTD,14/10/2019,331.12
Bath and North East Somerset Council,80875084,LM6,Nursing Care,P20,Adult Services,CEDAR CARE HOMES LTD,14/10/2019,331.12
Bath and North East Somerset Council,80875084,LM6,Nursing Care,P20,Adult Services,CEDAR CARE HOMES LTD,14/10/2019,331.12
Bath and North East Somerset Council,80875250,LM3,Residential Care,P20,Adult Services,CEDAR CARE HOMES LTD,14/10/2019,1128.24
Bath and North East Somerset Council,80875250,LM3,Residential Care,P20,Adult Services,CEDAR CARE HOMES LTD,14/10/2019,1169.04
Bath and North East Somerset Council,80875230,LM6,Nursing Care,P20,Adult Services,CEDAR CARE HOMES LTD,14/10/2019,1169.8
Bath and North East Somerset Council,80875230,LM6,Nursing Care,P20,Adult Services,CEDAR CARE HOMES LTD,14/10/2019,1170.98
Bath and North East Somerset Council,80875230,LM6,Nursing Care,P20,Adult Services,CEDAR CARE HOMES LTD,14/10/2019,1170.98
Bath and North East Somerset Council,80875230,LM6,Nursing Care,P20,Adult Services,CEDAR CARE HOMES LTD,14/10/2019,1416.4
Bath and North East Somerset Council,80875230,LM6,Nursing Care,P20,Adult Services,CEDAR CARE HOMES LTD,14/10/2019,1419.9
Bath and North East Somerset Council,80874719,LM6,Nursing Care,P20,Adult Services,CEDAR CARE HOMES LTD,14/10/2019,1421.43
Bath and North East Somerset Council,80875238,LM6,Nursing Care,P20,Adult Services,CEDAR CARE HOMES LTD,14/10/2019,1429.9
Bath and North East Somerset Council,80875238,LM6,Nursing Care,P20,Adult Services,CEDAR CARE HOMES LTD,14/10/2019,1455.56
Bath and North East Somerset Council,80875230,LM6,Nursing Care,P20,Adult Services,CEDAR CARE HOMES LTD,14/10/2019,1478.4
Bath and North East Somerset Council,80875230,LM6,Nursing Care,P20,Adult Services,CEDAR CARE HOMES LTD,14/10/2019,1479.9
Bath and North East Somerset Council,80875230,LM6,Nursing Care,P20,Adult Services,CEDAR CARE HOMES LTD,14/10/2019,1496.4
Bath and North East Somerset Council,80875238,LM6,Nursing Care,P20,Adult Services,CEDAR CARE HOMES LTD,14/10/2019,1496.4
Bath and North East Somerset Council,80875250,LM3,Residential Care,P20,Adult Services,CEDAR CARE HOMES LTD,14/10/2019,1524
Bath and North East Somerset Council,80875250,LM3,Residential Care,P20,Adult Services,CEDAR CARE HOMES LTD,14/10/2019,1532.2
Bath and North East Somerset Council,80875238,LM3,Residential Care,P20,Adult Services,CEDAR CARE HOMES LTD,14/10/2019,1540
Bath and North East Somerset Council,80875250,LM3,Residential Care,P20,Adult Services,CEDAR CARE HOMES LTD,14/10/2019,1540
Bath and North East Somerset Council,80875250,LM3,Residential Care,P20,Adult Services,CEDAR CARE HOMES LTD,14/10/2019,1540
Bath and North East Somerset Council,80875250,LM3,Residential Care,P20,Adult Services,CEDAR CARE HOMES LTD,14/10/2019,1540
Bath and North East Somerset Council,80875250,LM3,Residential Care,P20,Adult Services,CEDAR CARE HOMES LTD,14/10/2019,1540
Bath and North East Somerset Council,80875250,LM3,Residential Care,P20,Adult Services,CEDAR CARE HOMES LTD,14/10/2019,1540
Bath and North East Somerset Council,80875250,LM3,Residential Care,P20,Adult Services,CEDAR CARE HOMES LTD,14/10/2019,1540
Bath and North East Somerset Council,80875250,LM3,Residential Care,P20,Adult Services,CEDAR CARE HOMES LTD,14/10/2019,1540
Bath and North East Somerset Council,80875250,LM3,Residential Care,P20,Adult Services,CEDAR CARE HOMES LTD,14/10/2019,1540
Bath and North East Somerset Council,80875230,LM6,Nursing Care,P20,Adult Services,CEDAR CARE HOMES LTD,14/10/2019,1568.88
Bath and North East Somerset Council,80875230,LM6,Nursing Care,P20,Adult Services,CEDAR CARE HOMES LTD,14/10/2019,1598.88
Bath and North East Somerset Council,80875230,LM6,Nursing Care,P20,Adult Services,CEDAR CARE HOMES LTD,14/10/2019,1613.68
Bath and North East Somerset Council,80875230,LM6,Nursing Care,P20,Adult Services,CEDAR CARE HOMES LTD,14/10/2019,1658.88
Bath and North East Somerset Council,80875230,LM6,Nursing Care,P20,Adult Services,CEDAR CARE HOMES LTD,14/10/2019,1673.68
Bath and North East Somerset Council,80875230,LM6,Nursing Care,P20,Adult Services,CEDAR CARE HOMES LTD,14/10/2019,1673.68
Bath and North East Somerset Council,80875250,LM3,Residential Care,P20,Adult Services,CEDAR CARE HOMES LTD,14/10/2019,1700
Bath and North East Somerset Council,80875250,LM3,Residential Care,P20,Adult Services,CEDAR CARE HOMES LTD,14/10/2019,1788.5
Bath and North East Somerset Council,80875230,LM6,Nursing Care,P20,Adult Services,CEDAR CARE HOMES LTD,14/10/2019,1790
Bath and North East Somerset Council,80875238,LM6,Nursing Care,P20,Adult Services,CEDAR CARE HOMES LTD,14/10/2019,1800
Bath and North East Somerset Council,80874719,LM6,Nursing Care,P20,Adult Services,CEDAR CARE HOMES LTD,14/10/2019,1950
Bath and North East Somerset Council,80874719,LM6,Nursing Care,P20,Adult Services,CEDAR CARE HOMES LTD,14/10/2019,1990
Bath and North East Somerset Council,80874724,LM6,Nursing Care,P20,Adult Services,CEDAR CARE HOMES LTD,14/10/2019,2050
Bath and North East Somerset Council,80874724,LM6,Nursing Care,P20,Adult Services,CEDAR CARE HOMES LTD,14/10/2019,2050
Bath and North East Somerset Council,80874724,LM6,Nursing Care,P20,Adult Services,CEDAR CARE HOMES LTD,14/10/2019,2050
Bath and North East Somerset Council,80874727,LM6,Nursing Care,P20,Adult Services,CEDAR CARE HOMES LTD,14/10/2019,2270
Bath and North East Somerset Council,80875238,LM6,Nursing Care,P20,Adult Services,CEDAR CARE HOMES LTD,14/10/2019,2302
Bath and North East Somerset Council,80875080,LM6,Nursing Care,P20,Adult Services,CEDAR CARE HOMES LTD,14/10/2019,2814.52
Bath and North East Somerset Council,80875250,LM3,Residential Care,P20,Adult Services,CEDAR CARE HOMES LTD,14/10/2019,7260
Bath and North East Somerset Council,80875238,LM6,Nursing Care,P20,Adult Services,CEDAR CARE HOMES LTD,14/10/2019,23674.04
Bath and North East Somerset Council,80875072,LM6,Nursing Care,P20,Adult Services,CEDAR PARK NURSING HOME,14/10/2019,331.12
Bath and North East Somerset Council,80875072,LM6,Nursing Care,P20,Adult Services,CEDAR PARK NURSING HOME,14/10/2019,331.12
Bath and North East Somerset Council,80875072,LM6,Nursing Care,P20,Adult Services,CEDAR PARK NURSING HOME,14/10/2019,331.12
Bath and North East Somerset Council,80875072,LM6,Nursing Care,P20,Adult Services,CEDAR PARK NURSING HOME,14/10/2019,331.12
Bath and North East Somerset Council,80875072,LM6,Nursing Care,P20,Adult Services,CEDAR PARK NURSING HOME,14/10/2019,331.12
Bath and North East Somerset Council,80875072,LM6,Nursing Care,P20,Adult Services,CEDAR PARK NURSING HOME,14/10/2019,331.12
Bath and North East Somerset Council,80875072,LM6,Nursing Care,P20,Adult Services,CEDAR PARK NURSING HOME,14/10/2019,331.12
Bath and North East Somerset Council,80875072,LM6,Nursing Care,P20,Adult Services,CEDAR PARK NURSING HOME,14/10/2019,331.12
Bath and North East Somerset Council,80875072,LM6,Nursing Care,P20,Adult Services,CEDAR PARK NURSING HOME,14/10/2019,331.12
Bath and North East Somerset Council,80875072,LM6,Nursing Care,P20,Adult Services,CEDAR PARK NURSING HOME,14/10/2019,331.12
Bath and North East Somerset Council,80875072,LM6,Nursing Care,P20,Adult Services,CEDAR PARK NURSING HOME,14/10/2019,331.12
Bath and North East Somerset Council,80875072,LM6,Nursing Care,P20,Adult Services,CEDAR PARK NURSING HOME,14/10/2019,331.12
Bath and North East Somerset Council,80875072,LM6,Nursing Care,P20,Adult Services,CEDAR PARK NURSING HOME,14/10/2019,331.12
Bath and North East Somerset Council,80875072,LM6,Nursing Care,P20,Adult Services,CEDAR PARK NURSING HOME,14/10/2019,331.12
Bath and North East Somerset Council,80875072,LM6,Nursing Care,P20,Adult Services,CEDAR PARK NURSING HOME,14/10/2019,331.12
Bath and North East Somerset Council,80875072,LM6,Nursing Care,P20,Adult Services,CEDAR PARK NURSING HOME,14/10/2019,331.12
Bath and North East Somerset Council,80875216,LM6,Nursing Care,P20,Adult Services,CEDAR PARK NURSING HOME,14/10/2019,1134.26
Bath and North East Somerset Council,80875216,LM6,Nursing Care,P20,Adult Services,CEDAR PARK NURSING HOME,14/10/2019,1134.26
Bath and North East Somerset Council,80875216,LM6,Nursing Care,P20,Adult Services,CEDAR PARK NURSING HOME,14/10/2019,1134.26
Bath and North East Somerset Council,80875216,LM6,Nursing Care,P20,Adult Services,CEDAR PARK NURSING HOME,14/10/2019,1134.26
Bath and North East Somerset Council,80875216,LM6,Nursing Care,P20,Adult Services,CEDAR PARK NURSING HOME,14/10/2019,1158.68
Bath and North East Somerset Council,80875216,LM6,Nursing Care,P20,Adult Services,CEDAR PARK NURSING HOME,14/10/2019,1184.88
Bath and North East Somerset Council,80875216,LM6,Nursing Care,P20,Adult Services,CEDAR PARK NURSING HOME,14/10/2019,1184.88
Bath and North East Somerset Council,80875216,LM6,Nursing Care,P20,Adult Services,CEDAR PARK NURSING HOME,14/10/2019,1199.68
Bath and North East Somerset Council,80875216,LM6,Nursing Care,P20,Adult Services,CEDAR PARK NURSING HOME,14/10/2019,1208.4
Bath and North East Somerset Council,80875216,LM6,Nursing Care,P20,Adult Services,CEDAR PARK NURSING HOME,14/10/2019,1344.4
Bath and North East Somerset Council,80875216,LM6,Nursing Care,P20,Adult Services,CEDAR PARK NURSING HOME,14/10/2019,1394.4
Bath and North East Somerset Council,80875216,LM6,Nursing Care,P20,Adult Services,CEDAR PARK NURSING HOME,14/10/2019,1439.9
Bath and North East Somerset Council,80875216,LM6,Nursing Care,P20,Adult Services,CEDAR PARK NURSING HOME,14/10/2019,1439.9
Bath and North East Somerset Council,80875216,LM3,Residential Care,P20,Adult Services,CEDAR PARK NURSING HOME,14/10/2019,1450
Bath and North East Somerset Council,80875216,LM3,Residential Care,P20,Adult Services,CEDAR PARK NURSING HOME,14/10/2019,1465.58
Bath and North East Somerset Council,80875216,LM3,Residential Care,P20,Adult Services,CEDAR PARK NURSING HOME,14/10/2019,1500
Bath and North East Somerset Council,80875216,LM6,Nursing Care,P20,Adult Services,CEDAR PARK NURSING HOME,14/10/2019,1900
Bath and North East Somerset Council,80875216,LM6,Nursing Care,P20,Adult Services,CEDAR PARK NURSING HOME,14/10/2019,2183.68
Bath and North East Somerset Council,80875216,XD3,Client Contributions,P20,Adult Services,CEDAR PARK NURSING HOME,14/10/2019,2247.3
Bath and North East Somerset Council,80875216,LM6,Nursing Care,P20,Adult Services,CEDAR PARK NURSING HOME,14/10/2019,3462.2
Bath and North East Somerset Council,80875072,LM6,Nursing Care,P20,Adult Services,CEDAR PARK NURSING HOME,14/10/2019,3713.27
Bath and North East Somerset Council,80875167,LM3,Residential Care,P20,Adult Services,CHASE LODGE CARE HOME,14/10/2019,1446
Bath and North East Somerset Council,80875085,LM6,Nursing Care,P20,Adult Services,CHERRY GARDEN PROPERTIES LTD,14/10/2019,331.12
Bath and North East Somerset Council,80875085,LM6,Nursing Care,P20,Adult Services,CHERRY GARDEN PROPERTIES LTD,14/10/2019,331.12
Bath and North East Somerset Council,80875085,LM6,Nursing Care,P20,Adult Services,CHERRY GARDEN PROPERTIES LTD,14/10/2019,331.12
Bath and North East Somerset Council,80875085,LM6,Nursing Care,P20,Adult Services,CHERRY GARDEN PROPERTIES LTD,14/10/2019,331.12
Bath and North East Somerset Council,80875085,LM6,Nursing Care,P20,Adult Services,CHERRY GARDEN PROPERTIES LTD,14/10/2019,331.12
Bath and North East Somerset Council,80875085,LM6,Nursing Care,P20,Adult Services,CHERRY GARDEN PROPERTIES LTD,14/10/2019,331.12
Bath and North East Somerset Council,80875085,LM6,Nursing Care,P20,Adult Services,CHERRY GARDEN PROPERTIES LTD,14/10/2019,331.12
Bath and North East Somerset Council,80875085,LM6,Nursing Care,P20,Adult Services,CHERRY GARDEN PROPERTIES LTD,14/10/2019,331.12
Bath and North East Somerset Council,80875085,LM6,Nursing Care,P20,Adult Services,CHERRY GARDEN PROPERTIES LTD,14/10/2019,331.12
Bath and North East Somerset Council,80875085,LM6,Nursing Care,P20,Adult Services,CHERRY GARDEN PROPERTIES LTD,14/10/2019,331.12
Bath and North East Somerset Council,80875085,LM6,Nursing Care,P20,Adult Services,CHERRY GARDEN PROPERTIES LTD,14/10/2019,331.12
Bath and North East Somerset Council,80875085,LM6,Nursing Care,P20,Adult Services,CHERRY GARDEN PROPERTIES LTD,14/10/2019,331.12
Bath and North East Somerset Council,80875085,LM6,Nursing Care,P20,Adult Services,CHERRY GARDEN PROPERTIES LTD,14/10/2019,331.12
Bath and North East Somerset Council,80875085,LM6,Nursing Care,P20,Adult Services,CHERRY GARDEN PROPERTIES LTD,14/10/2019,331.12
Bath and North East Somerset Council,80875085,LM6,Nursing Care,P20,Adult Services,CHERRY GARDEN PROPERTIES LTD,14/10/2019,331.12
Bath and North East Somerset Council,80875085,LM6,Nursing Care,P20,Adult Services,CHERRY GARDEN PROPERTIES LTD,14/10/2019,331.12
Bath and North East Somerset Council,80875085,LM6,Nursing Care,P20,Adult Services,CHERRY GARDEN PROPERTIES LTD,14/10/2019,331.12
Bath and North East Somerset Council,80875085,LM6,Nursing Care,P20,Adult Services,CHERRY GARDEN PROPERTIES LTD,14/10/2019,331.12
Bath and North East Somerset Council,80875085,LM6,Nursing Care,P20,Adult Services,CHERRY GARDEN PROPERTIES LTD,14/10/2019,331.12
Bath and North East Somerset Council,80875241,LM3,Residential Care,P20,Adult Services,CHERRY GARDEN PROPERTIES LTD,14/10/2019,1128.24
Bath and North East Somerset Council,80875241,LM3,Residential Care,P20,Adult Services,CHERRY GARDEN PROPERTIES LTD,14/10/2019,1128.24
Bath and North East Somerset Council,80875241,LM6,Nursing Care,P20,Adult Services,CHERRY GARDEN PROPERTIES LTD,14/10/2019,1134.26
Bath and North East Somerset Council,80875241,LM6,Nursing Care,P20,Adult Services,CHERRY GARDEN PROPERTIES LTD,14/10/2019,1134.26
Bath and North East Somerset Council,80875241,LM6,Nursing Care,P20,Adult Services,CHERRY GARDEN PROPERTIES LTD,14/10/2019,1134.26
Bath and North East Somerset Council,80875241,LM6,Nursing Care,P20,Adult Services,CHERRY GARDEN PROPERTIES LTD,14/10/2019,1134.26
Bath and North East Somerset Council,80875241,LM6,Nursing Care,P20,Adult Services,CHERRY GARDEN PROPERTIES LTD,14/10/2019,1333.68
Bath and North East Somerset Council,80875241,LM3,Residential Care,P20,Adult Services,CHERRY GARDEN PROPERTIES LTD,14/10/2019,1370
Bath and North East Somerset Council,80875241,LM3,Residential Care,P20,Adult Services,CHERRY GARDEN PROPERTIES LTD,14/10/2019,1400
Bath and North East Somerset Council,80875241,LM3,Residential Care,P20,Adult Services,CHERRY GARDEN PROPERTIES LTD,14/10/2019,1414
Bath and North East Somerset Council,80875241,LM6,Nursing Care,P20,Adult Services,CHERRY GARDEN PROPERTIES LTD,14/10/2019,1478
Bath and North East Somerset Council,80875241,LM6,Nursing Care,P20,Adult Services,CHERRY GARDEN PROPERTIES LTD,14/10/2019,1489.26
Bath and North East Somerset Council,80874726,LM6,Nursing Care,P20,Adult Services,CHERRY GARDEN PROPERTIES LTD,14/10/2019,1700
Bath and North East Somerset Council,80875091,LM6,Nursing Care,P20,Adult Services,CHERRY GARDEN PROPERTIES LTD,14/10/2019,29742.86
Bath and North East Somerset Council,80875104,LM3,Residential Care,P20,Adult Services,CHESCOMBE TRUST,14/10/2019,3200.3
Bath and North East Somerset Council,80874720,LM3,Residential Care,P20,Adult Services,CHOICE LTD,14/10/2019,4234
Bath and North East Somerset Council,80875176,LM3,Residential Care,P20,Adult Services,CHOICE LTD,14/10/2019,4295.06
Bath and North East Somerset Council,80875068,LM6,Nursing Care,P20,Adult Services,CHOLWELL HOUSE NURSING HOME,14/10/2019,331.12
Bath and North East Somerset Council,80875068,LM6,Nursing Care,P20,Adult Services,CHOLWELL HOUSE NURSING HOME,14/10/2019,331.12
Bath and North East Somerset Council,80875068,LM6,Nursing Care,P20,Adult Services,CHOLWELL HOUSE NURSING HOME,14/10/2019,331.12
Bath and North East Somerset Council,80875068,LM6,Nursing Care,P20,Adult Services,CHOLWELL HOUSE NURSING HOME,14/10/2019,331.12
Bath and North East Somerset Council,80875068,LM6,Nursing Care,P20,Adult Services,CHOLWELL HOUSE NURSING HOME,14/10/2019,331.12
Bath and North East Somerset Council,80875068,LM6,Nursing Care,P20,Adult Services,CHOLWELL HOUSE NURSING HOME,14/10/2019,331.12
Bath and North East Somerset Council,80875068,LM6,Nursing Care,P20,Adult Services,CHOLWELL HOUSE NURSING HOME,14/10/2019,331.12
Bath and North East Somerset Council,80875068,LM6,Nursing Care,P20,Adult Services,CHOLWELL HOUSE NURSING HOME,14/10/2019,331.12
Bath and North East Somerset Council,80875068,LM6,Nursing Care,P20,Adult Services,CHOLWELL HOUSE NURSING HOME,14/10/2019,331.12
Bath and North East Somerset Council,80875068,LM6,Nursing Care,P20,Adult Services,CHOLWELL HOUSE NURSING HOME,14/10/2019,331.12
Bath and North East Somerset Council,80875068,LM6,Nursing Care,P20,Adult Services,CHOLWELL HOUSE NURSING HOME,14/10/2019,331.12
Bath and North East Somerset Council,80875068,LM6,Nursing Care,P20,Adult Services,CHOLWELL HOUSE NURSING HOME,14/10/2019,331.12
Bath and North East Somerset Council,80875068,LM6,Nursing Care,P20,Adult Services,CHOLWELL HOUSE NURSING HOME,14/10/2019,331.12
Bath and North East Somerset Council,80875068,LM6,Nursing Care,P20,Adult Services,CHOLWELL HOUSE NURSING HOME,14/10/2019,331.12
Bath and North East Somerset Council,80875211,LM6,Nursing Care,P20,Adult Services,CHOLWELL HOUSE NURSING HOME,14/10/2019,1258.4
